Workbook

Sheet Earnings Model
B2: By obtaining this model you are deemed to have read and agreed to our Terms of Use. Visit our website for details: https://www.gutenbergresearch.com/terms-of-use.html
B3: Blue cells = Gutenberg® estimates
B4: Purple cells = Company guidance (updated 7/25/2019) | BH4: GR
B5: Orange cells = Consensus estimates (updated 7/25/2019)
B6: Implied P/E 12-month target value | C6: =C328 -> 72.56733005
B7: Implied DCF 12-month target value | C7: =C362 -> 74.77169731
B8: Implied average target value | C8: =(0.5*C6)+(0.5*C7) -> 73.66951368
B10: Base Case
B12: Colgate Palmolive Income Statement | D12: Mar-14 | E12: Jun-14 | F12: Sep-14 | G12: Dec-14 | H12: Dec-14 | I12: Mar-15 | J12: Jun-15 | K12: Sep-15 | L12: Dec-15 | M12: Dec-15 | N12: Mar-16 | O12: Jun-16 | P12: Sep-16 | Q12: Dec-16 | R12: Dec-16 | S12: Mar-17 | T12: Jun-17 | U12: Sep-17 | V12: Dec-17 | W12: Dec-17 | X12: Mar-18 | Y12: Jun-18 | Z12: Sep-18 | AA12: Dec-18 | AB12: Dec-18 | AC12: Mar-19 | AD12: Jun-19 | AE12: Sep-19 | AF12: Dec-19 | AG12: Dec-19 | AH12: Mar-20 | AI12: Jun-20 | AJ12: Sep-20 | AK12: Dec-20 | AL12: Dec-20 | AM12: Mar-21 | AN12: Jun-21 | AO12: Sep-21 | AP12: Dec-21 | AQ12: Dec-21 | AR12: Mar-21 | AS12: Jun-21 | AT12: Sep-21 | AU12: Dec-21 | AV12: Dec-21
B13: (Dollars in millions, except per share data) | D13: 1Q14 | E13: 2Q14 | F13: 3Q14 | G13: 4Q14 | H13: FY 2014 | I13: 1Q15 | J13: 2Q15 | K13: 3Q15 | L13: 4Q15 | M13: FY 2015 | N13: 1Q16 | O13: 2Q16 | P13: 3Q16 | Q13: 4Q16 | R13: FY 2016 | S13: 1Q17 | T13: 2Q17 | U13: 3Q17 | V13: 4Q17 | W13: FY 2017 | X13: 1Q18 | Y13: 2Q18 | Z13: 3Q18 | AA13: 4Q18 | AB13: FY 2018 | AC13: 1Q19 | AD13: 2Q19 | AE13: 3Q19E | AF13: 4Q19E | AG13: FY 2019E | AH13: 1Q20E | AI13: 2Q20E | AJ13: 3Q20E | AK13: 4Q20E | AL13: FY 2020E | AM13: 1Q21E | AN13: 2Q21E | AO13: 3Q21E | AP13: 4Q21E | AQ13: FY 2121E | AR13: 1Q21E | AS13: 2Q21E | AT13: 3Q21E | AU13: 4Q21E | AV13: FY 2121E
B14: Revenues | D14: 4325 | E14: 4352 | F14: 4379 | G14: 4221 | H14: =SUM(D14:G14) -> 17277 | I14: 4070 | J14: 4066 | K14: 3999 | L14: 3899 | M14: =SUM(I14:L14) -> 16034 | N14: 3762 | O14: 3845 | P14: 3867 | Q14: 3721 | R14: =SUM(N14:Q14) -> 15195 | S14: 3762 | T14: 3826 | U14: 3974 | V14: 3892 | W14: =SUM(S14:V14) -> 15454 | X14: 4002 | Y14: 3886 | Z14: 3845 | AA14: 3811 | AB14: =SUM(X14:AA14) -> 15544 | AC14: 3884 | AD14: 3866 | AE14: =AE38+AE42+AE46+AE50+AE54+AE62 -> 3902.413952 | AF14: =AF38+AF42+AF46+AF50+AF54+AF62 -> 3949.187575 | AG14: =SUM(AC14:AF14) -> 15601.60153 | AH14: =AH38+AH42+AH46+AH50+AH54+AH62 -> 3958.712028 | AI14: =AI38+AI42+AI46+AI50+AI54+AI62 -> 3939.72 | AJ14: =AJ38+AJ42+AJ46+AJ50+AJ54+AJ62 -> 3977.932477 | AK14: =AK38+AK42+AK46+AK50+AK54+AK62 -> 4026.995035 | AL14: =SUM(AH14:AK14) -> 15903.35954 | AM14: =AM38+AM42+AM46+AM50+AM54+AM62 -> 4036.982803 | AN14: =AN38+AN42+AN46+AN50+AN54+AN62 -> 4017.066 | AO14: =AO38+AO42+AO46+AO50+AO54+AO62 -> 4057.135482 | AP14: =AP38+AP42+AP46+AP50+AP54+AP62 -> 4108.561726 | AQ14: =SUM(AM14:AP14) -> 16219.74601 | AR14: =AR38+AR42+AR46+AR50+AR54+AR62 -> 4119.027981 | AS14: =AS38+AS42+AS46+AS50+AS54+AS62 -> 4098.156132 | AT14: =AT38+AT42+AT46+AT50+AT54+AT62 -> 4140.143464 | AU14: =AU38+AU42+AU46+AU50+AU54+AU62 -> 4194.01116 | AV14: =SUM(AR14:AU14) -> 16551.33874
B15: Cost of Goods Sold | D15: 1801 | E15: 1800 | F15: 1821 | G15: 1746 | H15: =SUM(D15:G15) -> 7168 | I15: 1678 | J15: 1699 | K15: 1652 | L15: 1606 | M15: =SUM(I15:L15) -> 6635 | N15: 1514 | O15: 1541 | P15: 1543 | Q15: 1474 | R15: 6072 | S15: 1493 | T15: 1526 | U15: 1591 | V15: 1564 | W15: =SUM(S15:V15) -> 6174 | X15: 1594 | Y15: 1585 | Z15: 1576 | AA15: 1558 | AB15: =SUM(X15:AA15) -> 6313 | AC15: 1597 | AD15: 1558 | AE15: =AE14-(AE14*AE71) -> 1678.037999 | AF15: =AF14-(AF14*AF71) -> 1698.150657 | AG15: =SUM(AC15:AF15) -> 6531.188657 | AH15: =AH14-(AH14*AH71) -> 1702.246172 | AI15: =AI14-(AI14*AI71) -> 1694.0796 | AJ15: =AJ14-(AJ14*AJ71) -> 1710.510965 | AK15: =AK14-(AK14*AK71) -> 1731.607865 | AL15: =SUM(AH15:AK15) -> 6838.444602 | AM15: =AM14-(AM14*AM71) -> 1735.902605 | AN15: =AN14-(AN14*AN71) -> 1727.33838 | AO15: =AO14-(AO14*AO71) -> 1744.568257 | AP15: =AP14-(AP14*AP71) -> 1766.681542 | AQ15: =SUM(AM15:AP15) -> 6974.490784 | AR15: =AR14-(AR14*AR71) -> 1771.182032 | AS15: =AS14-(AS14*AS71) -> 1762.207137 | AT15: =AT14-(AT14*AT71) -> 1780.261689 | AU15: =AU14-(AU14*AU71) -> 1803.424799 | AV15: =SUM(AR15:AU15) -> 7117.075657
B16: Gross Profit | D16: =D14-D15 -> 2524 | E16: =E14-E15 -> 2552 | F16: 2558 | G16: 2475 | H16: =H14-H15 -> 10109 | I16: =I14-I15 -> 2392 | J16: 2367 | K16: 2347 | L16: 2293 | M16: =M14-M15 -> 9399 | N16: =N14-N15 -> 2248 | O16: 2304 | P16: 2324 | Q16: 2247 | R16: =R14-R15 -> 9123 | S16: =S14-S15 -> 2269 | T16: 2300 | U16: 2383 | V16: 2328 | W16: =W14-W15 -> 9280 | X16: =X14-X15 -> 2408 | Y16: 2301 | Z16: 2269 | AA16: 2253 | AB16: =AB14-AB15 -> 9231 | AC16: =AC14-AC15 -> 2287 | AD16: 2308 | AE16: =AE14-AE15 -> 2224.375952 | AF16: =AF14-AF15 -> 2251.036918 | AG16: =AG14-AG15 -> 9070.41287 | AH16: =AH14-AH15 -> 2256.465856 | AI16: 2245.6404 | AJ16: 2267.421512 | AK16: 2295.38717 | AL16: =AL14-AL15 -> 9064.914938 | AM16: =AM14-AM15 -> 2301.080197 | AN16: 2289.72762 | AO16: 2312.567225 | AP16: 2341.880184 | AQ16: =AQ14-AQ15 -> 9245.255226 | AR16: =AR14-AR15 -> 2347.845949 | AS16: 2335.948995 | AT16: 2359.881774 | AU16: 2390.586361 | AV16: =AV14-AV15 -> 9434.26308
B17: Selling General and Administrative Expenses | D17: 1544 | E17: 1507 | F17: 1497 | G17: 1434 | H17: =SUM(D17:G17) -> 5982 | I17: 1450 | J17: 1381 | K17: 1347 | L17: 1286 | M17: =SUM(I17:L17) -> 5464 | N17: 1354 | O17: 1320 | P17: 1322 | Q17: 1253 | R17: =SUM(N17:Q17) -> 5249 | S17: 1336 | T17: 1309 | U17: 1410 | V17: 1345 | W17: =SUM(S17:V17) -> 5400 | X17: 1392 | Y17: 1300 | Z17: 1369 | AA17: 1328 | AB17: =SUM(X17:AA17) -> 5389 | AC17: 1365 | AD17: 1369 | AE17: =AE20*$C$293 -> 1254.603416 | AF17: =AF20*0.96 -> 1267.890346 | AG17: =SUM(AC17:AF17) -> 5256.493763 | AH17: =AH20*0.96 -> 1270.59538 | AI17: 1265.20128 | AJ17: 1276.053601 | AK17: 1289.983074 | AL17: =SUM(AH17:AK17) -> 5101.833335 | AM17: =AM20*0.96 -> 1292.818162 | AN17: 1287.164471 | AO17: 1298.538062 | AP17: 1313.130994 | AQ17: =SUM(AM17:AP17) -> 5191.651689 | AR17: =AR20*0.96 -> 1316.100383 | AS17: 1310.17863 | AT17: 1322.090515 | AU17: 1337.368664 | AV17: =SUM(AR17:AU17) -> 5285.738192
B18: Other Operating (Income)/Expense - Net | D18: 346 | E18: 65 | F18: 113 | G18: 46 | H18: =SUM(D18:G18) -> 570 | I18: 82 | J18: 54 | K18: -136 | L18: 62 | M18: =SUM(I18:L18) -> 62 | N18: 27 | O18: 40 | P18: -69 | Q18: 39 | R18: =SUM(N18:Q18) -> 37 | S18: 21 | T18: 113 | U18: 16 | V18: 23 | W18: =SUM(S18:V18) -> 173 | X18: 33 | Y18: 55 | Z18: 26 | AA18: 34 | AB18: =SUM(X18:AA18) -> 148 | AC18: 43 | AD18: 51 | AE18: =AE20*$C$294 -> 52.27514235 | AF18: =AF20*0.04 -> 52.82876444 | AG18: =SUM(AC18:AF18) -> 199.1039068 | AH18: =AH20*0.04 -> 52.94147415 | AI18: 52.71672 | AJ18: 53.16890005 | AK18: 53.74929474 | AL18: =SUM(AH18:AK18) -> 212.5763889 | AM18: =AM20*0.04 -> 53.86742343 | AN18: 53.63185296 | AO18: 54.10575258 | AP18: 54.7137914 | AQ18: =SUM(AM18:AP18) -> 216.3188204 | AR18: =AR20*0.04 -> 54.83751596 | AS18: 54.59077624 | AT18: 55.08710479 | AU18: 55.72369434 | AV18: =SUM(AR18:AU18) -> 220.2390913
B19: Other One-Time Charges | D19: 0 | E19: 0 | F19: 0 | G19: 0 | H19: =SUM(D19:G19) -> 0 | I19: 0 | J19: 0 | K19: 0 | L19: 1084 | M19: =SUM(I19:L19) -> 1084 | N19: 0 | O19: 0 | P19: 0 | Q19: 0 | R19: 0 | S19: 0 | T19: 0 | U19: 0 | V19: 0 | W19: =SUM(S19:V19) -> 0 | X19: 0 | Y19: 0 | Z19: 0 | AA19: 0 | AB19: =SUM(X19:AA19) -> 0 | AC19: 0 | AD19: 0 | AE19: 0 | AF19: 0 | AG19: =SUM(AC19:AF19) -> 0 | AH19: 0 | AI19: 0 | AJ19: 0 | AK19: 0 | AL19: =SUM(AH19:AK19) -> 0 | AM19: 0 | AN19: 0 | AO19: 0 | AP19: 0 | AQ19: =SUM(AM19:AP19) -> 0 | AR19: 0 | AS19: 0 | AT19: 0 | AU19: 0 | AV19: =SUM(AR19:AU19) -> 0
B20: Total selling and administrative expense | D20: =SUM(D17:D19) -> 1890 | E20: 1572 | F20: 1610 | G20: 1480 | H20: 6552 | I20: =SUM(I17:I19) -> 1532 | J20: 1435 | K20: 1211 | L20: 2432 | M20: =SUM(M17:M19) -> 6610 | N20: =SUM(N17:N19) -> 1381 | O20: 1360 | P20: 1253 | Q20: 1292 | R20: =SUM(R17:R19) -> 5286 | S20: =SUM(S17:S19) -> 1357 | T20: 1422 | U20: 1426 | V20: 1368 | W20: =SUM(W17:W19) -> 5573 | X20: =SUM(X17:X19) -> 1425 | Y20: 1355 | Z20: 1395 | AA20: 1362 | AB20: =SUM(AB17:AB19) -> 5537 | AC20: =SUM(AC17:AC19) -> 1408 | AD20: 1420 | AE20: =AE16-AE21 -> 1306.878559 | AF20: 1320.719111 | AG20: =SUM(AC20:AF20) -> 5455.59767 | AH20: =AH16-AH21 -> 1323.536854 | AI20: 1317.918 | AJ20: 1329.222501 | AK20: 1343.732369 | AL20: =SUM(AH20:AK20) -> 5314.409724 | AM20: =AM16-AM21 -> 1346.685586 | AN20: 1340.796324 | AO20: 1352.643815 | AP20: 1367.844785 | AQ20: =SUM(AM20:AP20) -> 5407.970509 | AR20: =AR16-AR21 -> 1370.937899 | AS20: 1364.769406 | AT20: 1377.17762 | AU20: 1393.092359 | AV20: =SUM(AR20:AU20) -> 5505.977283
B21: Operating Income | D21: =D16-D20 -> 634 | E21: =E16-E20 -> 980 | F21: 948 | G21: 995 | H21: 3557 | I21: =I16-I20 -> 860 | J21: 932 | K21: 1136 | L21: -139 | M21: =M16-M20 -> 2789 | N21: =N16-N20 -> 867 | O21: 944 | P21: 1071 | Q21: 955 | R21: =R16-R20 -> 3837 | S21: =S16-S20 -> 912 | T21: 878 | U21: 957 | V21: 960 | W21: =W16-W20 -> 3707 | X21: =X16-X20 -> 983 | Y21: 946 | Z21: 874 | AA21: 891 | AB21: =AB16-AB20 -> 3694 | AC21: =AC16-AC20 -> 879 | AD21: 888 | AE21: =AE40+AE44+AE48+AE52+AE56+AE64+AE67 -> 917.4973936 | AF21: =AF40+AF44+AF48+AF52+AF56+AF64+AF67 -> 930.3178071 | AG21: 3614.815201 | AH21: =AH40+AH44+AH48+AH52+AH56+AH64+AH67 -> 932.9290021 | AI21: =AI40+AI44+AI48+AI52+AI56+AI64+AI67 -> 927.7224 | AJ21: =AJ40+AJ44+AJ48+AJ52+AJ56+AJ64+AJ67 -> 938.1990103 | AK21: =AK40+AK44+AK48+AK52+AK56+AK64+AK67 -> 951.6548016 | AL21: 3750.505214 | AM21: =AM40+AM44+AM48+AM52+AM56+AM64+AM67 -> 954.3946117 | AN21: =AN40+AN44+AN48+AN52+AN56+AN64+AN67 -> 948.931296 | AO21: =AO40+AO44+AO48+AO52+AO56+AO64+AO67 -> 959.9234102 | AP21: =AP40+AP44+AP48+AP52+AP56+AP64+AP67 -> 974.0353987 | AQ21: 3837.284717 | AR21: =AR40+AR44+AR48+AR52+AR56+AR64+AR67 -> 976.9080502 | AS21: =AS40+AS44+AS48+AS52+AS56+AS64+AS67 -> 971.1795893 | AT21: =AT40+AT44+AT48+AT52+AT56+AT64+AT67 -> 982.7041546 | AU21: =AU40+AU44+AU48+AU52+AU56+AU64+AU67 -> 997.4940026 | AV21: 3928.285797
B22: Interest Expense - Net | D22: 7 | E22: 9 | F22: 4 | G22: 4 | H22: =SUM(D22:G22) -> 24 | I22: 8 | J22: 6 | K22: 5 | L22: 7 | M22: =SUM(I22:L22) -> 26 | N22: 28 | O22: 25 | P22: 25 | Q22: 21 | R22: =SUM(N22:Q22) -> 99 | S22: 23 | T22: 24 | U22: 27 | V22: 28 | W22: =SUM(S22:V22) -> 102 | X22: 35 | Y22: 35 | Z22: 36 | AA22: 37 | AB22: =SUM(X22:AA22) -> 143 | AC22: 40 | AD22: 38 | AE22: =AE72*(AVERAGE((AE94+AE100),(AC94+AC100))) -> 35.60832829 | AF22: =AF72*(AVERAGE((AF94+AF100),(AD94+AD100))) -> 37.27177505 | AG22: =SUM(AC22:AF22) -> 150.8801033 | AH22: =AH72*(AVERAGE((AH94+AH100),(AF94+AF100))) -> 37.97303708 | AI22: 36.05642438 | AJ22: 34.53040521 | AK22: 36.10129639 | AL22: =SUM(AH22:AK22) -> 144.6611631 | AM22: =AM72*(AVERAGE((AM94+AM100),(AK94+AK100))) -> 36.79587089 | AN22: =AN72*(AVERAGE((AN94+AN100),(AL94+AL100))) -> 34.94171311 | AO22: =AO72*(AVERAGE((AO94+AO100),(AM94+AM100))) -> 33.45822959 | AP22: =AP72*(AVERAGE((AP94+AP100),(AN94+AN100))) -> 35.00104644 | AQ22: =SUM(AM22:AP22) -> 140.19686 | AR22: =AR72*(AVERAGE((AR94+AR100),(AP94+AP100))) -> 35.68933467 | AS22: =AS72*(AVERAGE((AS94+AS100),(AQ94+AQ100))) -> 33.89388451 | AT22: =AT72*(AVERAGE((AT94+AT100),(AR94+AR100))) -> 32.45038452 | AU22: =AU72*(AVERAGE((AU94+AU100),(AS94+AS100))) -> 33.96681149 | AV22: =SUM(AR22:AU22) -> 136.0004152
B23: Other Non-Operating Expenses | D23: 0 | E23: 0 | F23: 0 | G23: 0 | H23: =SUM(D23:G23) -> 0 | I23: 0 | J23: 0 | K23: 0 | L23: 0 | M23: =SUM(I23:L23) -> 0 | N23: 0 | O23: 0 | P23: 0 | Q23: 118 | R23: =SUM(N23:Q23) -> 118 | S23: 27 | T23: 25 | U23: 30 | V23: 36 | W23: =SUM(S23:V23) -> 118 | X23: 24 | Y23: 23 | Z23: 18 | AA23: 22 | AB23: =SUM(X23:AA23) -> 87 | AC23: 25 | AD23: 27 | AE23: =AD23 -> 27 | AF23: =AE23 -> 27 | AG23: =SUM(AC23:AF23) -> 106 | AH23: =AF23 -> 27 | AI23: =AH23 -> 27 | AJ23: 27 | AK23: 27 | AL23: =SUM(AH23:AK23) -> 108 | AM23: =AK23 -> 27 | AN23: =AM23 -> 27 | AO23: =AN23 -> 27 | AP23: =AO23 -> 27 | AQ23: =SUM(AM23:AP23) -> 108 | AR23: =AP23 -> 27 | AS23: =AR23 -> 27 | AT23: =AS23 -> 27 | AU23: =AT23 -> 27 | AV23: =SUM(AR23:AU23) -> 108
B24: Income before income taxes | D24: =D21-D22-D23 -> 627 | E24: =E21-E22-E23 -> 971 | F24: 944 | G24: 991 | H24: 3533 | I24: =I21-I22-I23 -> 852 | J24: 926 | K24: 1131 | L24: -146 | M24: =M21-M22-M23 -> 2763 | N24: =N21-N22-N23 -> 839 | O24: 919 | P24: 1046 | Q24: 816 | R24: =R21-R22-R23 -> 3620 | S24: =S21-S22-S23 -> 862 | T24: 829 | U24: 900 | V24: 896 | W24: =W21-W22-W23 -> 3487 | X24: =X21-X22-X23 -> 924 | Y24: 888 | Z24: 820 | AA24: 832 | AB24: =AB21-AB22-AB23 -> 3464 | AC24: =AC21-AC22-AC23 -> 814 | AD24: 823 | AE24: =AE21-AE22-AE23 -> 854.8890653 | AF24: 866.046032 | AG24: 3357.935097 | AH24: 867.955965 | AI24: 864.6659756 | AJ24: 876.6686051 | AK24: 888.5535052 | AL24: =AL21-AL22-AL23 -> 3497.844051 | AM24: 890.5987408 | AN24: 886.9895829 | AO24: 899.4651806 | AP24: 912.0343523 | AQ24: =AQ21-AQ22-AQ23 -> 3589.087857 | AR24: 914.2187156 | AS24: 910.2857048 | AT24: 923.2537701 | AU24: 936.5271911 | AV24: =AV21-AV22-AV23 -> 3684.285382
B25: Income Tax Expense (Benefit) | D25: 195 | E25: 310 | F25: 364 | G25: 325 | H25: =SUM(D25:G25) -> 1194 | I25: 269 | J25: 310 | K25: 361 | L25: 275 | M25: =SUM(I25:L25) -> 1215 | N25: 265 | O25: 281 | P25: 300 | Q25: 306 | R25: =SUM(N25:Q25) -> 1152 | S25: 251 | T25: 269 | U25: 250 | V25: 543 | W25: =SUM(S25:V25) -> 1313 | X25: 246 | Y25: 213 | Z25: 258 | AA25: 189 | AB25: =SUM(X25:AA25) -> 906 | AC25: 214 | AD25: 205 | AE25: =AE24*AE73 -> 256.4667196 | AF25: =AF24*AF73 -> 259.8138096 | AG25: =SUM(AC25:AF25) -> 935.2805292 | AH25: =AH24*AH73 -> 260.3867895 | AI25: =AI24*AI73 -> 259.3997927 | AJ25: =AJ24*AJ73 -> 263.0005815 | AK25: =AK24*AK73 -> 266.5660516 | AL25: =SUM(AH25:AK25) -> 1049.353215 | AM25: =AM24*AM73 -> 267.1796222 | AN25: =AN24*AN73 -> 266.0968749 | AO25: =AO24*AO73 -> 269.8395542 | AP25: =AP24*AP73 -> 273.6103057 | AQ25: =SUM(AM25:AP25) -> 1076.726357 | AR25: =AR24*AR73 -> 274.2656147 | AS25: =AS24*AS73 -> 273.0857114 | AT25: =AT24*AT73 -> 276.976131 | AU25: =AU24*AU73 -> 280.9581573 | AV25: =SUM(AR25:AU25) -> 1105.285614
B26: Net income | D26: =D24-D25 -> 432 | E26: 661 | F26: 580 | G26: 666 | H26: 2339 | I26: 583 | J26: 616 | K26: 770 | L26: -421 | M26: 1548 | N26: 574 | O26: 638 | P26: 746 | Q26: 510 | R26: 2468 | S26: 611 | T26: 560 | U26: 650 | V26: 353 | W26: 2174 | X26: 678 | Y26: 675 | Z26: 562 | AA26: 643 | AB26: 2558 | AC26: 600 | AD26: 618 | AE26: 598.4223457 | AF26: 606.2322224 | AG26: 2422.654568 | AH26: =AH24-AH25 -> 607.5691755 | AI26: 605.2661829 | AJ26: 613.6680236 | AK26: 621.9874536 | AL26: 2448.490836 | AM26: =AM24-AM25 -> 623.4191186 | AN26: 620.892708 | AO26: 629.6256264 | AP26: 638.4240466 | AQ26: =AQ24-AQ25 -> 2512.3615 | AR26: 639.9531009 | AS26: 637.1999933 | AT26: 646.2776391 | AU26: 655.5690338 | AV26: =AV24-AV25 -> 2578.999767
B27: Net Income Attributable to Minority Interest | D27: 44 | E27: 39 | F27: 38 | G27: 38 | H27: =SUM(D27:G27) -> 159 | I27: 41 | J27: 42 | K27: 44 | L27: 37 | M27: =SUM(I27:L27) -> 164 | N27: 41 | O27: 38 | P27: 44 | Q27: 22 | R27: =SUM(N27:Q27) -> 145 | S27: 41 | T27: 36 | U27: 43 | V27: 30 | W27: =SUM(S27:V27) -> 150 | X27: 44 | Y27: 38 | Z27: 39 | AA27: 37 | AB27: =SUM(X27:AA27) -> 158 | AC27: 40 | AD27: 32 | AE27: =(AD27/AD26)*AE26 -> 30.98627033 | AF27: =(AE27/AE26)*AF26 -> 31.39066524 | AG27: =SUM(AC27:AF27) -> 134.3769356 | AH27: =(AG27/AG26)*AH26 -> 33.69992777 | AI27: 33.5721881 | AJ27: 34.03821145 | AK27: 34.49966375 | AL27: =SUM(AH27:AK27) -> 135.8099911 | AM27: =(AL27/AL26)*AM26 -> 34.57907364 | AN27: =(AM27/AM26)*AN26 -> 34.4389417 | AO27: =(AN27/AN26)*AO26 -> 34.92332887 | AP27: =(AO27/AO26)*AP26 -> 35.41134923 | AQ27: =SUM(AM27:AP27) -> 139.3526934 | AR27: =(AQ27/AQ26)*AR26 -> 35.496161 | AS27: =(AR27/AR26)*AS26 -> 35.34345489 | AT27: =(AS27/AS26)*AT26 -> 35.846963 | AU27: =(AT27/AT26)*AU26 -> 36.36232708 | AV27: =SUM(AR27:AU27) -> 143.048906
B28: Net Income Available to Common Shareholders | D28: =D26-D27 -> 388 | E28: =E26-E27 -> 622 | F28: =F26-F27 -> 542 | G28: =G26-G27 -> 628 | H28: =H26-H27 -> 2180 | I28: =I26-I27 -> 542 | J28: =J26-J27 -> 574 | K28: =K26-K27 -> 726 | L28: =L26-L27 -> -458 | M28: =M26-M27 -> 1384 | N28: =N26-N27 -> 533 | O28: =O26-O27 -> 600 | P28: =P26-P27 -> 702 | Q28: =Q26-Q27 -> 488 | R28: =R26-R27 -> 2323 | S28: =S26-S27 -> 570 | T28: =T26-T27 -> 524 | U28: =U26-U27 -> 607 | V28: =V26-V27 -> 323 | W28: =W26-W27 -> 2024 | X28: =X26-X27 -> 634 | Y28: =Y26-Y27 -> 637 | Z28: 523 | AA28: 606 | AB28: 2400 | AC28: =AC26-AC27 -> 560 | AD28: =AD26-AD27 -> 586 | AE28: =AE26-AE27 -> 567.4360754 | AF28: =AF26-AF27 -> 574.8415572 | AG28: =AG26-AG27 -> 2288.277633 | AH28: 573.8692478 | AI28: 571.6939948 | AJ28: 579.6298121 | AK28: 587.4877899 | AL28: =AL26-AL27 -> 2312.680845 | AM28: 588.8400449 | AN28: 586.4537663 | AO28: 594.7022975 | AP28: 603.0126974 | AQ28: =AQ26-AQ27 -> 2373.008806 | AR28: 604.4569399 | AS28: 601.8565384 | AT28: 610.4306761 | AU28: 619.2067067 | AV28: =AV26-AV27 -> 2435.950861
B29: Weighted Avg. Shares - Basic | D29: 919.5 | E29: 916.1 | F29: 913.8 | G29: 911.3 | H29: =AVERAGE(D29:G29) -> 915.175 | I29: 907.7 | J29: 904.6 | K29: 900.1 | L29: 896.5 | M29: =AVERAGE(I29:L29) -> 902.225 | N29: 893.7 | O29: 893.9 | P29: 891.9 | Q29: 884.2800933 | R29: =AVERAGE(N29:Q29) -> 890.9450233 | S29: 884.7 | T29: 883.8 | U29: 880.7 | V29: 878 | W29: =AVERAGE(S29:V29) -> 881.8 | X29: 875.4 | Y29: 871.7 | Z29: 868.8 | AA29: 866.6 | AB29: =AVERAGE(X29:AA29) -> 870.625 | AC29: 862 | AD29: 862 | AE29: =AD29 -> 862 | AF29: =AE29 -> 862 | AG29: =AVERAGE(AC29:AF29) -> 862 | AH29: =AG29 -> 862 | AI29: 862 | AJ29: 862 | AK29: 862 | AL29: =AVERAGE(AH29:AK29) -> 862 | AM29: =AL29 -> 862 | AN29: 862 | AO29: 862 | AP29: 862 | AQ29: =AVERAGE(AM29:AP29) -> 862 | AR29: =AQ29 -> 862 | AS29: 862 | AT29: 862 | AU29: 862 | AV29: =AVERAGE(AR29:AU29) -> 862
B30: Weighted Avg. Shares - Diluted | D30: 928.6 | E30: 925.9 | F30: 922.8 | G30: 920 | H30: =AVERAGE(D30:G30) -> 924.325 | I30: 916.3 | J30: 912.4 | K30: 906.9 | L30: 896.5 | M30: =AVERAGE(I30:L30) -> 908.025 | N30: 900.2 | O30: 901.1 | P30: 899.2 | Q30: 889.3943378 | R30: =AVERAGE(N30:Q30) -> 897.4735845 | S30: 891 | T30: 890.8 | U30: 886.3 | V30: 883.3 | W30: =AVERAGE(S30:V30) -> 887.85 | X30: 879.9 | Y30: 874 | Z30: 871.1 | AA30: 867.5 | AB30: =AVERAGE(X30:AA30) -> 873.125 | AC30: 879.9 | AD30: 879.9 | AE30: =AD30 -> 879.9 | AF30: =AE30 -> 879.9 | AG30: =AVERAGE(AC30:AF30) -> 879.9 | AH30: =AG30 -> 879.9 | AI30: 879.9 | AJ30: 879.9 | AK30: 879.9 | AL30: =AVERAGE(AH30:AK30) -> 879.9 | AM30: =AL30 -> 879.9 | AN30: 879.9 | AO30: 879.9 | AP30: 879.9 | AQ30: =AVERAGE(AM30:AP30) -> 879.9 | AR30: =AQ30 -> 879.9 | AS30: 879.9 | AT30: 879.9 | AU30: 879.9 | AV30: =AVERAGE(AR30:AU30) -> 879.9
B31: Basic EPS | D31: =D28/D29 -> 0.4219684611 | E31: 0.6789651785 | F31: 0.593127599 | G31: 0.6891254252 | H31: 2.382058076 | I31: 0.5971135838 | J31: 0.6345346009 | K31: 0.806577047 | L31: -0.5108756274 | M31: 1.533985425 | N31: 0.5963970012 | O31: 0.6712160197 | P31: 0.7870837538 | Q31: =Q28/Q29 -> 0.5518613431 | R31: 2.74 | S31: 0.6442861987 | T31: 0.59289432 | U31: 0.6892244805 | V31: 0.367881549 | W31: 2.295305058 | X31: 0.7242403473 | Y31: 0.730755994 | Z31: 0.6019797422 | AA31: 0.6992845604 | AB31: =AB28/AB29 -> 2.756640345 | AC31: 0.6496519722 | AD31: 0.6798143852 | AE31: =AE26/AE29 -> 0.6942254591 | AF31: =AF26/AF29 -> 0.7032856408 | AG31: =AG26/AG29 -> 2.810504139 | AH31: =AH26/AH29 -> 0.7048366305 | AI31: 0.7021649454 | AJ31: 0.7119118603 | AK31: 0.7215631713 | AL31: =AL26/AL29 -> 2.840476608 | AM31: =AM26/AM29 -> 0.7232240355 | AN31: 0.7202931648 | AO31: 0.7304241606 | AP31: 0.7406311445 | AQ31: =AQ26/AQ29 -> 2.914572505 | AR31: =AR26/AR29 -> 0.7424049894 | AS31: 0.7392111292 | AT31: 0.7497420407 | AU31: 0.7605209209 | AV31: =AV26/AV29 -> 2.99187908
B32: Diluted EPS | D32: =D28/D30 -> 0.4178332974 | E32: 0.6717788098 | F32: 0.5873428695 | G32: 0.6826086957 | H32: =H26/H30 -> 2.530495226 | I32: 0.591509331 | J32: 0.6291100395 | K32: 0.8005292756 | L32: -0.5108756274 | M32: =M26/M30 -> 1.704798877 | N32: 0.5920906465 | O32: 0.6658528465 | P32: 0.7806939502 | Q32: =Q28/Q30 -> 0.5486879995 | R32: 2.72 | S32: 0.6397306397 | T32: 0.5882352941 | U32: 0.684869683 | V32: 0.3656741764 | W32: =W26/W30 -> 2.448611815 | X32: 0.7205364246 | Y32: 0.7288329519 | Z32: 0.6003903111 | AA32: 0.6985590778 | AB32: 2.929706514 | AC32: 0.6364359586 | AD32: 0.665984771 | AE32: =AE26/AE30 -> 0.6801026772 | AF32: =AF26/AF30 -> 0.6889785457 | AG32: =AG26/AG30 -> 2.753329433 | AH32: =AH26/AH30 -> 0.6904979833 | AI32: 0.6878806489 | AJ32: 0.6974292801 | AK32: 0.7068842523 | AL32: =AL26/AL30 -> 2.782692165 | AM32: =AM26/AM30 -> 0.7085113292 | AN32: 0.7056400819 | AO32: 0.7155649806 | AP32: 0.7255643216 | AQ32: =AQ26/AQ30 -> 2.855280713 | AR32: =AR26/AR30 -> 0.7273020808 | AS32: 0.7241731939 | AT32: 0.7344898728 | AU32: 0.7450494758 | AV32: =AV26/AV30 -> 2.931014623
B33: Dividends Per Share | D33: 0.34 | E33: 0.36 | F33: 0.36 | G33: 0.36 | H33: =SUM(D33:G33) -> 1.42 | I33: 0.36 | J33: 0.38 | K33: 0.38 | L33: 0.38 | M33: =SUM(I33:L33) -> 1.5 | N33: 0.38 | O33: 0.39 | P33: 0.39 | Q33: 0.39 | R33: =SUM(N33:Q33) -> 1.55 | S33: 0.39 | T33: 0.4 | U33: 0.4 | V33: 0.4 | W33: =SUM(S33:V33) -> 1.59 | X33: 0.4 | Y33: 0.42 | Z33: 0.42 | AA33: 0.42 | AB33: =SUM(X33:AA33) -> 1.66 | AC33: 0.42 | AD33: 0.43 | AE33: =AD33*((1+$C$356)^(1/4)) -> 0.4321340606 | AF33: =AE33*((1+$C$356)^(1/4)) -> 0.4342787123 | AG33: =SUM(AC33:AF33) -> 1.716412773 | AH33: =AF33*((1+$C$356)^(1/4)) -> 0.4364340079 | AI33: =AH33*((1+$C$356)^(1/4)) -> 0.4386 | AJ33: =AI33*((1+$C$356)^(1/4)) -> 0.4407767418 | AK33: =AJ33*((1+$C$356)^(1/4)) -> 0.4429642866 | AL33: =SUM(AH33:AK33) -> 1.758775036 | AM33: =AK33*((1+$C$356)^(1/4)) -> 0.445162688 | AN33: =AM33*((1+$C$356)^(1/4)) -> 0.447372 | AO33: =AN33*((1+$C$356)^(1/4)) -> 0.4495922766 | AP33: =AO33*((1+$C$356)^(1/4)) -> 0.4518235723 | AQ33: =SUM(AM33:AP33) -> 1.793950537 | AR33: =AP33*((1+$C$356)^(1/4)) -> 0.4540659418 | AS33: =AR33*((1+$C$356)^(1/4)) -> 0.45631944 | AT33: =AS33*((1+$C$356)^(1/4)) -> 0.4585841222 | AU33: =AT33*((1+$C$356)^(1/4)) -> 0.4608600438 | AV33: =SUM(AR33:AU33) -> 1.829829548
D34: =ROUND((D14-(D38+D42+D46+D50+D54+D62)),0) -> 0 | E34: 0 | F34: 0 | G34: 0 | H34: 0 | I34: 0 | J34: 0 | K34: 0 | L34: 0 | M34: 0 | N34: 0 | O34: 0 | P34: 0 | Q34: 0 | R34: 0 | S34: 0 | T34: 0 | U34: 0 | V34: 0 | W34: 0 | X34: 0 | Y34: 0 | Z34: 0 | AA34: 0 | AB34: 0 | AC34: 0 | AD34: 0 | AE34: 0 | AF34: 0 | AG34: 0 | AH34: 0 | AI34: 0 | AJ34: 0 | AK34: 0 | AL34: 0 | AM34: 0 | AN34: 0 | AO34: 0 | AP34: 0 | AQ34: 0 | AR34: 0 | AS34: 0 | AT34: 0 | AU34: 0 | AV34: 0
B35: Segment Data & Income Statement Ratios | D35: Mar-14 | E35: Jun-14 | F35: Sep-14 | G35: Dec-14 | H35: Dec-14 | I35: Mar-15 | J35: Jun-15 | K35: Sep-15 | L35: Dec-15 | M35: Dec-15 | N35: Mar-16 | O35: Jun-16 | P35: Sep-16 | Q35: Dec-16 | R35: Dec-16 | S35: Mar-17 | T35: Jun-17 | U35: Sep-17 | V35: Dec-17 | W35: Dec-17 | X35: Mar-18 | Y35: Jun-18 | Z35: Sep-18 | AA35: Dec-18 | AB35: Dec-18 | AC35: Mar-19 | AD35: Jun-19 | AE35: Sep-19 | AF35: Dec-19 | AG35: Dec-19 | AH35: Mar-20 | AI35: Jun-20 | AJ35: Sep-20 | AK35: Dec-20 | AL35: Dec-20 | AM35: Mar-21 | AN35: Jun-21 | AO35: Sep-21 | AP35: Dec-21 | AQ35: Dec-21 | AR35: Mar-21 | AS35: Jun-21 | AT35: Sep-21 | AU35: Dec-21 | AV35: Dec-21
D36: 1Q14 | E36: 2Q14 | F36: 3Q14 | G36: 4Q14 | H36: FY 2014 | I36: 1Q15 | J36: 2Q15 | K36: 3Q15 | L36: 4Q15 | M36: FY 2015 | N36: 1Q16 | O36: 2Q16 | P36: 3Q16 | Q36: 4Q16 | R36: FY 2016 | S36: 1Q17 | T36: 2Q17 | U36: 3Q17 | V36: 4Q17 | W36: FY 2017 | X36: 1Q18 | Y36: 2Q18 | Z36: 3Q18 | AA36: 4Q18 | AB36: FY 2018 | AC36: 1Q19 | AD36: 2Q19 | AE36: 3Q19E | AF36: 4Q19E | AG36: FY 2019E | AH36: 1Q20E | AI36: 2Q20E | AJ36: 3Q20E | AK36: 4Q20E | AL36: FY 2020E | AM36: 1Q21E | AN36: 2Q21E | AO36: 3Q21E | AP36: 4Q21E | AQ36: FY 2121E | AR36: 1Q21E | AS36: 2Q21E | AT36: 3Q21E | AU36: 4Q21E | AV36: FY 2121E
B37: Segment Details
B38: North America Net Sales | D38: =1555-E38 -> 785 | E38: 770 | F38: 789 | G38: 780 | H38: =SUM(D38:G38) -> 3124 | I38: 789 | J38: 780 | K38: 791 | L38: 789 | M38: =SUM(I38:L38) -> 3149 | N38: 800 | O38: 793 | P38: 800 | Q38: 790 | R38: =SUM(N38:Q38) -> 3183 | S38: 760 | T38: 764 | U38: 795 | V38: 798 | W38: =SUM(S38:V38) -> 3117 | X38: =1651-Y38 -> 827 | Y38: 824 | Z38: 858 | AA38: 839 | AB38: =SUM(X38:AA38) -> 3348 | AC38: =1699-AD38 -> 853 | AD38: 846 | AE38: =AD38*(1+AE39) -> 858.5962264 | AF38: =AE38*(1+AF39) -> 874.605574 | AG38: =SUM(AC38:AF38) -> 3432.2018 | AH38: =AF38*(1+AH39) -> 877.843088 | AI38: =AH38*(1+AI39) -> 871.38 | AJ38: =AI38*(1+AJ39) -> 884.3541132 | AK38: =AJ38*(1+AK39) -> 900.8437412 | AL38: =SUM(AH38:AK38) -> 3534.420942 | AM38: =AK38*(1+AM39) -> 904.1783806 | AN38: =AM38*(1+AN39) -> 897.5214 | AO38: =AN38*(1+AO39) -> 910.8847366 | AP38: =AO38*(1+AP39) -> 927.8690534 | AQ38: =SUM(AM38:AP38) -> 3640.453571 | AR38: =AP38*(1+AR39) -> 931.3037321 | AS38: =AR38*(1+AS39) -> 924.447042 | AT38: =AS38*(1+AT39) -> 938.2112787 | AU38: =AT38*(1+AU39) -> 955.705125 | AV38: =SUM(AR38:AU38) -> 3749.667178
B39: North America Net Sales Growth (QoQ) | E39: =E38/D38-1 -> -0.01910828025 | F39: =F38/E38-1 -> 0.02467532468 | G39: =G38/F38-1 -> -0.01140684411 | I39: =I38/G38-1 -> 0.01153846154 | J39: =J38/I38-1 -> -0.01140684411 | K39: =K38/J38-1 -> 0.0141025641 | L39: =L38/K38-1 -> -0.002528445006 | M39: =M38/H38-1 -> 0.008002560819 | N39: =N38/L38-1 -> 0.01394169835 | O39: =O38/N38-1 -> -0.00875 | P39: =P38/O38-1 -> 0.008827238335 | Q39: =Q38/P38-1 -> -0.0125 | R39: =R38/M38-1 -> 0.01079707844 | S39: =S38/Q38-1 -> -0.03797468354 | T39: =T38/S38-1 -> 0.005263157895 | U39: =U38/T38-1 -> 0.04057591623 | V39: =V38/U38-1 -> 0.003773584906 | W39: =W38/R38-1 -> -0.02073515551 | X39: =X38/V38-1 -> 0.03634085213 | Y39: =Y38/X38-1 -> -0.003627569528 | Z39: =Z38/Y38-1 -> 0.04126213592 | AA39: =AA38/Z38-1 -> -0.02214452214 | AB39: =AB38/W38-1 -> 0.07410972089 | AC39: =AC38/AA38-1 -> 0.01668653159 | AD39: =AD38/AC38-1 -> -0.008206330598 | AE39: =(1+$C$299)^(1/2)-1 -> 0.01488915651 | AF39: =(1+$C$299)^(1/1.6)-1 -> 0.01864595613 | AG39: =AG38/AB38-1 -> 0.02514988064 | AH39: =(1+$C$299)^(1/8)-1 -> 0.003701684654 | AI39: =(1+$C$299)^(1/-4)-1 -> -0.007362463855 | AJ39: =(1+$C$299)^(1/2)-1 -> 0.01488915651 | AK39: =(1+$C$299)^(1/1.6)-1 -> 0.01864595613 | AL39: =AL38/AG38-1 -> 0.0297823811 | AM39: =(1+$C$299)^(1/8)-1 -> 0.003701684654 | AN39: =(1+$C$299)^(1/-4)-1 -> -0.007362463855 | AO39: =(1+$C$299)^(1/2)-1 -> 0.01488915651 | AP39: =(1+$C$299)^(1/1.6)-1 -> 0.01864595613 | AQ39: =AQ38/AL38-1 -> 0.03 | AR39: =(1+$C$299)^(1/8)-1 -> 0.003701684654 | AS39: =(1+$C$299)^(1/-4)-1 -> -0.007362463855 | AT39: =(1+$C$299)^(1/2)-1 -> 0.01488915651 | AU39: =(1+$C$299)^(1/1.6)-1 -> 0.01864595613 | AV39: =AV38/AQ38-1 -> 0.03
B40: North America Operating Profit | D40: =447-E40 -> 216 | E40: 231 | F40: 240 | G40: 239 | H40: =SUM(D40:G40) -> 926 | I40: 218 | J40: 223 | K40: 258 | L40: 275 | M40: =SUM(I40:L40) -> 974 | N40: 239 | O40: 250 | P40: 273 | Q40: 268 | R40: =SUM(N40:Q40) -> 1030 | S40: 247 | T40: 255 | U40: 264 | V40: 277 | W40: =SUM(S40:V40) -> 1043 | X40: =521-Y40 -> 257 | Y40: 264 | Z40: 259 | AA40: 257 | AB40: =SUM(X40:AA40) -> 1037 | AC40: =503-AD40 -> 249 | AD40: 254 | AE40: =AE38*AE41 -> 240.4069434 | AF40: =AF38*AF41 -> 244.8895607 | AG40: =SUM(AC40:AF40) -> 988.2965041 | AH40: =AH38*AH41 -> 245.7960646 | AI40: 243.9864 | AJ40: 247.6191517 | AK40: 252.2362475 | AL40: =SUM(AH40:AK40) -> 989.6378639 | AM40: =AM38*AM41 -> 253.1699466 | AN40: =AN38*AN41 -> 251.305992 | AO40: =AO38*AO41 -> 255.0477262 | AP40: =AP38*AP41 -> 259.803335 | AQ40: =SUM(AM40:AP40) -> 1019.327 | AR40: =AR38*AR41 -> 260.765045 | AS40: =AS38*AS41 -> 258.8451718 | AT40: =AT38*AT41 -> 262.699158 | AU40: =AU38*AU41 -> 267.597435 | AV40: =SUM(AR40:AU40) -> 1049.90681
B41: North America Operating Margin | D41: =D40/D38 -> 0.2751592357 | E41: 0.3 | F41: 0.3041825095 | G41: 0.3064102564 | H41: 0.2964148528 | I41: 0.2762991128 | J41: 0.2858974359 | K41: 0.3261694058 | L41: 0.3485424588 | M41: 0.3093045411 | N41: 0.29875 | O41: 0.315258512 | P41: 0.34125 | Q41: 0.3392405063 | R41: 0.3235940936 | S41: 0.325 | T41: 0.3337696335 | U41: 0.3320754717 | V41: 0.3471177945 | W41: 0.3346166185 | X41: 0.3107617896 | Y41: 0.3203883495 | Z41: 0.3018648019 | AA41: 0.3063170441 | AB41: 0.3097371565 | AC41: 0.2919109027 | AD41: 0.3002364066 | AE41: =$C$300 -> 0.28 | AF41: =$C$300 -> 0.28 | AG41: =AG40/AG38 -> 0.2879482506 | AH41: =$C$300 -> 0.28 | AI41: 0.28 | AJ41: 0.28 | AK41: 0.28 | AL41: =AL40/AL38 -> 0.28 | AM41: 0.28 | AN41: 0.28 | AO41: 0.28 | AP41: 0.28 | AQ41: =AQ40/AQ38 -> 0.28 | AR41: 0.28 | AS41: 0.28 | AT41: 0.28 | AU41: 0.28 | AV41: =AV40/AV38 -> 0.28
B42: Latin America Net Sales | D42: =2383-E42 -> 1152 | E42: 1231 | F42: 1194 | G42: 1192 | H42: =SUM(D42:G42) -> 4769 | I42: 1087 | J42: 1126 | K42: 1064 | L42: 1050 | M42: =SUM(I42:L42) -> 4327 | N42: 848 | O42: 938 | P42: 924 | Q42: 940 | R42: =SUM(N42:Q42) -> 3650 | S42: 924 | T42: 1002 | U42: 985 | V42: 976 | W42: =SUM(S42:V42) -> 3887 | X42: =1862-Y42 -> 929 | Y42: 933 | Z42: 856 | AA42: 887 | AB42: =SUM(X42:AA42) -> 3605 | AC42: =1818-AD42 -> 889 | AD42: 929 | AE42: =AD42*(1+AE43) -> 947.3978256 | AF42: =AE42*(1+AF43) -> 970.9083155 | AG42: =SUM(AC42:AF42) -> 3736.306141 | AH42: =AF42*(1+AH43) -> 975.6799673 | AI42: =AH42*(1+AI43) -> 966.16 | AJ42: =AI42*(1+AJ43) -> 985.2937387 | AK42: =AJ42*(1+AK43) -> 1009.744648 | AL42: =SUM(AH42:AK42) -> 3936.878354 | AM42: =AK42*(1+AM43) -> 1014.707166 | AN42: =AM42*(1+AN43) -> 1004.8064 | AO42: =AN42*(1+AO43) -> 1024.705488 | AP42: =AO42*(1+AP43) -> 1050.134434 | AQ42: =SUM(AM42:AP42) -> 4094.353488 | AR42: =AP42*(1+AR43) -> 1055.295453 | AS42: =AR42*(1+AS43) -> 1044.998656 | AT42: =AS42*(1+AT43) -> 1065.693708 | AU42: =AT42*(1+AU43) -> 1092.139811 | AV42: =SUM(AR42:AU42) -> 4258.127628
B43: Latin America Net Sales Growth (QoQ) | E43: =E42/D42-1 -> 0.06857638889 | F43: =F42/E42-1 -> -0.03005686434 | G43: =G42/F42-1 -> -0.001675041876 | I43: =I42/G42-1 -> -0.08808724832 | J43: =J42/I42-1 -> 0.03587856486 | K43: =K42/J42-1 -> -0.05506216696 | L43: =L42/K42-1 -> -0.01315789474 | M43: =M42/H42-1 -> -0.09268190396 | N43: =N42/L42-1 -> -0.1923809524 | O43: =O42/N42-1 -> 0.1061320755 | P43: =P42/O42-1 -> -0.01492537313 | Q43: =Q42/P42-1 -> 0.01731601732 | R43: =R42/M42-1 -> -0.1564594407 | S43: =S42/Q42-1 -> -0.0170212766 | T43: =T42/S42-1 -> 0.08441558442 | U43: =U42/T42-1 -> -0.01696606786 | V43: =V42/U42-1 -> -0.009137055838 | W43: =W42/R42-1 -> 0.06493150685 | X43: =X42/V42-1 -> -0.0481557377 | Y43: =Y42/X42-1 -> 0.004305705059 | Z43: =Z42/Y42-1 -> -0.08252947481 | AA43: =AA42/Z42-1 -> 0.03621495327 | AB43: =AB42/W42-1 -> -0.07254952405 | AC43: =AC42/AA42-1 -> 0.002254791432 | AD43: =AD42/AC42-1 -> 0.0449943757 | AE43: =(1+$C$302)^(1/2)-1 -> 0.01980390272 | AF43: =(1+$C$302)^(1/1.6)-1 -> 0.024815858 | AG43: =AG42/AB42-1 -> 0.03642334013 | AH43: =(1+$C$302)^(1/8)-1 -> 0.004914626498 | AI43: =(1+$C$302)^(1/-4)-1 -> -0.009757264257 | AJ43: =(1+$C$302)^(1/2)-1 -> 0.01980390272 | AK43: =(1+$C$302)^(1/1.6)-1 -> 0.024815858 | AL43: =AL42/AG42-1 -> 0.0536819536 | AM43: =(1+$C$302)^(1/8)-1 -> 0.004914626498 | AN43: =(1+$C$302)^(1/-4)-1 -> -0.009757264257 | AO43: =(1+$C$302)^(1/2)-1 -> 0.01980390272 | AP43: =(1+$C$302)^(1/1.6)-1 -> 0.024815858 | AQ43: =AQ42/AL42-1 -> 0.04 | AR43: =(1+$C$302)^(1/8)-1 -> 0.004914626498 | AS43: =(1+$C$302)^(1/-4)-1 -> -0.009757264257 | AT43: =(1+$C$302)^(1/2)-1 -> 0.01980390272 | AU43: =(1+$C$302)^(1/1.6)-1 -> 0.024815858 | AV43: =AV42/AQ42-1 -> 0.04
B44: Latin America Operating Profit | D44: =601-E44 -> 290 | E44: 311 | F44: 330 | G44: 348 | H44: =SUM(D44:G44) -> 1279 | I44: 308 | J44: 321 | K44: 300 | L44: 280 | M44: =SUM(I44:L44) -> 1209 | N44: 247 | O44: 284 | P44: 298 | Q44: 303 | R44: =SUM(N44:Q44) -> 1132 | S44: 271 | T44: 309 | U44: 303 | V44: 288 | W44: =SUM(S44:V44) -> 1171 | X44: =535-Y44 -> 273 | Y44: 262 | Z44: 222 | AA44: 238 | AB44: =SUM(X44:AA44) -> 995 | AC44: =483-AD44 -> 232 | AD44: 251 | AE44: =AE42*AE45 -> 265.2713912 | AF44: =AF42*AF45 -> 271.8543284 | AG44: =SUM(AC44:AF44) -> 1020.12572 | AH44: =AH42*AH45 -> 273.1903908 | AI44: =AI42*AI45 -> 270.5248 | AJ44: =AJ42*AJ45 -> 275.8822468 | AK44: =AK42*AK45 -> 282.7285015 | AL44: =SUM(AH44:AK44) -> 1102.325939 | AM44: =AM42*AM45 -> 284.1180065 | AN44: =AN42*AN45 -> 281.345792 | AO44: =AO42*AO45 -> 286.9175367 | AP44: =AP42*AP45 -> 294.0376415 | AQ44: =SUM(AM44:AP44) -> 1146.418977 | AR44: =AR42*AR45 -> 295.4827267 | AS44: =AS42*AS45 -> 292.5996237 | AT44: =AT42*AT45 -> 298.3942382 | AU44: =AU42*AU45 -> 305.7991472 | AV44: =SUM(AR44:AU44) -> 1192.275736
B45: Latin America Operating Margin | D45: =D44/D42 -> 0.2517361111 | E45: 0.25264013 | F45: 0.2763819095 | G45: 0.2919463087 | H45: 0.2681903963 | I45: 0.2833486661 | J45: 0.285079929 | K45: 0.2819548872 | L45: 0.2666666667 | M45: 0.2794083661 | N45: 0.2912735849 | O45: 0.302771855 | P45: 0.3225108225 | Q45: 0.3223404255 | R45: 0.3101369863 | S45: 0.2932900433 | T45: 0.3083832335 | U45: 0.3076142132 | V45: 0.2950819672 | W45: 0.3012606123 | X45: 0.2938643703 | Y45: 0.2808145766 | Z45: 0.2593457944 | AA45: 0.2683201804 | AB45: 0.2760055479 | AC45: 0.2609673791 | AD45: 0.2701829925 | AE45: =$C$303 -> 0.28 | AF45: =$C$303 -> 0.28 | AG45: =AG44/AG42 -> 0.2730305497 | AH45: =$C$303 -> 0.28 | AI45: =$C$303 -> 0.28 | AJ45: =$C$303 -> 0.28 | AK45: =$C$303 -> 0.28 | AL45: =AL44/AL42 -> 0.28 | AM45: =$C$303 -> 0.28 | AN45: =$C$303 -> 0.28 | AO45: =$C$303 -> 0.28 | AP45: =$C$303 -> 0.28 | AQ45: =AQ44/AQ42 -> 0.28 | AR45: =$C$303 -> 0.28 | AS45: =$C$303 -> 0.28 | AT45: =$C$303 -> 0.28 | AU45: =$C$303 -> 0.28 | AV45: =AV44/AV42 -> 0.28
B46: Europe Net Sales | D46: =1738-E46 -> 865 | E46: 873 | F46: 886 | G46: 782 | H46: =SUM(D46:G46) -> 3406 | I46: 741 | J46: 731 | K46: 728 | L46: 582 | M46: =SUM(I46:L46) -> 2782 | N46: 685 | O46: 606 | P46: 609 | Q46: 442 | R46: =SUM(N46:Q46) -> 2342 | S46: 558 | T46: 584 | U46: 642 | V46: 610 | W46: =SUM(S46:V46) -> 2394 | X46: =1268-Y46 -> 648 | Y46: 620 | Z46: 640 | AA46: 594 | AB46: =SUM(X46:AA46) -> 2502 | AC46: =1190-AD46 -> 602 | AD46: 588 | AE46: =AD46*(1+AE47) -> 582.0903023 | AF46: =AE46*(1+AF47) -> 574.7866349 | AG46: =SUM(AC46:AF46) -> 2346.876937 | AH46: =AF46*(1+AH47) -> 573.3369354 | AI46: =AH46*(1+AI47) -> 576.24 | AJ46: =AI46*(1+AJ47) -> 570.4484962 | AK46: =AJ46*(1+AK47) -> 563.2909022 | AL46: =SUM(AH46:AK46) -> 2283.316334 | AM46: =AK46*(1+AM47) -> 561.8701967 | AN46: =AM46*(1+AN47) -> 564.7152 | AO46: =AN46*(1+AO47) -> 559.0395263 | AP46: =AO46*(1+AP47) -> 552.0250841 | AQ46: =SUM(AM46:AP46) -> 2237.650007 | AR46: =AP46*(1+AR47) -> 550.6327927 | AS46: =AR46*(1+AS47) -> 553.420896 | AT46: =AS46*(1+AT47) -> 547.8587358 | AU46: =AT46*(1+AU47) -> 540.9845825 | AV46: =SUM(AR46:AU46) -> 2192.897007
B47: Europe Net Sales Growth (QoQ) | E47: =E46/D46-1 -> 0.009248554913 | F47: =F46/E46-1 -> 0.01489117984 | G47: =G46/F46-1 -> -0.1173814898 | I47: =I46/G46-1 -> -0.05242966752 | J47: =J46/I46-1 -> -0.01349527665 | K47: =K46/J46-1 -> -0.004103967168 | L47: =L46/K46-1 -> -0.2005494505 | M47: =M46/H46-1 -> -0.1832061069 | N47: =N46/L46-1 -> 0.176975945 | O47: =O46/N46-1 -> -0.1153284672 | P47: =P46/O46-1 -> 0.00495049505 | Q47: =Q46/P46-1 -> -0.2742200328 | R47: =R46/M46-1 -> -0.1581595974 | S47: =S46/Q46-1 -> 0.2624434389 | T47: =T46/S46-1 -> 0.04659498208 | U47: =U46/T46-1 -> 0.09931506849 | V47: =V46/U46-1 -> -0.04984423676 | W47: =W46/R46-1 -> 0.02220324509 | X47: =X46/V46-1 -> 0.06229508197 | Y47: =Y46/X46-1 -> -0.04320987654 | Z47: =Z46/Y46-1 -> 0.03225806452 | AA47: =AA46/Z46-1 -> -0.071875 | AB47: =AB46/W46-1 -> 0.04511278195 | AC47: =AC46/AA46-1 -> 0.01346801347 | AD47: =AD46/AC46-1 -> -0.02325581395 | AE47: =(1+$C$305)^(1/2)-1 -> -0.01005050634 | AF47: =(1+$C$305)^(1/1.6)-1 -> -0.01254730986 | AG47: =AG46/AB46-1 -> -0.06199962544 | AH47: =(1+$C$305)^(1/8)-1 -> -0.00252215243 | AI47: =(1+$C$305)^(1/-4)-1 -> 0.005063452998 | AJ47: =(1+$C$305)^(1/2)-1 -> -0.01005050634 | AK47: =(1+$C$305)^(1/1.6)-1 -> -0.01254730986 | AL47: =AL46/AG46-1 -> -0.02708305764 | AM47: =(1+$C$305)^(1/8)-1 -> -0.00252215243 | AN47: =(1+$C$305)^(1/-4)-1 -> 0.005063452998 | AO47: =(1+$C$305)^(1/2)-1 -> -0.01005050634 | AP47: =(1+$C$305)^(1/1.6)-1 -> -0.01254730986 | AQ47: =AQ46/AL46-1 -> -0.02 | AR47: =(1+$C$305)^(1/8)-1 -> -0.00252215243 | AS47: =(1+$C$305)^(1/-4)-1 -> 0.005063452998 | AT47: =(1+$C$305)^(1/2)-1 -> -0.01005050634 | AU47: =(1+$C$305)^(1/1.6)-1 -> -0.01254730986 | AV47: =AV46/AQ46-1 -> -0.02
B48: Europe Operating Profit | D48: =444-E48 -> 217 | E48: 227 | F48: 237 | G48: 196 | H48: =SUM(D48:G48) -> 877 | I48: 184 | J48: 183 | K48: 206 | L48: 149 | M48: =SUM(I48:L48) -> 722 | N48: 168 | O48: 138 | P48: 158 | Q48: 115 | R48: =SUM(N48:Q48) -> 579 | S48: 142 | T48: 146 | U48: 163 | V48: 154 | W48: =SUM(S48:V48) -> 605 | X48: =318-Y48 -> 162 | Y48: 156 | Z48: 162 | AA48: 154 | AB48: =SUM(X48:AA48) -> 634 | AC48: =299-AD48 -> 151 | AD48: 148 | AE48: =AE46*AE49 -> 162.9852846 | AF48: =AF46*AF49 -> 160.9402578 | AG48: =SUM(AC48:AF48) -> 622.9255424 | AH48: =AH46*AH49 -> 160.5343419 | AI48: =AI46*AI49 -> 161.3472 | AJ48: =AJ46*AJ49 -> 159.7255789 | AK48: =AK46*AK49 -> 157.7214526 | AL48: =SUM(AH48:AK48) -> 639.3285735 | AM48: =AM46*AM49 -> 157.3236551 | AN48: =AN46*AN49 -> 158.120256 | AO48: =AO46*AO49 -> 156.5310674 | AP48: =AP46*AP49 -> 154.5670236 | AQ48: =SUM(AM48:AP48) -> 626.542002 | AR48: =AR46*AR49 -> 154.177182 | AS48: =AS46*AS49 -> 154.9578509 | AT48: =AT46*AT49 -> 153.400446 | AU48: =AU46*AU49 -> 151.4756831 | AV48: =SUM(AR48:AU48) -> 614.011162
B49: Europe Operating Margin | D49: =D48/D46 -> 0.250867052 | E49: 0.2600229095 | F49: 0.2674943567 | G49: 0.2506393862 | H49: 0.257486788 | I49: 0.2483130904 | J49: 0.2503419973 | K49: 0.282967033 | L49: 0.2560137457 | M49: 0.2595255212 | N49: 0.2452554745 | O49: 0.2277227723 | P49: 0.2594417077 | Q49: 0.2601809955 | R49: 0.2472245944 | S49: 0.2544802867 | T49: 0.25 | U49: 0.253894081 | V49: 0.2524590164 | W49: 0.2527151211 | X49: 0.25 | Y49: 0.2516129032 | Z49: 0.253125 | AA49: 0.2592592593 | AB49: 0.2533972822 | AC49: 0.2508305648 | AD49: 0.2517006803 | AE49: =$C$306 -> 0.28 | AF49: =$C$306 -> 0.28 | AG49: =AG48/AG46 -> 0.2654274421 | AH49: =$C$306 -> 0.28 | AI49: =$C$306 -> 0.28 | AJ49: =$C$306 -> 0.28 | AK49: =$C$306 -> 0.28 | AL49: =AL48/AL46 -> 0.28 | AM49: =$C$306 -> 0.28 | AN49: =$C$306 -> 0.28 | AO49: =$C$306 -> 0.28 | AP49: =$C$306 -> 0.28 | AQ49: =AQ48/AQ46 -> 0.28 | AR49: =$C$306 -> 0.28 | AS49: =$C$306 -> 0.28 | AT49: =$C$306 -> 0.28 | AU49: =$C$306 -> 0.28 | AV49: =AV48/AV46 -> 0.28
B50: APAC Net Sales | D50: =1282-E50 -> 672 | E50: 610 | F50: 634 | G50: =2515-SUM(D50:F50) -> 599 | H50: =SUM(D50:G50) -> 2515 | I50: 661 | J50: 623 | K50: 624 | L50: 658 | M50: =SUM(I50:L50) -> 2566 | N50: 646 | O50: 697 | P50: 723 | Q50: 730 | R50: =SUM(N50:Q50) -> 2796 | S50: 720 | T50: 663 | U50: 728 | V50: 670 | W50: =SUM(S50:V50) -> 2781 | X50: =1433-Y50 -> 759 | Y50: 674 | Z50: 673 | AA50: 628 | AB50: =SUM(X50:AA50) -> 2734 | AC50: =1346-AD50 -> 700 | AD50: 646 | AE50: =AD50*(1+AE51) -> 642.7618844 | AF50: =AE50*(1+AF51) -> 638.7370555 | AG50: =SUM(AC50:AF50) -> 2627.49894 | AH50: =AF50*(1+AH51) -> 637.9351191 | AI50: =AH50*(1+AI51) -> 639.54 | AJ50: =AI50*(1+AJ51) -> 636.3342655 | AK50: =AJ50*(1+AK51) -> 632.3496849 | AL50: =SUM(AH50:AK50) -> 2546.15907 | AM50: =AK50*(1+AM51) -> 631.5557679 | AN50: =AM50*(1+AN51) -> 633.1446 | AO50: =AN50*(1+AO51) -> 629.9709229 | AP50: =AO50*(1+AP51) -> 626.0261881 | AQ50: =SUM(AM50:AP50) -> 2520.697479 | AR50: =AP50*(1+AR51) -> 625.2402102 | AS50: =AR50*(1+AS51) -> 626.813154 | AT50: =AS50*(1+AT51) -> 623.6712136 | AU50: =AT50*(1+AU51) -> 619.7659262 | AV50: =SUM(AR50:AU50) -> 2495.490504
B51: APAC Net Sales Growth (QoQ) | E51: =E50/D50-1 -> -0.09226190476 | F51: =F50/E50-1 -> 0.0393442623 | G51: =G50/F50-1 -> -0.05520504732 | I51: =I50/G50-1 -> 0.1035058431 | J51: =J50/I50-1 -> -0.05748865356 | K51: =K50/J50-1 -> 0.001605136437 | L51: =L50/K50-1 -> 0.05448717949 | M51: =M50/H50-1 -> 0.02027833002 | N51: =N50/L50-1 -> -0.01823708207 | O51: =O50/N50-1 -> 0.07894736842 | P51: =P50/O50-1 -> 0.03730272597 | Q51: =Q50/P50-1 -> 0.009681881051 | R51: =R50/M50-1 -> 0.08963367108 | S51: =S50/Q50-1 -> -0.01369863014 | T51: =T50/S50-1 -> -0.07916666667 | U51: =U50/T50-1 -> 0.09803921569 | V51: =V50/U50-1 -> -0.07967032967 | W51: =W50/R50-1 -> -0.005364806867 | X51: =X50/V50-1 -> 0.1328358209 | Y51: =Y50/X50-1 -> -0.1119894598 | Z51: =Z50/Y50-1 -> -0.001483679525 | AA51: =AA50/Z50-1 -> -0.06686478455 | AB51: =AB50/W50-1 -> -0.01690039554 | AC51: =AC50/AA50-1 -> 0.1146496815 | AD51: =AD50/AC50-1 -> -0.07714285714 | AE51: =(1+$C$308)^(1/2)-1 -> -0.005012562893 | AF51: =(1+$C$308)^(1/1.6)-1 -> -0.006261772782 | AG51: =AG50/AB50-1 -> -0.03895430144 | AH51: =(1+$C$308)^(1/8)-1 -> -0.001255503177 | AI51: =(1+$C$308)^(1/-4)-1 -> 0.002515743148 | AJ51: =(1+$C$308)^(1/2)-1 -> -0.005012562893 | AK51: =(1+$C$308)^(1/1.6)-1 -> -0.006261772782 | AL51: =AL50/AG50-1 -> -0.03095714676 | AM51: =(1+$C$308)^(1/8)-1 -> -0.001255503177 | AN51: =(1+$C$308)^(1/-4)-1 -> 0.002515743148 | AO51: =(1+$C$308)^(1/2)-1 -> -0.005012562893 | AP51: =(1+$C$308)^(1/1.6)-1 -> -0.006261772782 | AQ51: =AQ50/AL50-1 -> -0.01 | AR51: =(1+$C$308)^(1/8)-1 -> -0.001255503177 | AS51: =(1+$C$308)^(1/-4)-1 -> 0.002515743148 | AT51: =(1+$C$308)^(1/2)-1 -> -0.005012562893 | AU51: =(1+$C$308)^(1/1.6)-1 -> -0.006261772782 | AV51: =AV50/AQ50-1 -> -0.01
B52: APAC Operating Profit | D52: =371-E52 -> 193 | E52: 178 | F52: 187 | G52: =736-SUM(D52:F52) -> 178 | H52: =SUM(D52:G52) -> 736 | I52: 193 | J52: 181 | K52: 195 | L52: 212 | M52: =SUM(I52:L52) -> 781 | N52: 192 | O52: 219 | P52: 230 | Q52: 246 | R52: =SUM(N52:Q52) -> 887 | S52: 219 | T52: 206 | U52: 220 | V52: 197 | W52: =SUM(S52:V52) -> 842 | X52: =429-Y52 -> 226 | Y52: 203 | Z52: 191 | AA52: 157 | AB52: =SUM(X52:AA52) -> 777 | AC52: =363-AD52 -> 189 | AD52: 174 | AE52: =AE50*AE53 -> 179.9733276 | AF52: =AF50*AF53 -> 178.8463755 | AG52: =SUM(AC52:AF52) -> 721.8197032 | AH52: =AH50*AH53 -> 178.6218333 | AI52: =AI50*AI53 -> 179.0712 | AJ52: =AJ50*AJ53 -> 178.1735943 | AK52: =AK50*AK53 -> 177.0579118 | AL52: =SUM(AH52:AK52) -> 712.9245395 | AM52: =AM50*AM53 -> 176.835615 | AN52: =AN50*AN53 -> 177.280488 | AO52: =AO50*AO53 -> 176.3918584 | AP52: =AP50*AP53 -> 175.2873327 | AQ52: =SUM(AM52:AP52) -> 705.7952941 | AR52: =AR50*AR53 -> 175.0672589 | AS52: =AS50*AS53 -> 175.5076831 | AT52: =AT50*AT53 -> 174.6279398 | AU52: =AU50*AU53 -> 173.5344593 | AV52: =SUM(AR52:AU52) -> 698.7373411
B53: APAC Operating Margin | D53: =D52/D50 -> 0.287202381 | E53: 0.2918032787 | F53: 0.2949526814 | G53: 0.2971619366 | H53: 0.2926441352 | I53: 0.2919818457 | J53: 0.290529695 | K53: 0.3125 | L53: 0.3221884498 | M53: 0.3043647701 | N53: 0.2972136223 | O53: 0.3142037303 | P53: 0.3181189488 | Q53: 0.3369863014 | R53: 0.3172389127 | S53: 0.3041666667 | T53: 0.3107088989 | U53: 0.3021978022 | V53: 0.2940298507 | W53: 0.3027687882 | X53: 0.2977602108 | Y53: 0.3011869436 | Z53: 0.2838038633 | AA53: 0.25 | AB53: 0.2841989759 | AC53: 0.27 | AD53: 0.2693498452 | AE53: =$C$309 -> 0.28 | AF53: =$C$309 -> 0.28 | AG53: =AG52/AG50 -> 0.2747174099 | AH53: =$C$309 -> 0.28 | AI53: =$C$309 -> 0.28 | AJ53: =$C$309 -> 0.28 | AK53: =$C$309 -> 0.28 | AL53: =AL52/AL50 -> 0.28 | AM53: =$C$309 -> 0.28 | AN53: =$C$309 -> 0.28 | AO53: =$C$309 -> 0.28 | AP53: =$C$309 -> 0.28 | AQ53: =AQ52/AQ50 -> 0.28 | AR53: =$C$309 -> 0.28 | AS53: =$C$309 -> 0.28 | AT53: =$C$309 -> 0.28 | AU53: =$C$309 -> 0.28 | AV53: =AV52/AV50 -> 0.28
B54: Africa/Eurasia Net Sales | D54: =606-E54 -> 298 | E54: 308 | F54: 310 | G54: =1208-SUM(D54:F54) -> 292 | H54: =SUM(D54:G54) -> 1208 | I54: 254 | J54: 254 | K54: 246 | L54: 244 | M54: =SUM(I54:L54) -> 998 | N54: 231 | O54: 239 | P54: 250 | Q54: 240 | R54: =SUM(N54:Q54) -> 960 | S54: 246 | T54: 241 | U54: 251 | V54: 245 | W54: =SUM(S54:V54) -> 983 | X54: =498-Y54 -> 255 | Y54: 243 | Z54: 236 | AA54: 233 | AB54: =SUM(X54:AA54) -> 967 | AC54: =484-AD54 -> 240 | AD54: 244 | AE54: =AD54*(1+AE55) -> 246.4279205 | AF54: =AE54*(1+AF55) -> 249.4968228 | AG54: =SUM(AC54:AF54) -> 979.9247433 | AH54: =AF54*(1+AH55) -> 250.1151744 | AI54: =AH54*(1+AI55) -> 248.88 | AJ54: =AI54*(1+AJ55) -> 251.3564789 | AK54: =AJ54*(1+AK55) -> 254.4867593 | AL54: =SUM(AH54:AK54) -> 1004.838413 | AM54: =AK54*(1+AM55) -> 255.1174779 | AN54: =AM54*(1+AN55) -> 253.8576 | AO54: =AN54*(1+AO55) -> 256.3836085 | AP54: =AO54*(1+AP55) -> 259.5764945 | AQ54: =SUM(AM54:AP54) -> 1024.935181 | AR54: =AP54*(1+AR55) -> 260.2198275 | AS54: =AR54*(1+AS55) -> 258.934752 | AT54: =AS54*(1+AT55) -> 261.5112807 | AU54: =AT54*(1+AU55) -> 264.7680244 | AV54: =SUM(AR54:AU54) -> 1045.433884
B55: Africa/Eurasia Net Sales Growth (QoQ) | E55: =E54/D54-1 -> 0.03355704698 | F55: =F54/E54-1 -> 0.006493506494 | G55: =G54/F54-1 -> -0.05806451613 | I55: =I54/G54-1 -> -0.1301369863 | J55: =J54/I54-1 -> 0 | K55: =K54/J54-1 -> -0.03149606299 | L55: =L54/K54-1 -> -0.008130081301 | M55: =M54/H54-1 -> -0.1738410596 | N55: =N54/L54-1 -> -0.05327868852 | O55: =O54/N54-1 -> 0.03463203463 | P55: =P54/O54-1 -> 0.0460251046 | Q55: =Q54/P54-1 -> -0.04 | R55: =R54/M54-1 -> -0.0380761523 | S55: =S54/Q54-1 -> 0.025 | T55: =T54/S54-1 -> -0.02032520325 | U55: =U54/T54-1 -> 0.04149377593 | V55: =V54/U54-1 -> -0.02390438247 | W55: =W54/R54-1 -> 0.02395833333 | X55: =X54/V54-1 -> 0.04081632653 | Y55: =Y54/X54-1 -> -0.04705882353 | Z55: =Z54/Y54-1 -> -0.02880658436 | AA55: =AA54/Z54-1 -> -0.01271186441 | AB55: =AB54/W54-1 -> -0.01627670397 | AC55: =AC54/AA54-1 -> 0.03004291845 | AD55: =AD54/AC54-1 -> 0.01666666667 | AE55: =(1+$C$311)^(1/2)-1 -> 0.009950493836 | AF55: =(1+$C$311)^(1/1.6)-1 -> 0.01245354965 | AG55: =AG54/AB54-1 -> 0.01336581524 | AH55: =(1+$C$311)^(1/8)-1 -> 0.002478394567 | AI55: =(1+$C$311)^(1/-4)-1 -> -0.00493842252 | AJ55: =(1+$C$311)^(1/2)-1 -> 0.009950493836 | AK55: =(1+$C$311)^(1/1.6)-1 -> 0.01245354965 | AL55: =AL54/AG54-1 -> 0.02542406388 | AM55: =(1+$C$311)^(1/8)-1 -> 0.002478394567 | AN55: =(1+$C$311)^(1/-4)-1 -> -0.00493842252 | AO55: =(1+$C$311)^(1/2)-1 -> 0.009950493836 | AP55: =(1+$C$311)^(1/1.6)-1 -> 0.01245354965 | AQ55: =AQ54/AL54-1 -> 0.02 | AR55: =(1+$C$311)^(1/8)-1 -> 0.002478394567 | AS55: =(1+$C$311)^(1/-4)-1 -> -0.00493842252 | AT55: =(1+$C$311)^(1/2)-1 -> 0.009950493836 | AU55: =(1+$C$311)^(1/1.6)-1 -> 0.01245354965 | AV55: =AV54/AQ54-1 -> 0.02
B56: Africa/Eurasia Operating Profit | D56: =117-E56 -> 59 | E56: 58 | F56: 60 | G56: =235-SUM(D56:F56) -> 58 | H56: =SUM(D56:G56) -> 235 | I56: 39 | J56: 45 | K56: 44 | L56: 50 | M56: =SUM(I56:L56) -> 178 | N56: 43 | O56: 45 | P56: 50 | Q56: 48 | R56: =SUM(N56:Q56) -> 186 | S56: 46 | T56: 45 | U56: 44 | V56: 45 | W56: =SUM(S56:V56) -> 180 | X56: =92-Y56 -> 50 | Y56: 42 | Z56: 41 | AA56: 40 | AB56: =SUM(X56:AA56) -> 173 | AC56: =93-AD56 -> 46 | AD56: 47 | AE56: =AE54*AE57 -> 46.82130489 | AF56: =AF54*AF57 -> 47.40439634 | AG56: =SUM(AC56:AF56) -> 187.2257012 | AH56: =AH54*AH57 -> 47.52188314 | AI56: =AI54*AI57 -> 47.2872 | AJ56: =AJ54*AJ57 -> 47.75773099 | AK56: =AK54*AK57 -> 48.35248427 | AL56: =SUM(AH56:AK56) -> 190.9192984 | AM56: =AM54*AM57 -> 48.4723208 | AN56: =AN54*AN57 -> 48.232944 | AO56: =AO54*AO57 -> 48.71288561 | AP56: =AP54*AP57 -> 49.31953395 | AQ56: =SUM(AM56:AP56) -> 194.7376844 | AR56: =AR54*AR57 -> 49.44176722 | AS56: =AS54*AS57 -> 49.19760288 | AT56: =AT54*AT57 -> 49.68714332 | AU56: =AU54*AU57 -> 50.30592463 | AV56: =SUM(AR56:AU56) -> 198.6324381
B57: Africa/Eurasia Operating Margin | D57: =D56/D54 -> 0.1979865772 | E57: 0.1883116883 | F57: 0.1935483871 | G57: 0.198630137 | H57: 0.1945364238 | I57: 0.1535433071 | J57: 0.1771653543 | K57: 0.1788617886 | L57: 0.2049180328 | M57: 0.1783567134 | N57: 0.1861471861 | O57: 0.1882845188 | P57: 0.2 | Q57: 0.2 | R57: 0.19375 | S57: 0.1869918699 | T57: 0.1867219917 | U57: 0.1752988048 | V57: 0.1836734694 | W57: 0.1831129196 | X57: 0.1960784314 | Y57: 0.1728395062 | Z57: 0.1737288136 | AA57: 0.1716738197 | AB57: 0.1789038263 | AC57: 0.1916666667 | AD57: 0.1926229508 | AE57: =$C$312 -> 0.19 | AF57: =$C$312 -> 0.19 | AG57: =AG56/AG54 -> 0.191061306 | AH57: =$C$312 -> 0.19 | AI57: =$C$312 -> 0.19 | AJ57: =$C$312 -> 0.19 | AK57: =$C$312 -> 0.19 | AL57: =AL56/AL54 -> 0.19 | AM57: =$C$312 -> 0.19 | AN57: =$C$312 -> 0.19 | AO57: =$C$312 -> 0.19 | AP57: =$C$312 -> 0.19 | AQ57: =AQ56/AQ54 -> 0.19 | AR57: =$C$312 -> 0.19 | AS57: =$C$312 -> 0.19 | AT57: =$C$312 -> 0.19 | AU57: =$C$312 -> 0.19 | AV57: =AV56/AV54 -> 0.19
B58: Oral, Personal and Home Care Total Revenue | D58: =SUM(D38,D42,D46,D50,D54) -> 3772 | E58: 3792 | F58: 3813 | G58: 3645 | H58: 15022 | I58: 3532 | J58: 3514 | K58: 3453 | L58: 3323 | M58: 13822 | N58: 3210 | O58: 3273 | P58: 3306 | Q58: 3142 | R58: 12931 | S58: 3208 | T58: 3254 | U58: 3401 | V58: 3299 | W58: 13162 | X58: 3418 | Y58: 3294 | Z58: 3263 | AA58: 3181 | AB58: 13156 | AC58: 3284 | AD58: 3253 | AE58: 3277.274159 | AF58: 3308.534403 | AG58: 13122.80856 | AH58: 3314.910284 | AI58: 3302.2 | AJ58: 3327.787093 | AK58: 3360.715736 | AL58: 13305.61311 | AM58: 3367.428989 | AN58: 3354.0452 | AO58: 3380.984282 | AP58: 3415.631254 | AQ58: 13518.08973 | AR58: 3422.692015 | AS58: 3408.6145 | AT58: 3436.946216 | AU58: 3473.36347 | AV58: 13741.6162
B59: Oral, Personal and Home Care Total Operating Profit | D59: =SUM(D40,D44,D48,D52,D56) -> 975 | E59: =SUM(E40,E44,E48,E52,E56) -> 1005 | F59: =SUM(F40,F44,F48,F52,F56) -> 1054 | G59: =SUM(G40,G44,G48,G52,G56) -> 1019 | H59: =SUM(D59:G59) -> 4053 | I59: =SUM(I40,I44,I48,I52,I56) -> 942 | J59: =SUM(J40,J44,J48,J52,J56) -> 953 | K59: =SUM(K40,K44,K48,K52,K56) -> 1003 | L59: =SUM(L40,L44,L48,L52,L56) -> 966 | M59: =SUM(I59:L59) -> 3864 | N59: =SUM(N40,N44,N48,N52,N56) -> 889 | O59: =SUM(O40,O44,O48,O52,O56) -> 936 | P59: =SUM(P40,P44,P48,P52,P56) -> 1009 | Q59: =SUM(Q40,Q44,Q48,Q52,Q56) -> 980 | R59: =SUM(N59:Q59) -> 3814 | S59: =SUM(S40,S44,S48,S52,S56) -> 925 | T59: =SUM(T40,T44,T48,T52,T56) -> 961 | U59: =SUM(U40,U44,U48,U52,U56) -> 994 | V59: =SUM(V40,V44,V48,V52,V56) -> 961 | W59: =SUM(S59:V59) -> 3841 | X59: =SUM(X40,X44,X48,X52,X56) -> 968 | Y59: =SUM(Y40,Y44,Y48,Y52,Y56) -> 927 | Z59: =SUM(Z40,Z44,Z48,Z52,Z56) -> 875 | AA59: =SUM(AA40,AA44,AA48,AA52,AA56) -> 846 | AB59: =SUM(X59:AA59) -> 3616 | AC59: =SUM(AC40,AC44,AC48,AC52,AC56) -> 867 | AD59: =SUM(AD40,AD44,AD48,AD52,AD56) -> 874 | AE59: =SUM(AE40,AE44,AE48,AE52,AE56) -> 895.4582517 | AF59: =SUM(AF40,AF44,AF48,AF52,AF56) -> 903.9349187 | AG59: =SUM(AC59:AF59) -> 3540.39317 | AH59: =SUM(AH40,AH44,AH48,AH52,AH56) -> 905.6645139 | AI59: =SUM(AI40,AI44,AI48,AI52,AI56) -> 902.2168 | AJ59: =SUM(AJ40,AJ44,AJ48,AJ52,AJ56) -> 909.1583028 | AK59: =SUM(AK40,AK44,AK48,AK52,AK56) -> 918.0965977 | AL59: =SUM(AH59:AK59) -> 3635.136214 | AM59: =SUM(AM40,AM44,AM48,AM52,AM56) -> 919.9195439 | AN59: =SUM(AN40,AN44,AN48,AN52,AN56) -> 916.285472 | AO59: =SUM(AO40,AO44,AO48,AO52,AO56) -> 923.6010743 | AP59: =SUM(AP40,AP44,AP48,AP52,AP56) -> 933.0148667 | AQ59: =SUM(AM59:AP59) -> 3692.820957 | AR59: =SUM(AR40,AR44,AR48,AR52,AR56) -> 934.9339798 | AS59: =SUM(AS40,AS44,AS48,AS52,AS56) -> 931.1079323 | AT59: =SUM(AT40,AT44,AT48,AT52,AT56) -> 938.8089254 | AU59: =SUM(AU40,AU44,AU48,AU52,AU56) -> 948.7126493 | AV59: =SUM(AR59:AU59) -> 3753.563487
B60: Oral, Personal and Home Care Operating Margin | D60: =D59/D58 -> 0.2584835631 | E60: 0.2650316456 | F60: 0.2764227642 | G60: 0.2795610425 | H60: 0.269804287 | I60: =I59/I58 -> 0.2667044168 | J60: 0.2712009106 | K60: 0.2904720533 | L60: 0.2907011736 | M60: 0.2795543337 | N60: =N59/N58 -> 0.2769470405 | O60: 0.2859761687 | P60: 0.3052026618 | Q60: 0.3119032463 | R60: 0.2949501199 | S60: =S59/S58 -> 0.2883416459 | T60: 0.2953288261 | U60: 0.2922669803 | V60: 0.2913003941 | W60: 0.2918249506 | X60: 0.2832065535 | Y60: 0.281420765 | Z60: 0.2681581367 | AA60: =AA59/AA58 -> 0.2659541025 | AB60: 0.2748555792 | AC60: 0.2640073082 | AD60: 0.2686750692 | AE60: 0.2732326343 | AF60: 0.2732130934 | AG60: 0.2697892874 | AH60: 0.273209359 | AI60: 0.2732168857 | AJ60: 0.2732020642 | AK60: 0.2731848421 | AL60: =AL59/AL58 -> 0.2732032101 | AM60: 0.2731815717 | AN60: 0.2731881705 | AO60: 0.273175205 | AP60: 0.2731603025 | AQ60: =AQ59/AQ58 -> 0.2731762425 | AR60: 0.2731574958 | AS60: 0.2731631671 | AT60: 0.273152056 | AU60: 0.2731394677 | AV60: =AV59/AV58 -> 0.2731529852
B61: Oral, Personal and Home Care
B62: Pet Nutrition Net Sales | D62: 553 | E62: 560 | F62: 566 | G62: 576 | H62: =SUM(D62:G62) -> 2255 | I62: 538 | J62: 552 | K62: 546 | L62: 576 | M62: =SUM(I62:L62) -> 2212 | N62: 552 | O62: 572 | P62: 561 | Q62: 579 | R62: =SUM(N62:Q62) -> 2264 | S62: 554 | T62: 572 | U62: 573 | V62: 593 | W62: =SUM(S62:V62) -> 2292 | X62: 584 | Y62: 592 | Z62: 582 | AA62: 630 | AB62: =SUM(X62:AA62) -> 2388 | AC62: 600 | AD62: 613 | AE62: =AD62*(1+AE63) -> 625.1397924 | AF62: =AE62*(1+AF63) -> 640.6531727 | AG62: =SUM(AC62:AF62) -> 2478.792965 | AH62: =AF62*(1+AH63) -> 643.8017437 | AI62: =AH62*(1+AI63) -> 637.52 | AJ62: =AI62*(1+AJ63) -> 650.1453841 | AK62: =AJ62*(1+AK63) -> 666.2792996 | AL62: =SUM(AH62:AK62) -> 2597.746427 | AM62: =AK62*(1+AM63) -> 669.5538135 | AN62: =AM62*(1+AN63) -> 663.0208 | AO62: =AN62*(1+AO63) -> 676.1511994 | AP62: =AO62*(1+AP63) -> 692.9304716 | AQ62: =SUM(AM62:AP62) -> 2701.656284 | AR62: =AP62*(1+AR63) -> 696.335966 | AS62: =AR62*(1+AS63) -> 689.541632 | AT62: =AS62*(1+AT63) -> 703.1972474 | AU62: =AT62*(1+AU63) -> 720.6476904 | AV62: =SUM(AR62:AU62) -> 2809.722536
B63: Pet Nutrition Net Sales Growth (QoQ) | E63: =E62/D62-1 -> 0.01265822785 | F63: =F62/E62-1 -> 0.01071428571 | G63: =G62/F62-1 -> 0.01766784452 | I63: =I62/G62-1 -> -0.06597222222 | J63: =J62/I62-1 -> 0.02602230483 | K63: =K62/J62-1 -> -0.01086956522 | L63: =L62/K62-1 -> 0.05494505495 | M63: =M62/H62-1 -> -0.01906873614 | N63: =N62/L62-1 -> -0.04166666667 | O63: =O62/N62-1 -> 0.03623188406 | P63: =P62/O62-1 -> -0.01923076923 | Q63: =Q62/P62-1 -> 0.0320855615 | R63: =R62/M62-1 -> 0.02350813743 | S63: =S62/Q62-1 -> -0.04317789292 | T63: =T62/S62-1 -> 0.03249097473 | U63: =U62/T62-1 -> 0.001748251748 | V63: =V62/U62-1 -> 0.03490401396 | W63: =W62/R62-1 -> 0.01236749117 | X63: =X62/V62-1 -> -0.01517706577 | Y63: =Y62/X62-1 -> 0.01369863014 | Z63: =Z62/Y62-1 -> -0.01689189189 | AA63: =AA62/Z62-1 -> 0.0824742268 | AB63: =AB62/W62-1 -> 0.04188481675 | AC63: =AC62/AA62-1 -> -0.04761904762 | AD63: =AD62/AC62-1 -> 0.02166666667 | AE63: =(1+$C$314)^(1/2)-1 -> 0.01980390272 | AF63: =(1+$C$314)^(1/1.6)-1 -> 0.024815858 | AG63: =AG62/AB62-1 -> 0.03802050463 | AH63: =(1+$C$314)^(1/8)-1 -> 0.004914626498 | AI63: =(1+$C$314)^(1/-4)-1 -> -0.009757264257 | AJ63: =(1+$C$314)^(1/2)-1 -> 0.01980390272 | AK63: =(1+$C$314)^(1/1.6)-1 -> 0.024815858 | AL63: =AL62/AG62-1 -> 0.04798846214 | AM63: =(1+$C$314)^(1/8)-1 -> 0.004914626498 | AN63: =(1+$C$314)^(1/-4)-1 -> -0.009757264257 | AO63: =(1+$C$314)^(1/2)-1 -> 0.01980390272 | AP63: =(1+$C$314)^(1/1.6)-1 -> 0.024815858 | AQ63: =AQ62/AL62-1 -> 0.04 | AR63: =(1+$C$314)^(1/8)-1 -> 0.004914626498 | AS63: =(1+$C$314)^(1/-4)-1 -> -0.009757264257 | AT63: =(1+$C$314)^(1/2)-1 -> 0.01980390272 | AU63: =(1+$C$314)^(1/1.6)-1 -> 0.024815858 | AV63: =AV62/AQ62-1 -> 0.04
B64: Pet Nutrition Operating Profit | D64: 144 | E64: 146 | F64: 149 | G64: 153 | H64: =SUM(D64:G64) -> 592 | I64: 147 | J64: 146 | K64: 157 | L64: 162 | M64: =SUM(I64:L64) -> 612 | N64: 155 | O64: 162 | P64: 162 | Q64: 174 | R64: =SUM(N64:Q64) -> 653 | S64: 163 | T64: 169 | U64: 167 | V64: 178 | W64: =SUM(S64:V64) -> 677 | X64: 164 | Y64: 165 | Z64: 163 | AA64: 188 | AB64: =SUM(X64:AA64) -> 680 | AC64: 164 | AD64: 167 | AE64: =AE62*AE65 -> 175.0391419 | AF64: =AF62*AF65 -> 179.3828884 | AG64: =SUM(AC64:AF64) -> 685.4220302 | AH64: =AH62*AH65 -> 180.2644882 | AI64: 178.5056 | AJ64: 182.0407075 | AK64: 186.5582039 | AL64: =SUM(AH64:AK64) -> 727.3689997 | AM64: =AM62*AM65 -> 187.4750678 | AN64: =AN62*AN65 -> 185.645824 | AO64: =AO62*AO65 -> 189.3223358 | AP64: =AP62*AP65 -> 194.020532 | AQ64: =SUM(AM64:AP64) -> 756.4637597 | AR64: =AR62*AR65 -> 194.9740705 | AS64: =AS62*AS65 -> 193.071657 | AT64: =AT62*AT65 -> 196.8952293 | AU64: =AU62*AU65 -> 201.7813533 | AV64: =SUM(AR64:AU64) -> 786.72231
B65: Pet Nutrition Operating Margin | D65: =D64/D62 -> 0.26039783 | E65: 0.2607142857 | F65: 0.2632508834 | G65: 0.265625 | H65: 0.2625277162 | I65: 0.2732342007 | J65: 0.2644927536 | K65: 0.2875457875 | L65: 0.28125 | M65: 0.2766726944 | N65: 0.2807971014 | O65: 0.2832167832 | P65: 0.2887700535 | Q65: 0.3005181347 | R65: 0.2884275618 | S65: 0.2942238267 | T65: 0.2954545455 | U65: 0.2914485166 | V65: 0.3001686341 | W65: 0.2953752182 | X65: 0.2808219178 | Y65: 0.2787162162 | Z65: 0.2800687285 | AA65: 0.2984126984 | AB65: 0.2847571189 | AC65: 0.2733333333 | AD65: 0.2724306688 | AE65: =$C$315 -> 0.28 | AF65: =$C$315 -> 0.28 | AG65: =AG64/AG62 -> 0.2765144326 | AH65: =$C$315 -> 0.28 | AI65: =$C$315 -> 0.28 | AJ65: =$C$315 -> 0.28 | AK65: =$C$315 -> 0.28 | AL65: =AL64/AL62 -> 0.28 | AM65: =$C$315 -> 0.28 | AN65: =$C$315 -> 0.28 | AO65: =$C$315 -> 0.28 | AP65: =$C$315 -> 0.28 | AQ65: =AQ64/AQ62 -> 0.28 | AR65: =$C$315 -> 0.28 | AS65: =$C$315 -> 0.28 | AT65: =$C$315 -> 0.28 | AU65: =$C$315 -> 0.28 | AV65: =AV64/AV62 -> 0.28
B66: Pet Nutrition
B67: Corporate Division Operating Profit | D67: -485 | E67: -171 | F67: -255 | G67: -177 | H67: =SUM(D67:G67) -> -1088 | I67: -229 | J67: -167 | K67: -24 | L67: -1267 | M67: =SUM(I67:L67) -> -1687 | N67: -177 | O67: -154 | P67: -100 | Q67: -199 | R67: =SUM(N67:Q67) -> -630 | S67: -176 | T67: -252 | U67: -204 | V67: -179 | W67: =SUM(S67:V67) -> -811 | X67: -149 | Y67: -146 | Z67: -164 | AA67: -143 | AB67: =SUM(X67:AA67) -> -602 | AC67: -152 | AD67: -153 | AE67: =AD67 -> -153 | AF67: =AE67 -> -153 | AG67: =SUM(AC67:AF67) -> -611 | AH67: =AF67 -> -153 | AI67: =AH67 -> -153 | AJ67: =AI67 -> -153 | AK67: =AJ67 -> -153 | AL67: =SUM(AH67:AK67) -> -612 | AM67: =AK67 -> -153 | AN67: =AM67 -> -153 | AO67: =AN67 -> -153 | AP67: =AO67 -> -153 | AQ67: =SUM(AM67:AP67) -> -612 | AR67: =AP67 -> -153 | AS67: =AR67 -> -153 | AT67: =AS67 -> -153 | AU67: =AT67 -> -153 | AV67: =SUM(AR67:AU67) -> -612
B68: Corporate
B70: Ratios
B71: Gross margin (GAAP) | D71: =D16/D14 -> 0.583583815 | E71: 0.5863970588 | F71: 0.5841516328 | G71: 0.5863539446 | H71: 0.5851131562 | I71: 0.5877149877 | J71: 0.5821446139 | K71: 0.5868967242 | L71: 0.5880995127 | M71: 0.5861918423 | N71: 0.5975544923 | O71: 0.5992197659 | P71: 0.6009826739 | Q71: 0.6038699274 | R71: 0.6003948667 | S71: 0.6031366295 | T71: 0.6011500261 | U71: 0.5996477101 | V71: 0.5981500514 | W71: 0.6004917821 | X71: 0.6016991504 | Y71: 0.592125579 | Z71: 0.5901170351 | AA71: 0.5911834164 | AB71: 0.5938625836 | AC71: 0.5888259526 | AD71: 0.5969994827 | AE71: =$C$292 -> 0.57 | AF71: =$C$292 -> 0.57 | AG71: =AG16/AG14 -> 0.5813770371 | AH71: =$C$292 -> 0.57 | AI71: 0.57 | AJ71: 0.57 | AK71: 0.57 | AL71: =AL16/AL14 -> 0.57 | AM71: 0.57 | AN71: 0.57 | AO71: 0.57 | AP71: 0.57 | AQ71: =AQ16/AQ14 -> 0.57 | AR71: 0.57 | AS71: 0.57 | AT71: 0.57 | AU71: 0.57 | AV71: =AV16/AV14 -> 0.57
B72: Interest expense/(income) to average debt | D72: =D22/(SUM(D94,D95,D100)) -> 0.00105120889 | E72: =E22/(SUM(E94,E95,E100)) -> 0.001484903481 | F72: =F22/(SUM(F94,F95,F100)) -> 0.0006606110652 | G72: =G22/(SUM(G94,G95,G100)) -> 0.0006506180872 | I72: =I22/(SUM(I94,I95,I100)) -> 0.001305483029 | J72: =J22/(SUM(J94,J95,J100)) -> 0.000897800389 | K72: =K22/(SUM(K94,K95,K100)) -> 0.000736377025 | L72: =L22/(SUM(L94,L95,L100)) -> 0.001069028711 | N72: =N22/(SUM(N94,N95,N100)) -> 0.004255319149 | O72: =O22/(SUM(O94,O95,O100)) -> 0.003804017042 | P72: =P22/(SUM(P94,P95,P100)) -> 0.003832592365 | Q72: =Q22/(SUM(Q94,Q95,Q100)) -> 0.003214449717 | S72: =S22/(SUM(S94,S95,S100)) -> 0.003553221072 | T72: =T22/(SUM(T94,T95,T100)) -> 0.003681546249 | U72: =U22/(SUM(U94,U95,U100)) -> 0.004136663092 | V72: =V22/(SUM(V94,V95,V100)) -> 0.004257260149 | X72: =X22/(SUM(X94,X95,X100)) -> 0.005216872857 | Y72: =Y22/(SUM(Y94,Y95,Y100)) -> 0.005098324836 | Z72: =Z22/(SUM(Z94,Z95,Z100)) -> 0.005451241672 | AA72: =AA22/(SUM(AA94,AA95,AA100)) -> 0.005812126924 | AC72: =AC22/(SUM(AC94,AC95,AC100)) -> 0.006005104339 | AD72: =AD22/(SUM(AD94,AD95,AD100)) -> 0.005718585403 | AE72: =Z72 -> 0.005451241672 | AF72: =AA72 -> 0.005812126924 | AH72: =AC72 -> 0.006005104339 | AI72: =AD72 -> 0.005718585403 | AJ72: =AE72 -> 0.005451241672 | AK72: =AF72 -> 0.005812126924 | AM72: =AH72 -> 0.006005104339 | AN72: =AI72 -> 0.005718585403 | AO72: =AJ72 -> 0.005451241672 | AP72: =AK72 -> 0.005812126924 | AR72: =AM72 -> 0.006005104339 | AS72: =AN72 -> 0.005718585403 | AT72: =AO72 -> 0.005451241672 | AU72: =AP72 -> 0.005812126924
B73: Effective tax rate | D73: =D25/D24 -> 0.3110047847 | E73: 0.3192584964 | F73: 0.3855932203 | G73: 0.3279515641 | H73: 0.337956411 | I73: 0.3157276995 | J73: 0.3347732181 | K73: 0.3191865606 | L73: -1.883561644 | M73: 0.4397394137 | N73: 0.315852205 | O73: 0.3057671382 | P73: 0.2868068834 | Q73: 0.375 | R73: 0.3182320442 | S73: 0.2911832947 | T73: 0.3244873341 | U73: 0.2777777778 | V73: 0.6060267857 | W73: 0.3765414396 | X73: 0.2662337662 | Y73: 0.2398648649 | Z73: 0.3146341463 | AA73: 0.2271634615 | AB73: 0.2615473441 | AC73: 0.2628992629 | AD73: 0.2490886999 | AE73: =$C$295 -> 0.3 | AF73: 0.3 | AG73: =AG25/AG24 -> 0.2785284712 | AH73: =$C$295 -> 0.3 | AI73: =$C$295 -> 0.3 | AJ73: 0.3 | AK73: 0.3 | AL73: =AL25/AL24 -> 0.3 | AM73: =$C$295 -> 0.3 | AN73: =$C$295 -> 0.3 | AO73: 0.3 | AP73: 0.3 | AQ73: =AQ25/AQ24 -> 0.3 | AR73: =$C$295 -> 0.3 | AS73: =$C$295 -> 0.3 | AT73: 0.3 | AU73: 0.3 | AV73: =AV25/AV24 -> 0.3
B74: Change in basic shares (excluding repurchases) | E74: =(E29/D29)-1 -> -0.003697661773 | F74: -0.002510642943 | G74: -0.002735828409 | I74: =(I29/H29)-1 -> -0.008167836753 | J74: -0.003415225295 | K74: -0.004974574398 | L74: -0.003999555605 | N74: =(N29/M29)-1 -> -0.009448862534 | O74: 0.0002237887434 | P74: -0.002237386732 | Q74: -0.008543454093 | S74: =(S29/R29)-1 -> -0.00700943735 | T74: -0.001017293998 | U74: -0.003507580901 | V74: -0.003065743159 | X74: =(X29/W29)-1 -> -0.007257881606 | Y74: -0.004226639251 | Z74: -0.003326832626 | AA74: -0.002532228361 | AC74: =(AC29/AB29)-1 -> -0.009906676238 | AD74: =(AD29/AC29)-1 -> 0 | AE74: =Z74 -> -0.003326832626 | AF74: -0.002532228361 | AH74: =AC74 -> -0.009906676238 | AI74: =AD74 -> 0 | AJ74: =AE74 -> -0.003326832626 | AK74: =AF74 -> -0.002532228361 | AM74: =AH74 -> -0.009906676238 | AN74: =AI74 -> 0 | AO74: =AJ74 -> -0.003326832626 | AP74: =AK74 -> -0.002532228361 | AR74: =AM74 -> -0.009906676238 | AS74: =AN74 -> 0 | AT74: =AO74 -> -0.003326832626 | AU74: =AP74 -> -0.002532228361
B75: Change in diluted shares (excluding repurchases) | E75: -0.002907602843 | F75: -0.003348093747 | G75: -0.003034243606 | I75: -0.008682011197 | J75: -0.004256247954 | K75: -0.006028057869 | L75: -0.01146763701 | N75: -0.008617604141 | O75: 0.0009997778271 | P75: -0.002108534014 | Q75: -0.01090487342 | S75: -0.007213119769 | T75: -0.0002244668911 | U75: -0.005051638976 | V75: -0.0033848584 | X75: -0.008954215239 | Y75: -0.006705307421 | Z75: -0.003318077803 | AA75: -0.004132705774 | AC75: =(AC30/AB30)-1 -> 0.00775948461 | AD75: =(AD30/AC30)-1 -> 0 | AE75: =Z75 -> -0.003318077803 | AF75: =AA75 -> -0.004132705774 | AH75: =AC75 -> 0.00775948461 | AI75: 0 | AJ75: -0.003318077803 | AK75: -0.004132705774 | AM75: =AH75 -> 0.00775948461 | AN75: 0 | AO75: -0.003318077803 | AP75: -0.004132705774 | AR75: =AM75 -> 0.00775948461 | AS75: 0 | AT75: -0.003318077803 | AU75: -0.004132705774
D76: =ROUND(((D40+D44+D48+D52+D56+D64+D67)-D21),0) -> 0 | E76: 0 | F76: 0 | G76: 0 | H76: 0 | I76: 0 | J76: 0 | K76: 0 | L76: 0 | M76: 0 | N76: 0 | O76: 0 | P76: 0 | Q76: 0 | R76: 0 | S76: 0 | T76: 0 | U76: 0 | V76: 0 | W76: 0 | X76: 0 | Y76: 0 | Z76: 0 | AA76: 0 | AB76: 0 | AC76: 0 | AD76: 0 | AE76: 0 | AF76: 0 | AG76: 0 | AH76: 0 | AI76: 0 | AJ76: 0 | AK76: 0 | AL76: 0 | AM76: 0 | AN76: 0 | AO76: 0 | AP76: 0 | AQ76: 0 | AR76: 0 | AS76: 0 | AT76: 0 | AU76: 0 | AV76: 0
B77: Colgate Palmolive Balance Sheet
B78: (Dollars in millions, except per share data) | D78: Mar-14 | E78: Jun-14 | F78: Sep-14 | G78: Dec-14 | H78: Dec-14 | I78: Mar-15 | J78: Jun-15 | K78: Sep-15 | L78: Dec-15 | M78: Dec-15 | N78: Mar-16 | O78: Jun-16 | P78: Sep-16 | Q78: Dec-16 | R78: Dec-16 | S78: Mar-17 | T78: Jun-17 | U78: Sep-17 | V78: Dec-17 | W78: Dec-17 | X78: Mar-18 | Y78: Jun-18 | Z78: Sep-18 | AA78: Dec-18 | AB78: Dec-18 | AC78: Mar-19 | AD78: Jun-19 | AE78: Sep-19 | AF78: Dec-19 | AG78: Dec-19 | AH78: Mar-20 | AI78: Jun-20 | AJ78: Sep-20 | AK78: Dec-20 | AL78: Dec-20 | AM78: Mar-21 | AN78: Jun-21 | AO78: Sep-21 | AP78: Dec-21 | AQ78: Dec-21 | AR78: Mar-21 | AS78: Jun-21 | AT78: Sep-21 | AU78: Dec-21 | AV78: Dec-21
D79: 1Q14 | E79: 2Q14 | F79: 3Q14 | G79: 4Q14 | H79: FY 2014 | I79: 1Q15 | J79: 2Q15 | K79: 3Q15 | L79: 4Q15 | M79: FY 2015 | N79: 1Q16 | O79: 2Q16 | P79: 3Q16 | Q79: 4Q16 | R79: FY 2016 | S79: 1Q17 | T79: 2Q17 | U79: 3Q17 | V79: 4Q17 | W79: FY 2017 | X79: 1Q18 | Y79: 2Q18 | Z79: 3Q18 | AA79: 4Q18 | AB79: FY 2018 | AC79: 1Q19 | AD79: 2Q19 | AE79: 3Q19E | AF79: 4Q19E | AG79: FY 2019E | AH79: 1Q20E | AI79: 2Q20E | AJ79: 3Q20E | AK79: 4Q20E | AL79: FY 2020E | AM79: 1Q21E | AN79: 2Q21E | AO79: 3Q21E | AP79: 4Q21E | AQ79: FY 2121E | AR79: 1Q21E | AS79: 2Q21E | AT79: 3Q21E | AU79: 4Q21E | AV79: FY 2121E
B80: Assets
B81: Cash and equivalents | D81: 1795 | E81: 1161 | F81: 1355 | G81: 1089 | H81: =G81 -> 1089 | I81: 859 | J81: 1059 | K81: 1445 | L81: 970 | M81: =L81 -> 970 | N81: 1014 | O81: 1085 | P81: 1298 | Q81: 1315 | R81: =Q81 -> 1315 | S81: 1347 | T81: 1241 | U81: 1380 | V81: 1535 | W81: =V81 -> 1535 | X81: 851 | Y81: 833 | Z81: 841 | AA81: 726 | AB81: =AA81 -> 726 | AC81: 843 | AD81: 863 | AE81: =AE168 -> 1005.441588 | AF81: =AF168 -> 1238.427514 | AG81: =AF81 -> 1238.427514 | AH81: =AH168 -> 1902.480659 | AI81: 2063.935261 | AJ81: 2163.654037 | AK81: 2394.46763 | AL81: =AK81 -> 2394.46763 | AM81: =AM168 -> 3027.037643 | AN81: 3173.458366 | AO81: 3272.674525 | AP81: 3505.750535 | AQ81: =AP81 -> 3505.750535 | AR81: =AR168 -> 4112.766484 | AS81: 4248.656818 | AT81: 4351.097214 | AU81: 4590.133472 | AV81: =AU81 -> 4590.133472
B82: Accounts receivables | D82: 1670 | E82: 1803 | F82: 1747 | G82: 1552 | H82: =G82 -> 1552 | I82: 1611 | J82: 1691 | K82: 1561 | L82: 1427 | M82: =L82 -> 1427 | N82: 1546 | O82: 1575 | P82: 1560 | Q82: 1411 | R82: =Q82 -> 1411 | S82: 1496 | T82: 1526 | U82: 1530 | V82: 1480 | W82: =V82 -> 1480 | X82: 1644 | Y82: 1545 | Z82: 1532 | AA82: 1400 | AB82: =AA82 -> 1400 | AC82: 1547 | AD82: 1590 | AE82: =AE14/AE122 -> 1561.473047 | AF82: =AF14/AF122 -> 1519.157435 | AG82: =AF82 -> 1519.157435 | AH82: =AH14/AH122 -> 1501.84402 | AI82: =AI14/AI122 -> 1598.409421 | AJ82: =AJ14/AJ122 -> 1591.690277 | AK82: =AK14/AK122 -> 1549.088093 | AL82: =AK82 -> 1549.088093 | AM82: =AM14/AM122 -> 1531.538146 | AN82: =AN14/AN122 -> 1629.789969 | AO82: =AO14/AO122 -> 1623.381779 | AP82: =AP14/AP122 -> 1580.464836 | AQ82: =AP82 -> 1580.464836 | AR82: =AR14/AR122 -> 1562.664194 | AS82: =AS14/AS122 -> 1662.689574 | AT82: =AT14/AT122 -> 1656.595766 | AU82: =AU14/AU122 -> 1613.335177 | AV82: =AU82 -> 1613.335177
B83: Inventories | D83: 1478 | E83: 1508 | F83: 1422 | G83: 1382 | H83: 1382 | I83: 1350 | J83: 1324 | K83: 1277 | L83: 1180 | M83: 1180 | N83: 1234 | O83: 1232 | P83: 1193 | Q83: 1171 | R83: 1171 | S83: 1189 | T83: 1199 | U83: 1205 | V83: 1221 | W83: 1221 | X83: 1312 | Y83: 1254 | Z83: 1245 | AA83: 1250 | AB83: 1250 | AC83: 1278 | AD83: 1322 | AE83: =AE15/AE120 -> 1330.398782 | AF83: =AF15/AF120 -> 1359.719477 | AG83: 1359.719477 | AH83: =AH15/AH120 -> 1347.300665 | AI83: =AI15/AI120 -> 1413.545237 | AJ83: =AJ15/AJ120 -> 1356.144321 | AK83: =AK15/AK120 -> 1386.508865 | AL83: 1386.508865 | AM83: =AM15/AM120 -> 1373.939194 | AN83: =AN15/AN120 -> 1441.296466 | AO83: =AO15/AO120 -> 1383.145963 | AP83: =AP15/AP120 -> 1414.59257 | AQ83: 1414.59257 | AR83: =AR15/AR120 -> 1401.862297 | AS83: =AS15/AS120 -> 1470.391064 | AT83: =AT15/AT120 -> 1411.444785 | AU83: =AU15/AU120 -> 1444.013117 | AV83: 1444.013117
B84: Other Current Assets | D84: 734 | E84: 702 | F84: 657 | G84: 840 | H84: 840 | I84: 880 | J84: 914 | K84: 806 | L84: 807 | M84: 807 | N84: 696 | O84: 722 | P84: 713 | Q84: 441 | R84: 441 | S84: 564 | T84: 589 | U84: 621 | V84: 403 | W84: 403 | X84: 485 | Y84: 540 | Z84: 523 | AA84: 417 | AB84: 417 | AC84: 465 | AD84: 480 | AE84: =AD84 -> 480 | AF84: =AE84 -> 480 | AG84: 480 | AH84: =AG84 -> 480 | AI84: 480 | AJ84: 480 | AK84: 480 | AL84: 480 | AM84: 480 | AN84: 480 | AO84: 480 | AP84: 480 | AQ84: 480 | AR84: =AQ84 -> 480 | AS84: =AR84 -> 480 | AT84: =AS84 -> 480 | AU84: =AT84 -> 480 | AV84: 480
B85: Total Current Assets | D85: =SUM(D81:D84) -> 5677 | E85: 5174 | F85: 5181 | G85: 4863 | H85: 4863 | I85: 4700 | J85: 4988 | K85: 5089 | L85: 4384 | M85: 4384 | N85: 4490 | O85: 4614 | P85: 4764 | Q85: 4338 | R85: 4338 | S85: 4596 | T85: 4555 | U85: 4736 | V85: 4639 | W85: 4639 | X85: 4292 | Y85: 4172 | Z85: 4141 | AA85: 3793 | AB85: 3793 | AC85: 4133 | AD85: 4255 | AE85: 4377.313416 | AF85: =SUM(AF81:AF84) -> 4597.304426 | AG85: 4597.304426 | AH85: =SUM(AH81:AH84) -> 5231.625343 | AI85: 5555.889919 | AJ85: 5591.488635 | AK85: 5810.064588 | AL85: 5810.064588 | AM85: =SUM(AM81:AM84) -> 6412.514983 | AN85: 6724.544801 | AO85: 6759.202267 | AP85: 6980.807941 | AQ85: 6980.807941 | AR85: =SUM(AR81:AR84) -> 7557.292975 | AS85: 7861.737456 | AT85: 7899.137764 | AU85: 8127.481766 | AV85: 8127.481766
B86: Property, plant and equipment, net | D86: 4037 | E86: 4077 | F86: 4038 | G86: 4080 | H86: =G86 -> 4080 | I86: 3968 | J86: 4039 | K86: 3959 | L86: 3796 | M86: =L86 -> 3796 | N86: 3820 | O86: 3825 | P86: 3837 | Q86: 3840 | R86: =Q86 -> 3840 | S86: 3883 | T86: 3930 | U86: 3999 | V86: 4072 | W86: =V86 -> 4072 | X86: 4087 | Y86: 3908 | Z86: 3871 | AA86: 3881 | AB86: =AA86 -> 3881 | AC86: 3821 | AD86: 3793 | AE86: =AD86-AE136-AE150 -> 3661.186209 | AF86: =AE86-AF136-AF150 -> 3534.069368 | AG86: =AF86 -> 3534.069368 | AH86: =AG86-AH136-AH150 -> 3416.74658 | AI86: 3302.071981 | AJ86: 3193.770504 | AK86: 3091.779368 | AL86: 3091.779368 | AM86: =AL86-AM136-AM150 -> 2997.745141 | AN86: 2905.763018 | AO86: 2819.032347 | AP86: 2737.540888 | AQ86: =AP86 -> 2737.540888 | AR86: =AQ86-AR136-AR150 -> 2662.449264 | AS86: 2588.921852 | AT86: 2519.739726 | AU86: 2454.933354 | AV86: =AU86 -> 2454.933354
B87: Goodwill | D87: 2485 | E87: 2489 | F87: 2355 | G87: 2307 | H87: 2307 | I87: 2186 | J87: 2241 | K87: 2139 | L87: 2103 | M87: 2103 | N87: 2170 | O87: 2170 | P87: 2181 | Q87: 2107 | R87: 2107 | S87: 2134 | T87: 2191 | U87: 2216 | V87: 2218 | W87: 2218 | X87: 2572 | Y87: 2483 | Z87: 2539 | AA87: 2530 | AB87: 2530 | AC87: 2517 | AD87: 2536 | AE87: =AD87 -> 2536 | AF87: =AE87 -> 2536 | AG87: 2536 | AH87: =AG87 -> 2536 | AI87: 2536 | AJ87: 2536 | AK87: 2536 | AL87: 2536 | AM87: 2536 | AN87: 2536 | AO87: 2536 | AP87: 2536 | AQ87: 2536 | AR87: =AQ87 -> 2536 | AS87: =AR87 -> 2536 | AT87: =AS87 -> 2536 | AU87: =AT87 -> 2536 | AV87: 2536
B88: Intangible assets | D88: 1500 | E88: 1486 | F88: 1424 | G88: 1413 | H88: 1413 | I88: 1356 | J88: 1371 | K88: 1367 | L88: 1346 | M88: 1346 | N88: 1361 | O88: 1347 | P88: 1346 | Q88: 1313 | R88: 1313 | S88: 1312 | T88: 1340 | U88: 1343 | V88: 1341 | W88: 1341 | X88: 1782 | Y88: 1735 | Z88: 1660 | AA88: 1637 | AB88: 1637 | AC88: 1612 | AD88: 1609 | AE88: =AD88 -> 1609 | AF88: 1609 | AG88: 1609 | AH88: 1609 | AI88: 1609 | AJ88: 1609 | AK88: 1609 | AL88: 1609 | AM88: =AL88 -> 1609 | AN88: =AM88 -> 1609 | AO88: =AN88 -> 1609 | AP88: =AO88 -> 1609 | AQ88: 1609 | AR88: 1609 | AS88: 1609 | AT88: 1609 | AU88: 1609 | AV88: 1609
B89: Deferred income taxes and other assets | D89: 75 | E89: 74 | F89: 31 | G89: 76 | H89: 76 | I89: 79 | J89: 144 | K89: 137 | L89: 67 | M89: 67 | N89: 349 | O89: 311 | P89: 261 | Q89: 301 | R89: 301 | S89: 321 | T89: 360 | U89: 265 | V89: 188 | W89: 188 | X89: 187 | Y89: 156 | Z89: 165 | AA89: 152 | AB89: 152 | AC89: 164 | AD89: 167 | AE89: 167 | AF89: 167 | AG89: 167 | AH89: 167 | AI89: 167 | AJ89: 167 | AK89: 167 | AL89: 167 | AM89: 167 | AN89: 167 | AO89: 167 | AP89: 167 | AQ89: 167 | AR89: 167 | AS89: 167 | AT89: 167 | AU89: 167 | AV89: 167
B90: Other assets | D90: 658 | E90: 688 | F90: 656 | G90: 720 | H90: =G90 -> 720 | I90: 867 | J90: 877 | K90: 872 | L90: 239 | M90: =L90 -> 239 | N90: 258 | O90: 248 | P90: 234 | Q90: 224 | R90: =Q90 -> 224 | S90: 202 | T90: 204 | U90: 216 | V90: 218 | W90: =V90 -> 218 | X90: 224 | Y90: 196 | Z90: 195 | AA90: 168 | AB90: =AA90 -> 168 | AC90: 636 | AD90: 791 | AE90: 791 | AF90: 791 | AG90: =AF90 -> 791 | AH90: 791 | AI90: 791 | AJ90: 791 | AK90: 791 | AL90: 791 | AM90: 791 | AN90: 791 | AO90: 791 | AP90: 791 | AQ90: 791 | AR90: 791 | AS90: 791 | AT90: 791 | AU90: 791 | AV90: 791
B91: Total Assets | D91: =SUM(D85:D90) -> 14432 | E91: 13988 | F91: 13685 | G91: 13459 | H91: 13459 | I91: 13156 | J91: 13660 | K91: 13563 | L91: 11935 | M91: 11935 | N91: 12448 | O91: 12515 | P91: 12623 | Q91: 12123 | R91: 12123 | S91: 12448 | T91: 12580 | U91: 12775 | V91: 12676 | W91: 12676 | X91: 13144 | Y91: 12650 | Z91: 12571 | AA91: 12161 | AB91: 12161 | AC91: =SUM(AC85:AC90) -> 12883 | AD91: =SUM(AD85:AD90) -> 13151 | AE91: =SUM(AE85:AE90) -> 13141.49963 | AF91: 13234.37379 | AG91: =SUM(AG85:AG90) -> 13234.37379 | AH91: =SUM(AH85:AH90) -> 13751.37192 | AI91: =SUM(AI85:AI90) -> 13960.9619 | AJ91: =SUM(AJ85:AJ90) -> 13888.25914 | AK91: =SUM(AK85:AK90) -> 14004.84396 | AL91: 14004.84396 | AM91: =SUM(AM85:AM90) -> 14513.26012 | AN91: =SUM(AN85:AN90) -> 14733.30782 | AO91: =SUM(AO85:AO90) -> 14681.23461 | AP91: =SUM(AP85:AP90) -> 14821.34883 | AQ91: =SUM(AQ85:AQ90) -> 14821.34883 | AR91: =SUM(AR85:AR90) -> 15322.74224 | AS91: =SUM(AS85:AS90) -> 15553.65931 | AT91: =SUM(AT85:AT90) -> 15521.87749 | AU91: =SUM(AU85:AU90) -> 15685.41512 | AV91: =SUM(AV85:AV90) -> 15685.41512
B93: Liabilities
B94: Notes & loans payable | D94: 24 | E94: 20 | F94: 14 | G94: 16 | H94: =G94 -> 16 | I94: 18 | J94: 9 | K94: 10 | L94: 4 | M94: =L94 -> 4 | N94: 5 | O94: 3 | P94: 3 | Q94: 13 | R94: =Q94 -> 13 | S94: 7 | T94: 13 | U94: 7 | V94: 11 | W94: =V94 -> 11 | X94: 159 | Y94: 346 | Z94: 85 | AA94: 12 | AB94: =AA94 -> 12 | AC94: 5 | AD94: 4 | AE94: =AD94 -> 4 | AF94: 4 | AG94: =AF94 -> 4 | AH94: =AG94 -> 4 | AI94: 4 | AJ94: 4 | AK94: 4 | AL94: =AK94 -> 4 | AM94: =AL94 -> 4 | AN94: 4 | AO94: 4 | AP94: 4 | AQ94: =AP94 -> 4 | AR94: =AQ94 -> 4 | AS94: 4 | AT94: 4 | AU94: 4 | AV94: =AU94 -> 4
B95: Current portion of long-term debt | D95: 896 | E95: 300 | F95: 600 | G95: 488 | H95: =G95 -> 488 | I95: 488 | J95: 488 | K95: 226 | L95: 298 | M95: =L95 -> 298 | N95: 698 | O95: 950 | P95: 904 | Q95: 0 | R95: =Q95 -> 0 | S95: 0 | T95: 0 | U95: 0 | V95: 0 | W95: =V95 -> 0 | X95: 0 | Y95: 0 | Z95: 0 | AA95: 0 | AB95: =AA95 -> 0 | AC95: 1 | AD95: 1 | AE95: 1 | AF95: 1 | AG95: =AF95 -> 1 | AH95: =AG95 -> 1 | AI95: 1 | AJ95: 1 | AK95: 1 | AL95: =AK95 -> 1 | AM95: =AL95 -> 1 | AN95: 1 | AO95: 1 | AP95: 1 | AQ95: =AP95 -> 1 | AR95: =AQ95 -> 1 | AS95: 1 | AT95: 1 | AU95: 1 | AV95: =AU95 -> 1
B96: Accounts payable | D96: 1264 | E96: 1251 | F96: 1215 | G96: 1231 | H96: =G96 -> 1231 | I96: 1167 | J96: 1169 | K96: 1109 | L96: 1110 | M96: =L96 -> 1110 | N96: 1108 | O96: 1082 | P96: 1076 | Q96: 1124 | R96: =Q96 -> 1124 | S96: 1116 | T96: 1131 | U96: 1164 | V96: 1212 | W96: =V96 -> 1212 | X96: 1209 | Y96: 1121 | Z96: 1158 | AA96: 1222 | AB96: =AA96 -> 1222 | AC96: 1215 | AD96: 1209 | AE96: =AE15/AE125 -> 1213.27684 | AF96: =AF15/AF125 -> 1297.047036 | AG96: =AF96 -> 1297.047036 | AH96: =AH15/AH125 -> 1298.802104 | AI96: =AI15/AI125 -> 1317.859098 | AJ96: =AJ15/AJ125 -> 1236.755866 | AK96: =AK15/AK125 -> 1322.601643 | AL96: 1322.601643 | AM96: =AM15/AM125 -> 1324.481731 | AN96: =AN15/AN125 -> 1343.731782 | AO96: =AO15/AO125 -> 1261.380412 | AP96: =AP15/AP125 -> 1349.390908 | AQ96: =AP96 -> 1349.390908 | AR96: =AR15/AR125 -> 1351.399691 | AS96: =AS15/AS125 -> 1370.8569 | AT96: =AT15/AT125 -> 1287.187941 | AU96: =AU15/AU125 -> 1377.455398 | AV96: =AU96 -> 1377.455398
B97: Accrued income taxes | D97: 253 | E97: 244 | F97: 294 | G97: 294 | H97: =G97 -> 294 | I97: 417 | J97: 297 | K97: 340 | L97: 277 | M97: =L97 -> 277 | N97: 370 | O97: 364 | P97: 350 | Q97: 441 | R97: =Q97 -> 441 | S97: 579 | T97: 404 | U97: 391 | V97: 354 | W97: =V97 -> 354 | X97: 432 | Y97: 382 | Z97: 360 | AA97: 411 | AB97: =AA97 -> 411 | AC97: 400 | AD97: 293 | AE97: 293 | AF97: 293 | AG97: =AF97 -> 293 | AH97: 293 | AI97: 293 | AJ97: 293 | AK97: 293 | AL97: 293 | AM97: =AL97 -> 293 | AN97: =AM97 -> 293 | AO97: =AN97 -> 293 | AP97: =AO97 -> 293 | AQ97: 293 | AR97: =AQ97 -> 293 | AS97: =AR97 -> 293 | AT97: =AS97 -> 293 | AU97: =AT97 -> 293 | AV97: 293
B98: Other accruals | D98: 2265 | E98: 2246 | F98: 2289 | G98: 1917 | H98: 1917 | I98: 2233 | J98: 2243 | K98: 2252 | L98: 1845 | M98: 1845 | N98: 2282 | O98: 2272 | P98: 2322 | Q98: 1727 | R98: 1727 | S98: 2107 | T98: 2232 | U98: 2292 | V98: 1831 | W98: 1831 | X98: 2180 | Y98: 2093 | Z98: 2144 | AA98: 1696 | AB98: 1696 | AC98: 2244 | AD98: 2275 | AE98: 2275 | AF98: 2275 | AG98: 2275 | AH98: 2275 | AI98: 2275 | AJ98: 2275 | AK98: 2275 | AL98: 2275 | AM98: 2275 | AN98: 2275 | AO98: 2275 | AP98: 2275 | AQ98: 2275 | AR98: 2275 | AS98: 2275 | AT98: 2275 | AU98: 2275 | AV98: 2275
B99: Total Current liabilities | D99: =SUM(D94:D98) -> 4702 | E99: =SUM(E94:E98) -> 4061 | F99: 4412 | G99: =SUM(G94:G98) -> 3946 | H99: =SUM(H94:H98) -> 3946 | I99: =SUM(I94:I98) -> 4323 | J99: =SUM(J94:J98) -> 4206 | K99: 3937 | L99: =SUM(L94:L98) -> 3534 | M99: 3534 | N99: 4463 | O99: 4671 | P99: 4655 | Q99: 3305 | R99: 3305 | S99: =SUM(S94:S98) -> 3809 | T99: 3780 | U99: 3854 | V99: 3408 | W99: 3408 | X99: 3980 | Y99: 3942 | Z99: 3747 | AA99: 3341 | AB99: 3341 | AC99: 3865 | AD99: 3782 | AE99: 3786.27684 | AF99: =SUM(AF94:AF98) -> 3870.047036 | AG99: 3870.047036 | AH99: =SUM(AH94:AH98) -> 3871.802104 | AI99: 3890.859098 | AJ99: 3809.755866 | AK99: 3895.601643 | AL99: 3895.601643 | AM99: =SUM(AM94:AM98) -> 3897.481731 | AN99: 3916.731782 | AO99: 3834.380412 | AP99: 3922.390908 | AQ99: 3922.390908 | AR99: =SUM(AR94:AR98) -> 3924.399691 | AS99: 3943.8569 | AT99: 3860.187941 | AU99: 3950.455398 | AV99: 3950.455398
B100: Long-term debt | D100: 5739 | E100: 5741 | F100: 5441 | G100: 5644 | H100: =G100 -> 5644 | I100: 5622 | J100: 6186 | K100: 6554 | L100: 6246 | M100: =L100 -> 6246 | N100: 5877 | O100: 5619 | P100: 5616 | Q100: 6520 | R100: =Q100 -> 6520 | S100: 6466 | T100: 6506 | U100: 6520 | V100: 6566 | W100: =V100 -> 6566 | X100: 6550 | Y100: 6519 | Z100: 6519 | AA100: 6354 | AB100: =AA100 -> 6354 | AC100: 6655 | AD100: 6640 | AE100: =AD100+SUM(AE158:AE159) -> 6400.3 | AF100: =AE100+SUM(AF158:AF159) -> 6177.52 | AG100: =AF100 -> 6177.52 | AH100: =AG100+SUM(AH158:AH159) -> 6461.4 | AI100: 6424.74 | AJ100: 6199.422 | AK100: 5990.0088 | AL100: 5990.0088 | AM100: =AL100+SUM(AM158:AM159) -> 6256.856 | AN100: 6222.3956 | AO100: 6010.59668 | AP100: 5813.748272 | AQ100: =AP100 -> 5813.748272 | AR100: =AQ100+SUM(AR158:AR159) -> 6064.58464 | AS100: 6032.191864 | AT100: 5833.100879 | AU100: 5648.063376 | AV100: =AU100 -> 5648.063376
B101: Deferred income taxes | D101: 393 | E101: 393 | F101: 355 | G101: 261 | H101: 261 | I101: 233 | J101: 261 | K101: 234 | L101: 233 | M101: 233 | N101: 249 | O101: 258 | P101: 270 | Q101: 246 | R101: 246 | S101: 198 | T101: 195 | U101: 196 | V101: 204 | W101: 204 | X101: 249 | Y101: 206 | Z101: 325 | AA101: 235 | AB101: 235 | AC101: 306 | AD101: 303 | AE101: =AD101 -> 303 | AF101: 303 | AG101: 303 | AH101: 303 | AI101: 303 | AJ101: 303 | AK101: 303 | AL101: 303 | AM101: =AL101 -> 303 | AN101: =AM101 -> 303 | AO101: =AN101 -> 303 | AP101: =AO101 -> 303 | AQ101: 303 | AR101: =AQ101 -> 303 | AS101: =AR101 -> 303 | AT101: =AS101 -> 303 | AU101: =AT101 -> 303 | AV101: 303
B102: Other liabilities | D102: 1698 | E102: 1722 | F102: 1731 | G102: 2223 | H102: =G102 -> 2223 | I102: 2239 | J102: 2250 | K102: 2248 | L102: 1966 | M102: =L102 -> 1966 | N102: 1932 | O102: 1933 | P102: 1854 | Q102: 2035 | R102: =Q102 -> 2035 | S102: 1980 | T102: 2011 | U102: 1938 | V102: 2255 | W102: =V102 -> 2255 | X102: 2264 | Y102: 2172 | Z102: 2048 | AA102: 2034 | AB102: =AA102 -> 2034 | AC102: 2267 | AD102: 2436 | AE102: 2436 | AF102: 2436 | AG102: =AF102 -> 2436 | AH102: 2436 | AI102: 2436 | AJ102: 2436 | AK102: 2436 | AL102: 2436 | AM102: 2436 | AN102: 2436 | AO102: 2436 | AP102: 2436 | AQ102: 2436 | AR102: 2436 | AS102: 2436 | AT102: 2436 | AU102: 2436 | AV102: 2436
B103: Total liabilities | D103: =SUM(D99:D102) -> 12532 | E103: =SUM(E99:E102) -> 11917 | F103: =SUM(F99:F102) -> 11939 | G103: 12074 | H103: 12074 | I103: 12417 | J103: 12903 | K103: 12973 | L103: 11979 | M103: 11979 | N103: 12521 | O103: 12481 | P103: 12395 | Q103: 12106 | R103: 12106 | S103: 12453 | T103: 12492 | U103: 12508 | V103: 12433 | W103: 12433 | X103: 13043 | Y103: 12839 | Z103: 12639 | AA103: 11964 | AB103: 11964 | AC103: 13093 | AD103: 13161 | AE103: 12925.57684 | AF103: =SUM(AF99:AF102) -> 12786.56704 | AG103: 12786.56704 | AH103: =SUM(AH99:AH102) -> 13072.2021 | AI103: 13054.5991 | AJ103: 12748.17787 | AK103: 12624.61044 | AL103: 12624.61044 | AM103: =SUM(AM99:AM102) -> 12893.33773 | AN103: 12878.12738 | AO103: 12583.97709 | AP103: 12475.13918 | AQ103: 12475.13918 | AR103: =SUM(AR99:AR102) -> 12727.98433 | AS103: 12715.04876 | AT103: 12432.28882 | AU103: 12337.51877 | AV103: 12337.51877
B105: Equity
B106: Common stock | D106: 1466 | E106: 1466 | F106: 1466 | G106: 1466 | H106: =G106 -> 1466 | I106: 1466 | J106: 1466 | K106: 1466 | L106: 1466 | M106: =L106 -> 1466 | N106: 1466 | O106: 1466 | P106: 1466 | Q106: 1466 | R106: =Q106 -> 1466 | S106: 1466 | T106: 1466 | U106: 1466 | V106: 1466 | W106: =V106 -> 1466 | X106: 1466 | Y106: 1466 | Z106: 1466 | AA106: 1466 | AB106: =AA106 -> 1466 | AC106: 1466 | AD106: 1466 | AE106: =AD106 -> 1466 | AF106: 1466 | AG106: =AF106 -> 1466 | AH106: 1466 | AI106: 1466 | AJ106: 1466 | AK106: 1466 | AL106: 1466 | AM106: =AL106 -> 1466 | AN106: =AM106 -> 1466 | AO106: =AN106 -> 1466 | AP106: =AO106 -> 1466 | AQ106: =AP106 -> 1466 | AR106: =AQ106 -> 1466 | AS106: =AR106 -> 1466 | AT106: =AS106 -> 1466 | AU106: =AT106 -> 1466 | AV106: =AU106 -> 1466
B107: APIC | D107: 1010 | E107: 1056 | F107: 1126 | G107: 1236 | H107: =G107 -> 1236 | I107: 1272 | J107: 1310 | K107: 1351 | L107: 1438 | M107: 1438 | N107: 1495 | O107: 1542 | P107: 1654 | Q107: 1691 | R107: 1691 | S107: 1787 | T107: 1854 | U107: 1932 | V107: 1984 | W107: 1984 | X107: 2047 | Y107: 2081 | Z107: 2183 | AA107: 2204 | AB107: 2204 | AC107: 2241 | AD107: 2338 | AE107: 2338 | AF107: 2338 | AG107: 2338 | AH107: 2338 | AI107: 2338 | AJ107: 2338 | AK107: 2338 | AL107: 2338 | AM107: 2338 | AN107: 2338 | AO107: 2338 | AP107: 2338 | AQ107: 2338 | AR107: 2338 | AS107: 2338 | AT107: 2338 | AU107: 2338 | AV107: 2338
B108: Retained earnings | D108: 17698 | E108: 17991 | F108: 18210 | G108: 18832 | H108: 18832 | I108: 18704 | J108: 18936 | K108: 19323 | L108: 18861 | M108: 18861 | N108: 18705 | O108: 18955 | P108: 19310 | Q108: 19922 | R108: 19922 | S108: 19782 | T108: 19952 | U108: 20207 | V108: 20531 | W108: 20531 | X108: 20581 | Y108: 20851 | Z108: 21008 | AA108: 21615 | AB108: 21615 | AC108: 21436 | AD108: 21653 | AE108: =AD108+(AE135+AE160) -> 21878.92279 | AF108: =AE108+(AF135+AF160) -> 22110.80676 | AG108: 22110.80676 | AH108: =AG108+(AH135+AH160) -> 22342.16982 | AI108: 22569.3628 | AJ108: 22803.08127 | AK108: 23043.23351 | AL108: 23043.23351 | AM108: =AL108+(AM135+AM160) -> 23282.92239 | AN108: 23518.18044 | AO108: 23760.25752 | AP108: 24009.20965 | AQ108: 24009.20965 | AR108: =AQ108+(AR135+AR160) -> 24257.75791 | AS108: 24501.61054 | AT108: 24752.58867 | AU108: 25010.89635 | AV108: 25010.89635
B109: Accumulated other comprehensive income | D109: -2537 | E109: -2504 | F109: -2887 | G109: -3507 | H109: -3507 | I109: -3847 | J109: -3776 | K109: -4085 | L109: -3950 | M109: -3950 | N109: -3825 | O109: -3843 | P109: -3829 | Q109: -4180 | R109: -4180 | S109: -4052 | T109: -3947 | U109: -3834 | V109: -3855 | W109: -3855 | X109: -3900 | Y109: -4164 | Z109: -4172 | AA109: -4188 | AB109: -4188 | AC109: -4160 | AD109: -4119 | AE109: -4119 | AF109: -4119 | AG109: -4119 | AH109: -4119 | AI109: -4119 | AJ109: -4119 | AK109: -4119 | AL109: -4119 | AM109: =AL109 -> -4119 | AN109: =AM109 -> -4119 | AO109: =AN109 -> -4119 | AP109: =AO109 -> -4119 | AQ109: -4119 | AR109: =AQ109 -> -4119 | AS109: =AR109 -> -4119 | AT109: =AS109 -> -4119 | AU109: =AT109 -> -4119 | AV109: -4119
B110: Unearned Compensation | D110: -26 | E110: -22 | F110: -18 | G110: -20 | H110: =G110 -> -20 | I110: -13 | J110: -9 | K110: -8 | L110: -12 | M110: -12 | N110: -7 | O110: -5 | P110: -3 | Q110: -7 | R110: -7 | S110: -3 | T110: -2 | U110: -1 | V110: -5 | W110: -5 | X110: -2 | Y110: 0 | Z110: 1 | AA110: -3 | AB110: -3 | AC110: -3 | AD110: -3 | AE110: =AD110 -> -3 | AF110: =AE110 -> -3 | AG110: -3 | AH110: -3 | AI110: -3 | AJ110: -3 | AK110: -3 | AL110: -3 | AM110: -3 | AN110: -3 | AO110: -3 | AP110: -3 | AQ110: -3 | AR110: -3 | AS110: -3 | AT110: -3 | AU110: -3 | AV110: -3
B111: Treasury stock, at cost | D111: -15981 | E111: -16208 | F111: -16477 | G111: -16862 | H111: -16862 | I111: -17122 | J111: -17473 | K111: -17792 | L111: -18102 | M111: -18102 | N111: -18204 | O111: -18396 | P111: -18731 | Q111: -19135 | R111: -19135 | S111: -19293 | T111: -19565 | U111: -19878 | V111: -20181 | W111: -20181 | X111: -20441 | Y111: -20757 | Z111: -20916 | AA111: -21196 | AB111: -21196 | AC111: -21532 | AD111: -21682 | AE111: -21682 | AF111: -21682 | AG111: -21682 | AH111: -21682 | AI111: -21682 | AJ111: -21682 | AK111: -21682 | AL111: -21682 | AM111: -21682 | AN111: -21682 | AO111: -21682 | AP111: -21682 | AQ111: -21682 | AR111: -21682 | AS111: -21682 | AT111: -21682 | AU111: -21682 | AV111: -21682
B112: Total Colgate-Palmolive shareholders' equity | D112: =SUM(D106:D111) -> 1630 | E112: 1779 | F112: 1420 | G112: 1145 | H112: 1145 | I112: 460 | J112: 454 | K112: 255 | L112: -299 | M112: -299 | N112: -370 | O112: -281 | P112: -133 | Q112: -243 | R112: -243 | S112: -313 | T112: -242 | U112: -108 | V112: -60 | W112: -60 | X112: -249 | Y112: -523 | Z112: -430 | AA112: -102 | AB112: -102 | AC112: -552 | AD112: -347 | AE112: -121.0772145 | AF112: =SUM(AF106:AF111) -> 110.8067579 | AG112: 110.8067579 | AH112: =SUM(AH106:AH111) -> 342.1698186 | AI112: 569.3628015 | AJ112: 803.0812737 | AK112: 1043.233512 | AL112: 1043.233512 | AM112: =SUM(AM106:AM111) -> 1282.922394 | AN112: 1518.180438 | AO112: 1760.257522 | AP112: 2009.209649 | AQ112: 2009.209649 | AR112: =SUM(AR106:AR111) -> 2257.757908 | AS112: 2501.610544 | AT112: 2752.58867 | AU112: 3010.896346 | AV112: 3010.896346
B113: Non-controlling interests | D113: 270 | E113: 292 | F113: 326 | G113: 240 | H113: =G113 -> 240 | I113: 279 | J113: 303 | K113: 335 | L113: 255 | M113: =L113 -> 255 | N113: 297 | O113: 315 | P113: 361 | Q113: 260 | R113: =Q113 -> 260 | S113: 308 | T113: 330 | U113: 375 | V113: 303 | W113: =V113 -> 303 | X113: 350 | Y113: 334 | Z113: 362 | AA113: 299 | AB113: =AA113 -> 299 | AC113: 342 | AD113: 337 | AE113: =AD113 -> 337 | AF113: =AE113 -> 337 | AG113: =AF113 -> 337 | AH113: =AG113 -> 337 | AI113: 337 | AJ113: 337 | AK113: 337 | AL113: =AK113 -> 337 | AM113: =AL113 -> 337 | AN113: 337 | AO113: 337 | AP113: 337 | AQ113: =AP113 -> 337 | AR113: =AQ113 -> 337 | AS113: 337 | AT113: 337 | AU113: 337 | AV113: =AU113 -> 337
B114: Total shareholders' equity | D114: =SUM(D106:D111)+D113 -> 1900 | E114: 2071 | F114: 1746 | G114: 1385 | H114: 1385 | I114: 739 | J114: 757 | K114: 590 | L114: -44 | M114: -44 | N114: -73 | O114: 34 | P114: 228 | Q114: 17 | R114: 17 | S114: -5 | T114: 88 | U114: 267 | V114: 243 | W114: 243 | X114: 101 | Y114: -189 | Z114: -68 | AA114: 197 | AB114: 197 | AC114: -210 | AD114: =SUM(AD106:AD111)+AD113 -> -10 | AE114: =SUM(AE106:AE111)+AE113 -> 215.9227855 | AF114: 447.8067579 | AG114: 447.8067579 | AH114: =SUM(AH106:AH111)+AH113 -> 679.1698186 | AI114: =SUM(AI106:AI111)+AI113 -> 906.3628015 | AJ114: =SUM(AJ106:AJ111)+AJ113 -> 1140.081274 | AK114: =SUM(AK106:AK111)+AK113 -> 1380.233512 | AL114: 1380.233512 | AM114: =SUM(AM106:AM111)+AM113 -> 1619.922394 | AN114: =SUM(AN106:AN111)+AN113 -> 1855.180438 | AO114: =SUM(AO106:AO111)+AO113 -> 2097.257522 | AP114: =SUM(AP106:AP111)+AP113 -> 2346.209649 | AQ114: =SUM(AQ106:AQ111)+AQ113 -> 2346.209649 | AR114: =SUM(AR106:AR111)+AR113 -> 2594.757908 | AS114: =SUM(AS106:AS111)+AS113 -> 2838.610544 | AT114: =SUM(AT106:AT111)+AT113 -> 3089.58867 | AU114: =SUM(AU106:AU111)+AU113 -> 3347.896346 | AV114: =SUM(AV106:AV111)+AV113 -> 3347.896346
B115: Total liabilities and equity | D115: =D114+D103 -> 14432 | E115: 13988 | F115: 13685 | G115: 13459 | H115: 13459 | I115: 13156 | J115: 13660 | K115: 13563 | L115: 11935 | M115: 11935 | N115: 12448 | O115: 12515 | P115: 12623 | Q115: 12123 | R115: 12123 | S115: 12448 | T115: 12580 | U115: 12775 | V115: 12676 | W115: 12676 | X115: 13144 | Y115: 12650 | Z115: 12571 | AA115: 12161 | AB115: 12161 | AC115: 12883 | AD115: 13151 | AE115: =AE114+AE103 -> 13141.49963 | AF115: =AF114+AF103 -> 13234.37379 | AG115: 13234.37379 | AH115: 13751.37192 | AI115: 13960.9619 | AJ115: 13888.25914 | AK115: 14004.84396 | AL115: =AL114+AL103 -> 14004.84396 | AM115: 14513.26012 | AN115: 14733.30782 | AO115: 14681.23461 | AP115: 14821.34883 | AQ115: =AQ114+AQ103 -> 14821.34883 | AR115: 15322.74224 | AS115: 15553.65931 | AT115: 15521.87749 | AU115: 15685.41512 | AV115: =AV114+AV103 -> 15685.41512
D116: =D115-D91 -> 0 | E116: =E115-E91 -> 0 | F116: =ROUND((F115-F91),0) -> 0 | G116: 0 | H116: 0 | I116: 0 | J116: 0 | K116: 0 | L116: 0 | M116: 0 | N116: 0 | O116: 0 | P116: 0 | Q116: 0 | R116: 0 | S116: 0 | T116: 0 | U116: 0 | V116: 0 | W116: 0 | X116: 0 | Y116: 0 | Z116: 0 | AA116: 0 | AB116: 0 | AC116: 0 | AD116: 0 | AE116: 0 | AF116: 0 | AG116: 0 | AH116: 0 | AI116: 0 | AJ116: 0 | AK116: 0 | AL116: 0 | AM116: 0 | AN116: 0 | AO116: 0 | AP116: 0 | AQ116: 0 | AR116: =ROUND((AR115-AR91),0) -> 0 | AS116: 0 | AT116: 0 | AU116: 0 | AV116: 0
B117: Balance Sheet Ratios & Assumptions | D117: Mar-14 | E117: Jun-14 | F117: Sep-14 | G117: Dec-14 | H117: Dec-14 | I117: Mar-15 | J117: Jun-15 | K117: Sep-15 | L117: Dec-15 | M117: Dec-15 | N117: Mar-16 | O117: Jun-16 | P117: Sep-16 | Q117: Dec-16 | R117: Dec-16 | S117: Mar-17 | T117: Jun-17 | U117: Sep-17 | V117: Dec-17 | W117: Dec-17 | X117: Mar-18 | Y117: Jun-18 | Z117: Sep-18 | AA117: Dec-18 | AB117: Dec-18 | AC117: Mar-19 | AD117: Jun-19 | AE117: Sep-19 | AF117: Dec-19 | AG117: Dec-19 | AH117: Mar-20 | AI117: Jun-20 | AJ117: Sep-20 | AK117: Dec-20 | AL117: Dec-20 | AM117: Mar-21 | AN117: Jun-21 | AO117: Sep-21 | AP117: Dec-21 | AQ117: Dec-21 | AR117: Mar-21 | AS117: Jun-21 | AT117: Sep-21 | AU117: Dec-21 | AV117: Dec-21
D118: 1Q14 | E118: 2Q14 | F118: 3Q14 | G118: 4Q14 | H118: FY 2014 | I118: 1Q15 | J118: 2Q15 | K118: 3Q15 | L118: 4Q15 | M118: FY 2015 | N118: 1Q16 | O118: 2Q16 | P118: 3Q16 | Q118: 4Q16 | R118: FY 2016 | S118: 1Q17 | T118: 2Q17 | U118: 3Q17 | V118: 4Q17 | W118: FY 2017 | X118: 1Q18 | Y118: 2Q18 | Z118: 3Q18 | AA118: 4Q18 | AB118: FY 2018 | AC118: 1Q19 | AD118: 2Q19 | AE118: 3Q19E | AF118: 4Q19E | AG118: FY 2019E | AH118: 1Q20E | AI118: 2Q20E | AJ118: 3Q20E | AK118: 4Q20E | AL118: FY 2020E | AM118: 1Q21E | AN118: 2Q21E | AO118: 3Q21E | AP118: 4Q21E | AQ118: FY 2121E | AR118: 1Q21E | AS118: 2Q21E | AT118: 3Q21E | AU118: 4Q21E | AV118: FY 2121E
B119: Ratios
B120: Inventory turnover | E120: =E15/(AVERAGE(D83,E83)) -> 1.205626256 | F120: =F15/(AVERAGE(E83,F83)) -> 1.243003413 | G120: =G15/(AVERAGE(F83,G83)) -> 1.245363766 | I120: =I15/(AVERAGE(H83,I83)) -> 1.2284041 | J120: =J15/(AVERAGE(I83,J83)) -> 1.270755423 | K120: =K15/(AVERAGE(J83,K83)) -> 1.270280661 | L120: =L15/(AVERAGE(K83,L83)) -> 1.307285307 | N120: =N15/(AVERAGE(M83,N83)) -> 1.254349627 | O120: =O15/(AVERAGE(N83,O83)) -> 1.249797242 | P120: =P15/(AVERAGE(O83,P83)) -> 1.27257732 | Q120: =Q15/(AVERAGE(P83,Q83)) -> 1.247038917 | S120: =S15/(AVERAGE(R83,S83)) -> 1.265254237 | T120: =T15/(AVERAGE(S83,T83)) -> 1.278056951 | U120: =U15/(AVERAGE(T83,U83)) -> 1.323627288 | V120: =V15/(AVERAGE(U83,V83)) -> 1.28936521 | X120: =X15/(AVERAGE(W83,X83)) -> 1.258586656 | Y120: =Y15/(AVERAGE(X83,Y83)) -> 1.235385814 | Z120: =Z15/(AVERAGE(Y83,Z83)) -> 1.261304522 | AA120: =AA15/(AVERAGE(Z83,AA83)) -> 1.248897796 | AC120: =AC15/(AVERAGE(AB83,AC83)) -> 1.263449367 | AD120: =AD15/(AVERAGE(AC83,AD83)) -> 1.198461538 | AE120: =Z120 -> 1.261304522 | AF120: 1.248897796 | AH120: =AC120 -> 1.263449367 | AI120: =AD120 -> 1.198461538 | AJ120: =AE120 -> 1.261304522 | AK120: =AF120 -> 1.248897796 | AM120: =AH120 -> 1.263449367 | AN120: =AI120 -> 1.198461538 | AO120: =AJ120 -> 1.261304522 | AP120: =AK120 -> 1.248897796 | AR120: =AM120 -> 1.263449367 | AS120: =AN120 -> 1.198461538 | AT120: =AO120 -> 1.261304522 | AU120: =AP120 -> 1.248897796
B121: Days of inventory on hand* | E121: =90/E120 -> 74.65 | F121: =90/F120 -> 72.40527183 | G121: 72.26804124 | I121: =90/I120 -> 73.26579261 | J121: 70.82401413 | K121: 70.85048426 | L121: 68.84495641 | N121: =90/N120 -> 71.75033025 | O121: =90/O120 -> 72.01168073 | P121: =90/P120 -> 70.72261828 | Q121: =90/Q120 -> 72.17096336 | S121: =90/S120 -> 71.1319491 | T121: =90/T120 -> 70.41939712 | U121: =90/U120 -> 67.99497172 | V121: =90/V120 -> 69.80179028 | X121: =90/X120 -> 71.50878294 | Y121: =90/Y120 -> 72.85173502 | Z121: =90/Z120 -> 71.35469543 | AA121: =90/AA120 -> 72.063543 | AC121: =90/AC120 -> 71.23356293 | AD121: =90/AD120 -> 75.09627728 | AE121: =90/AE120 -> 71.35469543 | AF121: 72.063543 | AH121: =90/AH120 -> 71.23356293 | AI121: =90/AI120 -> 75.09627728 | AJ121: 71.35469543 | AK121: 72.063543 | AM121: =90/AM120 -> 71.23356293 | AN121: =90/AN120 -> 75.09627728 | AO121: 71.35469543 | AP121: 72.063543 | AR121: =90/AR120 -> 71.23356293 | AS121: =90/AS120 -> 75.09627728 | AT121: 71.35469543 | AU121: 72.063543
B122: Receivables turnover | E122: =E14/(AVERAGE(E82,D82)) -> 2.506190613 | F122: =F14/(AVERAGE(F82,E82)) -> 2.467042254 | G122: =G14/(AVERAGE(G82,F82)) -> 2.55895726 | I122: =I14/(AVERAGE(I82,H82)) -> 2.573506165 | J122: =J14/(AVERAGE(J82,I82)) -> 2.462749849 | K122: =K14/(AVERAGE(K82,J82)) -> 2.459409594 | L122: =L14/(AVERAGE(L82,K82)) -> 2.609772423 | N122: =N14/(AVERAGE(N82,M82)) -> 2.530776993 | O122: =O14/(AVERAGE(O82,N82)) -> 2.463953861 | P122: =P14/(AVERAGE(P82,O82)) -> 2.466985646 | Q122: =Q14/(AVERAGE(Q82,P82)) -> 2.504880512 | S122: =S14/(AVERAGE(S82,R82)) -> 2.588235294 | T122: =T14/(AVERAGE(T82,S82)) -> 2.532097948 | U122: =U14/(AVERAGE(U82,T82)) -> 2.60078534 | V122: =V14/(AVERAGE(V82,U82)) -> 2.586046512 | X122: =X14/(AVERAGE(X82,W82)) -> 2.562099872 | Y122: =Y14/(AVERAGE(Y82,X82)) -> 2.437127626 | Z122: =Z14/(AVERAGE(Z82,Y82)) -> 2.49918752 | AA122: =AA14/(AVERAGE(AA82,Z82)) -> 2.599590723 | AC122: =AC14/(AVERAGE(AC82,AB82)) -> 2.635900916 | AD122: =AD14/(AVERAGE(AD82,AC82)) -> 2.464775263 | AE122: =Z122 -> 2.49918752 | AF122: =AA122 -> 2.599590723 | AH122: =AC122 -> 2.635900916 | AI122: =AD122 -> 2.464775263 | AJ122: =AE122 -> 2.49918752 | AK122: =AF122 -> 2.599590723 | AM122: =AH122 -> 2.635900916 | AN122: =AI122 -> 2.464775263 | AO122: =AJ122 -> 2.49918752 | AP122: =AK122 -> 2.599590723 | AR122: =AM122 -> 2.635900916 | AS122: =AN122 -> 2.464775263 | AT122: =AO122 -> 2.49918752 | AU122: =AP122 -> 2.599590723
B123: Days sales outstanding* | E123: =90/E122 -> 35.91107537 | F123: =90/F122 -> 36.48093172 | G123: 35.17057569 | I123: =90/I122 -> 34.97174447 | J123: 36.54451549 | K123: 36.59414854 | L123: 34.48576558 | N123: =90/N122 -> 35.56220096 | O123: =90/O122 -> 36.526658 | P123: =90/P122 -> 36.48176881 | Q123: =90/Q122 -> 35.92985757 | S123: =90/S122 -> 34.77272727 | T123: =90/T122 -> 35.54364872 | U123: =90/U122 -> 34.60493206 | V123: =90/V122 -> 34.80215827 | X123: =90/X122 -> 35.12743628 | Y123: =90/Y122 -> 36.92871848 | Z123: =90/Z122 -> 36.01170351 | AA123: =90/AA122 -> 34.62083443 | AC123: =90/AC122 -> 34.14392379 | AD123: =90/AD122 -> 36.51448526 | AE123: =90/AE122 -> 36.01170351 | AF123: 34.62083443 | AH123: =90/AH122 -> 34.14392379 | AI123: 36.51448526 | AJ123: 36.01170351 | AK123: 34.62083443 | AM123: =90/AM122 -> 34.14392379 | AN123: 36.51448526 | AO123: 36.01170351 | AP123: 34.62083443 | AR123: =90/AR122 -> 34.14392379 | AS123: 36.51448526 | AT123: 36.01170351 | AU123: 34.62083443
B124: PP&E turnover | E124: =E14/(AVERAGE(E86,D86)) -> 1.072713828 | F124: =F14/(AVERAGE(F86,E86)) -> 1.079235983 | G124: =G14/(AVERAGE(G86,F86)) -> 1.039911308 | I124: =I14/(AVERAGE(I86,H86)) -> 1.011431412 | J124: =J14/(AVERAGE(J86,I86)) -> 1.01561134 | K124: =K14/(AVERAGE(K86,J86)) -> 1 | L124: =L14/(AVERAGE(L86,K86)) -> 1.00554481 | N124: =N14/(AVERAGE(N86,M86)) -> 0.9879201681 | O124: =O14/(AVERAGE(O86,N86)) -> 1.0058862 | P124: =P14/(AVERAGE(P86,O86)) -> 1.009397024 | Q124: =Q14/(AVERAGE(Q86,P86)) -> 0.9693890843 | S124: =S14/(AVERAGE(S86,R86)) -> 0.9742328111 | T124: =T14/(AVERAGE(T86,S86)) -> 0.9793933188 | U124: =U14/(AVERAGE(U86,T86)) -> 1.002396267 | V124: =V14/(AVERAGE(V86,U86)) -> 0.9644405898 | X124: =X14/(AVERAGE(X86,W86)) -> 0.9810025738 | Y124: =Y14/(AVERAGE(Y86,X86)) -> 0.9721075672 | Z124: =Z14/(AVERAGE(Z86,Y86)) -> 0.9885589407 | AA124: =AA14/(AVERAGE(AA86,Z86)) -> 0.9832301342 | AC124: =AC14/(AVERAGE(AC86,AB86)) -> 1.008569203 | AD124: =AD14/(AVERAGE(AD86,AC86)) -> 1.015497767 | AE124: =AE14/(AVERAGE(AE86,AD86)) -> 1.047039567 | AF124: =AF14/(AVERAGE(AF86,AE86)) -> 1.097719889 | AH124: =AH14/(AVERAGE(AH86,AG86)) -> 1.139063977 | AI124: =AI14/(AVERAGE(AI86,AH86)) -> 1.172741893 | AJ124: =AJ14/(AVERAGE(AJ86,AI86)) -> 1.224762603 | AK124: =AK14/(AVERAGE(AK86,AJ86)) -> 1.281350118 | AM124: =AM14/(AVERAGE(AM86,AL86)) -> 1.32587784 | AN124: =AN14/(AVERAGE(AN86,AM86)) -> 1.360908088 | AO124: =AO14/(AVERAGE(AO86,AN86)) -> 1.41739057 | AP124: =AP14/(AVERAGE(AP86,AO86)) -> 1.478811329 | AR124: =AR14/(AVERAGE(AR86,AQ86)) -> 1.525568701 | AS124: =AS14/(AVERAGE(AS86,AR86)) -> 1.560794711 | AT124: =AT14/(AVERAGE(AT86,AS86)) -> 1.620832933 | AU124: =AU14/(AVERAGE(AU86,AT86)) -> 1.686145438
B125: Payables turnover* | E125: =E15/(AVERAGE(E96,D96)) -> 1.431411531 | F125: =F15/(AVERAGE(F96,E96)) -> 1.476885645 | G125: =G15/(AVERAGE(G96,F96)) -> 1.427636958 | I125: =I15/(AVERAGE(I96,H96)) -> 1.399499583 | J125: =J15/(AVERAGE(J96,I96)) -> 1.454623288 | K125: =K15/(AVERAGE(K96,J96)) -> 1.450395083 | L125: =L15/(AVERAGE(L96,K96)) -> 1.447498873 | N125: =N15/(AVERAGE(N96,M96)) -> 1.365193868 | O125: =O15/(AVERAGE(O96,N96)) -> 1.407305936 | P125: =P15/(AVERAGE(P96,O96)) -> 1.430027804 | Q125: =Q15/(AVERAGE(Q96,P96)) -> 1.34 | S125: =S15/(AVERAGE(S96,R96)) -> 1.333035714 | T125: =T15/(AVERAGE(T96,S96)) -> 1.358255452 | U125: =U15/(AVERAGE(U96,T96)) -> 1.386492375 | V125: =V15/(AVERAGE(V96,U96)) -> 1.316498316 | X125: =X15/(AVERAGE(X96,W96)) -> 1.316811235 | Y125: =Y15/(AVERAGE(Y96,X96)) -> 1.360515021 | Z125: =Z15/(AVERAGE(Z96,Y96)) -> 1.383062747 | AA125: =AA15/(AVERAGE(AA96,Z96)) -> 1.309243697 | AC125: =AC15/(AVERAGE(AC96,AB96)) -> 1.310627821 | AD125: =AD15/(AVERAGE(AD96,AC96)) -> 1.285478548 | AE125: =Z125 -> 1.383062747 | AF125: =AA125 -> 1.309243697 | AH125: =AC125 -> 1.310627821 | AI125: =AD125 -> 1.285478548 | AJ125: =AE125 -> 1.383062747 | AK125: =AF125 -> 1.309243697 | AM125: =AH125 -> 1.310627821 | AN125: =AI125 -> 1.285478548 | AO125: =AJ125 -> 1.383062747 | AP125: =AK125 -> 1.309243697 | AR125: =AM125 -> 1.310627821 | AS125: =AN125 -> 1.285478548 | AT125: =AO125 -> 1.383062747 | AU125: =AP125 -> 1.309243697
B126: Number of days of payables | E126: =90/E125 -> 62.875 | F126: =90/F125 -> 60.93904448 | G126: 63.04123711 | I126: =90/I125 -> 64.30870083 | J126: 61.87168923 | K126: 62.05205811 | L126: 62.1762142 | N126: =90/N125 -> 65.92470277 | O126: =90/O125 -> 63.95197923 | P126: =90/P125 -> 62.93583927 | Q126: =90/Q125 -> 67.1641791 | S126: =90/S125 -> 67.51507033 | T126: =90/T125 -> 66.26146789 | U126: =90/U125 -> 64.91200503 | V126: =90/V125 -> 68.36317136 | X126: =90/X125 -> 68.34692597 | Y126: =90/Y125 -> 66.15141956 | Z126: =90/Z125 -> 65.07296954 | AA126: =90/AA125 -> 68.74197689 | AC126: =90/AC125 -> 68.66938009 | AD126: =90/AD125 -> 70.01283697 | AE126: =90/AE125 -> 65.07296954 | AF126: 68.74197689 | AH126: =90/AH125 -> 68.66938009 | AI126: 70.01283697 | AJ126: 65.07296954 | AK126: 68.74197689 | AM126: =90/AM125 -> 68.66938009 | AN126: 70.01283697 | AO126: 65.07296954 | AP126: 68.74197689 | AR126: =90/AR125 -> 68.66938009 | AS126: 70.01283697 | AT126: 65.07296954 | AU126: 68.74197689
B127: Cash conversion cycle* | E127: =E121+E123-E126 -> 47.68607537 | F127: =F121+F123-F126 -> 47.94715907 | G127: 44.39737982 | I127: =I121+I123-I126 -> 43.92883625 | J127: 45.49684039 | K127: 45.39257469 | L127: 41.1545078 | N127: =N121+N123-N126 -> 41.38782843 | O127: =O121+O123-O126 -> 44.58635949 | P127: =P121+P123-P126 -> 44.26854781 | Q127: =Q121+Q123-Q126 -> 40.93664183 | S127: =S121+S123-S126 -> 38.38960604 | T127: =T121+T123-T126 -> 39.70157795 | U127: =U121+U123-U126 -> 37.68789875 | V127: =V121+V123-V126 -> 36.2407772 | X127: =X121+X123-X126 -> 38.28929325 | Y127: =Y121+Y123-Y126 -> 43.62903393 | Z127: =Z121+Z123-Z126 -> 42.2934294 | AA127: =AA121+AA123-AA126 -> 37.94240054 | AC127: =AC121+AC123-AC126 -> 36.70810663 | AD127: =AD121+AD123-AD126 -> 41.59792556 | AE127: =AE121+AE123-AE126 -> 42.2934294 | AF127: =AF121+AF123-AF126 -> 37.94240054 | AH127: =AH121+AH123-AH126 -> 36.70810663 | AI127: =AI121+AI123-AI126 -> 41.59792556 | AJ127: =AJ121+AJ123-AJ126 -> 42.2934294 | AK127: =AK121+AK123-AK126 -> 37.94240054 | AM127: =AM121+AM123-AM126 -> 36.70810663 | AN127: =AN121+AN123-AN126 -> 41.59792556 | AO127: =AO121+AO123-AO126 -> 42.2934294 | AP127: =AP121+AP123-AP126 -> 37.94240054 | AR127: =AR121+AR123-AR126 -> 36.70810663 | AS127: =AS121+AS123-AS126 -> 41.59792556 | AT127: =AT121+AT123-AT126 -> 42.2934294 | AU127: =AU121+AU123-AU126 -> 37.94240054
B128: *Assumes 90 days in each quarter
B131: Nike Cash Flow Statement
B132: (Dollars in millions, except per share data) | D132: Mar-14 | E132: Jun-14 | F132: Sep-14 | G132: Dec-14 | H132: Dec-14 | I132: Mar-15 | J132: Jun-15 | K132: Sep-15 | L132: Dec-15 | M132: Dec-15 | N132: Mar-16 | O132: Jun-16 | P132: Sep-16 | Q132: Dec-16 | R132: Dec-16 | S132: Mar-17 | T132: Jun-17 | U132: Sep-17 | V132: Dec-17 | W132: Dec-17 | X132: Mar-18 | Y132: Jun-18 | Z132: Sep-18 | AA132: Dec-18 | AB132: Dec-18 | AC132: Mar-19 | AD132: Jun-19 | AE132: Sep-19 | AF132: Dec-19 | AG132: Dec-19 | AH132: Mar-20 | AI132: Jun-20 | AJ132: Sep-20 | AK132: Dec-20 | AL132: Dec-20 | AM132: Mar-21 | AN132: Jun-21 | AO132: Sep-21 | AP132: Dec-21 | AQ132: Dec-21 | AR132: Mar-21 | AS132: Jun-21 | AT132: Sep-21 | AU132: Dec-21 | AV132: Dec-21
D133: 1Q14 | E133: 2Q14 | F133: 3Q14 | G133: 4Q14 | H133: FY 2014 | I133: 1Q15 | J133: 2Q15 | K133: 3Q15 | L133: 4Q15 | M133: FY 2015 | N133: 1Q16 | O133: 2Q16 | P133: 3Q16 | Q133: 4Q16 | R133: FY 2016 | S133: 1Q17 | T133: 2Q17 | U133: 3Q17 | V133: 4Q17 | W133: FY 2017 | X133: 1Q18 | Y133: 2Q18 | Z133: 3Q18 | AA133: 4Q18 | AB133: FY 2018 | AC133: 1Q19 | AD133: 2Q19 | AE133: 3Q19E | AF133: 4Q19E | AG133: FY 2019E | AH133: 1Q20E | AI133: 2Q20E | AJ133: 3Q20E | AK133: 4Q20E | AL133: FY 2020E | AM133: 1Q21E | AN133: 2Q21E | AO133: 3Q21E | AP133: 4Q21E | AQ133: FY 2121E | AR133: 1Q21E | AS133: 2Q21E | AT133: 3Q21E | AU133: 4Q21E | AV133: FY 2121E
B134: Cash flows from operating activities
B135: Net income (loss) | D135: 432 | E135: 661 | F135: 580 | G135: 666 | H135: =SUM(D135:G135) -> 2339 | I135: 583 | J135: 616 | K135: 770 | L135: -421 | M135: =SUM(I135:L135) -> 1548 | N135: 574 | O135: 638 | P135: 746 | Q135: 628 | R135: =SUM(N135:Q135) -> 2586 | S135: 611 | T135: 560 | U135: 650 | V135: 353 | W135: =SUM(S135:V135) -> 2174 | X135: 678 | Y135: 675 | Z135: 562 | AA135: 643 | AB135: =SUM(X135:AA135) -> 2558 | AC135: 600 | AD135: 618 | AE135: =AE26 -> 598.4223457 | AF135: =AF26 -> 606.2322224 | AG135: =SUM(AC135:AF135) -> 2422.654568 | AH135: =AH26 -> 607.5691755 | AI135: =AI26 -> 605.2661829 | AJ135: =AJ26 -> 613.6680236 | AK135: =AK26 -> 621.9874536 | AL135: =SUM(AH135:AK135) -> 2448.490836 | AM135: =AM26 -> 623.4191186 | AN135: =AN26 -> 620.892708 | AO135: =AO26 -> 629.6256264 | AP135: =AP26 -> 638.4240466 | AQ135: =SUM(AM135:AP135) -> 2512.3615 | AR135: =AR26 -> 639.9531009 | AS135: =AS26 -> 637.1999933 | AT135: =AT26 -> 646.2776391 | AU135: =AU26 -> 655.5690338 | AV135: =SUM(AR135:AU135) -> 2578.999767
B136: Depreciation & amortisation | D136: 108 | E136: 107 | F136: 114 | G136: 113 | H136: 442 | I136: 114 | J136: 111 | K136: 112 | L136: 112 | M136: 449 | N136: 106 | O136: 109 | P136: 114 | Q136: 114 | R136: 443 | S136: 109 | T136: 117 | U136: 128 | V136: 121 | W136: 475 | X136: 129 | Y136: 129 | Z136: 127 | AA136: 126 | AB136: 511 | AC136: 128 | AD136: 128 | AE136: =(AVERAGE(AD86,AC86))*AE177 -> 190.35 | AF136: =(AVERAGE(AE86,AD86))*AF177 -> 186.3546552 | AG136: 632.7046552 | AH136: =(AVERAGE(AG86,AF86))*AH177 -> 176.7034684 | AI136: 173.7703987 | AJ136: =(AVERAGE(AI86,AH86))*AJ177 -> 167.970464 | AK136: =(AVERAGE(AJ86,AI86))*AK177 -> 162.3960621 | AL136: 680.8403932 | AM136: =(AVERAGE(AL86,AK86))*AM177 -> 154.5889684 | AN136: =(AVERAGE(AM86,AL86))*AN177 -> 152.2381127 | AO136: =(AVERAGE(AN86,AM86))*AO177 -> 147.587704 | AP136: =(AVERAGE(AO86,AN86))*AP177 -> 143.1198841 | AQ136: 597.5346692 | AR136: =(AVERAGE(AQ86,AP86))*AR177 -> 136.8770444 | AS136: =(AVERAGE(AR86,AQ86))*AS177 -> 134.9997538 | AT136: =(AVERAGE(AS86,AR86))*AT177 -> 131.2842779 | AU136: =(AVERAGE(AT86,AS86))*AU177 -> 127.7165394 | AV136: 530.8776156
B137: Restructuring charges | D137: 45 | E137: 23 | F137: 1 | G137: -5 | H137: 64 | I137: 57 | J137: 2 | K137: 9 | L137: 1 | M137: 69 | N137: 6 | O137: 2 | P137: -9 | Q137: -8 | R137: -9 | S137: -9 | T137: 87 | U137: 2 | V137: 11 | W137: 91 | X137: -25 | Y137: 11 | Z137: -6 | AA137: 13 | AB137: -7 | AC137: 5 | AD137: 16 | AE137: 0 | AF137: 0 | AG137: 21 | AH137: 0 | AI137: 0 | AJ137: 0 | AK137: 0 | AL137: 0 | AM137: 0 | AN137: 0 | AO137: 0 | AP137: 0 | AQ137: 0 | AR137: 0 | AS137: 0 | AT137: 0 | AU137: 0 | AV137: 0
B138: Stock-based compensation | D138: 34 | E138: 20 | F138: 55 | G138: 22 | H138: 131 | I138: 32 | J138: 19 | K138: 53 | L138: 21 | M138: 125 | N138: 31 | O138: 17 | P138: 54 | Q138: 21 | R138: 123 | S138: 35 | T138: 18 | U138: 53 | V138: 21 | W138: 127 | X138: 28 | Y138: 19 | Z138: 50 | AA138: 12 | AB138: 109 | AC138: 17 | AD138: 17 | AE138: 0 | AF138: 0 | AG138: 34 | AH138: 0 | AI138: 0 | AJ138: 0 | AK138: 0 | AL138: 0 | AM138: 0 | AN138: 0 | AO138: 0 | AP138: 0 | AQ138: 0 | AR138: 0 | AS138: 0 | AT138: 0 | AU138: 0 | AV138: 0
B139: Deferred taxes | D139: -21 | E139: -16 | F139: 2 | G139: 53 | H139: 18 | I139: -22 | J139: -38 | K139: 18 | L139: -9 | M139: -51 | N139: -36 | O139: -5 | P139: 91 | Q139: 6 | R139: 56 | S139: -51 | T139: -13 | U139: 62 | V139: 110 | W139: 108 | X139: 13 | Y139: -11 | Z139: 76 | AA139: -51 | AB139: 27 | AC139: 53 | AD139: 0 | AE139: 0 | AF139: 0 | AG139: =SUM(AC139:AF139) -> 53 | AH139: 0 | AI139: 0 | AJ139: 0 | AK139: 0 | AL139: 0 | AM139: 0 | AN139: 0 | AO139: 0 | AP139: 0 | AQ139: 0 | AR139: 0 | AS139: 0 | AT139: 0 | AU139: 0 | AV139: 0
B140: Other operating cash flows | D140: 266 | E140: 0 | F140: 125 | G140: 2 | H140: 393 | I140: 0 | J140: 16 | K140: -169 | L140: 1084 | M140: 931 | N140: 0 | O140: 0 | P140: -97 | Q140: -53 | R140: -150 | S140: 0 | T140: 0 | U140: 0 | V140: 275 | W140: 275 | X140: 0 | Y140: 0 | Z140: 80 | AA140: 0 | AB140: 80 | AC140: 0 | AD140: -102 | AE140: 0 | AF140: 0 | AG140: -102 | AH140: 0 | AI140: 0 | AJ140: 0 | AK140: 0 | AL140: 0 | AM140: 0 | AN140: 0 | AO140: 0 | AP140: 0 | AQ140: 0 | AR140: 0 | AS140: 0 | AT140: 0 | AU140: 0 | AV140: 0
B142: Change in operating assets and liabilities
B143: Accounts receivable | D143: -77 | E143: -121 | F143: -24 | G143: 113 | H143: -109 | I143: -150 | J143: -72 | K143: 50 | L143: 97 | M143: -75 | N143: -95 | O143: -37 | P143: 6 | Q143: 109 | R143: =SUM(N143:Q143) -> -17 | S143: -52 | T143: -12 | U143: 14 | V143: 35 | W143: =SUM(S143:V143) -> -15 | X143: -211 | Y143: 11 | Z143: 4 | AA143: 117 | AB143: =SUM(X143:AA143) -> -79 | AC143: -145 | AD143: -33 | AE143: =-(AE82-AD82) -> 28.52695333 | AF143: =-(AF82-AE82) -> 42.31561147 | AG143: =SUM(AC143:AF143) -> -107.1574352 | AH143: =-(AH82-AG82) -> 17.31341535 | AI143: -96.56540074 | AJ143: =-(AJ82-AI82) -> 6.719143553 | AK143: =-(AK82-AJ82) -> 42.60218419 | AL143: =SUM(AH143:AK143) -> -29.93065765 | AM143: =-(AM82-AL82) -> 17.54994671 | AN143: -98.25182308 | AO143: =-(AO82-AN82) -> 6.408190581 | AP143: =-(AP82-AO82) -> 42.91694263 | AQ143: =SUM(AM143:AP143) -> -31.37674316 | AR143: =-(AR82-AQ82) -> 17.80064184 | AS143: -100.0253798 | AT143: =-(AT82-AS82) -> 6.093808268 | AU143: =-(AU82-AT82) -> 43.26058847 | AV143: =SUM(AR143:AU143) -> -32.87034124
B144: Inventories | D144: -67 | E144: -23 | F144: 39 | G144: -9 | H144: -60 | I144: -23 | J144: 31 | K144: -7 | L144: -14 | M144: -13 | N144: -32 | O144: -3 | P144: 39 | Q144: -8 | R144: -4 | S144: 9 | T144: 0 | U144: 7 | V144: -24 | W144: -8 | X144: -33 | Y144: 3 | Z144: -6 | AA144: -22 | AB144: -58 | AC144: -32 | AD144: -31 | AE144: =-(AE83-AD83) -> -8.398781696 | AF144: =-(AF83-AE83) -> -29.32069529 | AG144: -100.719477 | AH144: =-(AH83-AG83) -> 12.41881236 | AI144: -66.24457286 | AJ144: =-(AJ83-AI83) -> 57.40091599 | AK144: =-(AK83-AJ83) -> -30.36454362 | AL144: -26.78938813 | AM144: =-(AM83-AL83) -> 12.56967109 | AN144: -67.35727196 | AO144: =-(AO83-AN83) -> 58.15050318 | AP144: =-(AP83-AO83) -> -31.44660701 | AQ144: -28.0837047 | AR144: =-(AR83-AQ83) -> 12.73027282 | AS144: -68.52876706 | AT144: =-(AT83-AS83) -> 58.94627915 | AU144: =-(AU83-AT83) -> -32.56833223 | AV144: -29.42054731
B145: Accounts payable and other accruals | D145: 100 | E145: -108 | F145: 108 | G145: -43 | H145: =SUM(D145:G145) -> 57 | I145: 111 | J145: -188 | K145: 59 | L145: -49 | M145: =SUM(I145:L145) -> -67 | N145: 80 | O145: -11 | P145: 32 | Q145: -1 | R145: =SUM(N145:Q145) -> 100 | S145: 98 | T145: -159 | U145: 100 | V145: -135 | W145: =SUM(S145:V145) -> -96 | X145: 33 | Y145: -129 | Z145: 109 | AA145: 5 | AB145: =SUM(X145:AA145) -> 18 | AC145: 44 | AD145: -58 | AE145: =(AE96-AD96) -> 4.27684013 | AF145: =(AF96-AE96) -> 83.77019603 | AG145: =SUM(AC145:AF145) -> 74.04703616 | AH145: =(AH96-AG96) -> 1.755068145 | AI145: 19.05699402 | AJ145: =(AJ96-AI96) -> -81.10323251 | AK145: =(AK96-AJ96) -> 85.84577705 | AL145: =SUM(AH145:AK145) -> 25.55460671 | AM145: =(AM96-AL96) -> 1.880088072 | AN145: 19.25005118 | AO145: =(AO96-AN96) -> -82.35137027 | AP145: =(AP96-AO96) -> 88.01049642 | AQ145: =SUM(AM145:AP145) -> 26.7892654 | AR145: =(AR96-AQ96) -> 2.008782296 | AS145: 19.45720914 | AT145: =(AT96-AS96) -> -83.66895863 | AU145: =(AU96-AT96) -> 90.26745721 | AV145: =SUM(AR145:AU145) -> 28.06449002
B146: Other non-current assets and liabilities | D146: 0 | E146: 26 | F146: 3 | G146: -6 | H146: 23 | I146: 25 | J146: -1 | K146: -10 | L146: 19 | M146: 33 | N146: -20 | O146: -4 | P146: 21 | Q146: 16 | R146: 13 | S146: -59 | T146: 16 | U146: -26 | V146: -8 | W146: -77 | X146: 4 | Y146: -27 | Z146: -99 | AA146: 19 | AB146: -103 | AC146: -65 | AD146: 89 | AE146: 0 | AF146: 0 | AG146: 24 | AH146: 0 | AI146: 0 | AJ146: 0 | AK146: 0 | AL146: =SUM(AH146:AK146) -> 0 | AM146: 0 | AN146: 0 | AO146: 0 | AP146: 0 | AQ146: =SUM(AM146:AP146) -> 0 | AR146: 0 | AS146: 0 | AT146: 0 | AU146: 0 | AV146: =SUM(AR146:AU146) -> 0
B147: Net cash provided by operating activities | D147: =SUM(D135:D146) -> 820 | E147: 569 | F147: 1003 | G147: 906 | H147: 3298 | I147: 727 | J147: 496 | K147: 885 | L147: 841 | M147: 2949 | N147: 614 | O147: 706 | P147: 997 | Q147: 824 | R147: 3141 | S147: 691 | T147: 614 | U147: 990 | V147: 759 | W147: 3054 | X147: 616 | Y147: 681 | Z147: 897 | AA147: 862 | AB147: 3056 | AC147: 605 | AD147: 644 | AE147: 813.1773575 | AF147: =SUM(AF135:AF146) -> 889.3519898 | AG147: 2951.529347 | AH147: =SUM(AH135:AH146) -> 815.7599398 | AI147: 635.283602 | AJ147: 764.6553146 | AK147: 882.4669334 | AL147: 3098.16579 | AM147: =SUM(AM135:AM146) -> 810.0077928 | AN147: 626.7717769 | AO147: 759.4206539 | AP147: 881.0247628 | AQ147: 3077.224986 | AR147: =SUM(AR135:AR146) -> 809.3698423 | AS147: 623.1028094 | AT147: 758.9330458 | AU147: 884.2452867 | AV147: 3075.650984
B149: Cash flows from investing activities
B150: Capital Expenditures | D150: -168 | E150: =-314-D150 -> -146 | F150: -179 | G150: -264 | H150: =SUM(D150:G150) -> -757 | I150: -122 | J150: -158 | K150: -179 | L150: -232 | M150: =SUM(I150:L150) -> -691 | N150: -114 | O150: -134 | P150: -144 | Q150: -201 | R150: =SUM(N150:Q150) -> -593 | S150: -121 | T150: -108 | U150: -153 | V150: -171 | W150: =SUM(S150:V150) -> -553 | X150: -118 | Y150: -98 | Z150: -105 | AA150: -115 | AB150: =SUM(X150:AA150) -> -436 | AC150: -71 | AD150: -75 | AE150: =-AE$14*$C$291 -> -58.53620927 | AF150: =-AF$14*$C$291 -> -59.23781363 | AG150: =SUM(AC150:AF150) -> -263.7740229 | AH150: =-AH$14*$C$291 -> -59.38068042 | AI150: -59.0958 | AJ150: -59.66898715 | AK150: -60.40492553 | AL150: =SUM(AH150:AK150) -> -238.5503931 | AM150: -60.55474204 | AN150: -60.25599 | AO150: -60.85703223 | AP150: -61.62842589 | AQ150: =SUM(AM150:AP150) -> -243.2961902 | AR150: -61.78541972 | AS150: -61.47234198 | AT150: -62.10215196 | AU150: -62.9101674 | AV150: =SUM(AR150:AU150) -> -248.2700811
B151: Purchases of marketable securities | D151: -151 | E151: =-165-D151 -> -14 | F151: -67 | G151: -108 | H151: -340 | I151: -252 | J151: -113 | K151: -134 | L151: -243 | M151: -742 | N151: -80 | O151: -103 | P151: -88 | Q151: -65 | R151: -336 | S151: -85 | T151: 85 | U151: -301 | V151: -46 | W151: -347 | X151: -38 | Y151: -58 | Z151: -63 | AA151: -10 | AB151: -169 | AC151: -27 | AD151: -53 | AE151: 0 | AF151: 0 | AG151: -80 | AH151: 0 | AI151: 0 | AJ151: 0 | AK151: 0 | AL151: 0 | AM151: 0 | AN151: 0 | AO151: 0 | AP151: 0 | AQ151: 0 | AR151: 0 | AS151: 0 | AT151: 0 | AU151: 0 | AV151: 0
B152: Sale of marketable securities | D152: 74 | E152: =177-D152 -> 103 | F152: 100 | G152: 6 | H152: 283 | I152: 110 | J152: 85 | K152: 203 | L152: 201 | M152: 599 | N152: 50 | O152: 37 | P152: 71 | Q152: 220 | R152: 378 | S152: 48 | T152: -48 | U152: 149 | V152: 242 | W152: 391 | X152: 0 | Y152: 19 | Z152: 9 | AA152: 128 | AB152: 156 | AC152: 0 | AD152: 14 | AE152: 0 | AF152: 0 | AG152: 14 | AH152: 0 | AI152: 0 | AJ152: 0 | AK152: 0 | AL152: 0 | AM152: 0 | AN152: 0 | AO152: 0 | AP152: 0 | AQ152: 0 | AR152: 0 | AS152: 0 | AT152: 0 | AU152: 0 | AV152: 0
B153: Acquisitions, net of cash acquired | D153: -25 | E153: 0 | F153: 0 | G153: -62 | H153: -87 | I153: 0 | J153: 0 | K153: -13 | L153: 0 | M153: -13 | N153: 0 | O153: 0 | P153: 0 | Q153: -5 | R153: -5 | S153: 0 | T153: 0 | U153: 0 | V153: 0 | W153: 0 | X153: -727 | Y153: 0 | Z153: -1 | AA153: 0 | AB153: -728 | AC153: 0 | AD153: 0 | AE153: 0 | AF153: 0 | AG153: 0 | AH153: 0 | AI153: 0 | AJ153: 0 | AK153: 0 | AL153: 0 | AM153: 0 | AN153: 0 | AO153: 0 | AP153: 0 | AQ153: 0 | AR153: 0 | AS153: 0 | AT153: 0 | AU153: 0 | AV153: 0
B154: Other | D154: 21 | E154: -8 | F154: 5 | G154: 24 | H154: 42 | I154: 7 | J154: 5 | K154: 217 | L154: -67 | M154: 162 | O154: 4 | P154: 56 | Q154: -3 | R154: 57 | S154: 0 | T154: -83 | U154: 85 | V154: 36 | W154: =SUM(S154:V154) -> 38 | X154: 2 | Y154: -72 | Z154: 76 | AA154: 1 | AB154: =SUM(X154:AA154) -> 7 | AC154: 0 | AD154: 0 | AE154: 0 | AF154: 0 | AG154: =SUM(AC154:AF154) -> 0 | AH154: 0 | AI154: 0 | AJ154: 0 | AK154: 0 | AL154: 0 | AM154: 0 | AN154: 0 | AO154: 0 | AP154: 0 | AQ154: 0 | AR154: 0 | AS154: 0 | AT154: 0 | AU154: 0 | AV154: 0
B155: Net cash provided by (used for) investing | D155: =SUM(D150:D154) -> -249 | E155: -65 | F155: -141 | G155: -404 | H155: -859 | I155: -257 | J155: -181 | K155: 94 | L155: -341 | M155: -685 | N155: -144 | O155: -196 | P155: -105 | Q155: -54 | R155: -499 | S155: -158 | T155: -154 | U155: -220 | V155: 61 | W155: -471 | X155: -881 | Y155: -209 | Z155: -84 | AA155: 4 | AB155: -1170 | AC155: -98 | AD155: -114 | AE155: -58.53620927 | AF155: =SUM(AF150:AF154) -> -59.23781363 | AG155: -329.7740229 | AH155: =SUM(AH150:AH154) -> -59.38068042 | AI155: -59.0958 | AJ155: -59.66898715 | AK155: -60.40492553 | AL155: -238.5503931 | AM155: =SUM(AM150:AM154) -> -60.55474204 | AN155: -60.25599 | AO155: -60.85703223 | AP155: -61.62842589 | AQ155: -243.2961902 | AR155: =SUM(AR150:AR154) -> -61.78541972 | AS155: -61.47234198 | AT155: -62.10215196 | AU155: -62.9101674 | AV155: -248.2700811
B157: Cash flows from financing activities
B158: Principal payments on debt | D158: -1938 | E158: =-4282-D158 -> -2344 | F158: -1938 | G158: -2305 | H158: =SUM(D158:G158) -> -8525 | I158: -2171 | J158: -2007 | K158: -2513 | L158: -2490 | M158: =SUM(I158:L158) -> -9181 | N158: -2388 | O158: -1690 | P158: -1368 | Q158: -1828 | R158: =SUM(N158:Q158) -> -7274 | S158: -805 | T158: -1036 | U158: -1710 | V158: -1257 | W158: =SUM(S158:V158) -> -4808 | X158: -2079 | Y158: -1874 | Z158: -1525 | AA158: -1877 | AB158: =SUM(X158:AA158) -> -7355 | AC158: -1774 | AD158: -1331 | AE158: =Z158*$C$296 -> -1433.5 | AF158: =AA158*$C$296 -> -1764.38 | AG158: =SUM(AC158:AF158) -> -6302.88 | AH158: =AC158*$C$296 -> -1667.56 | AI158: =AD158*$C$296 -> -1251.14 | AJ158: =AE158*$C$296 -> -1347.49 | AK158: =AF158*$C$296 -> -1658.5172 | AL158: =SUM(AH158:AK158) -> -5924.7072 | AM158: =AH158*$C$296 -> -1567.5064 | AN158: =AI158*$C$296 -> -1176.0716 | AO158: =AJ158*$C$296 -> -1266.6406 | AP158: =AK158*$C$296 -> -1559.006168 | AQ158: =SUM(AM158:AP158) -> -5569.224768 | AR158: =AM158*$C$296 -> -1473.456016 | AS158: =AN158*$C$296 -> -1105.507304 | AT158: =AO158*$C$296 -> -1190.642164 | AU158: =AP158*$C$296 -> -1465.465798 | AV158: =SUM(AR158:AU158) -> -5235.071282
B159: Proceeds from issuance of debt | D159: 2960 | E159: =4707-D159 -> 1747 | F159: 1890 | G159: 2363 | H159: 8960 | I159: 2105 | J159: 2581 | K159: 2607 | L159: 2309 | M159: 9602 | N159: 2370 | O159: 1753 | P159: 1324 | Q159: 1991 | R159: 7438 | S159: 738 | T159: 1023 | U159: 1717 | V159: 1301 | W159: 4779 | X159: 2226 | Y159: 2040 | Z159: 1270 | AA159: 1640 | AB159: 7176 | AC159: 2076 | AD159: 1292 | AE159: =Z159*$C$193 -> 1193.8 | AF159: =AA159*$C$193 -> 1541.6 | AG159: 6103.4 | AH159: =AC159*$C$193 -> 1951.44 | AI159: =AD159*$C$193 -> 1214.48 | AJ159: =AE159*$C$193 -> 1122.172 | AK159: =AF159*$C$193 -> 1449.104 | AL159: 5737.196 | AM159: =AH159*$C$193 -> 1834.3536 | AN159: =AI159*$C$193 -> 1141.6112 | AO159: =AJ159*$C$193 -> 1054.84168 | AP159: =AK159*$C$193 -> 1362.15776 | AQ159: 5392.96424 | AR159: =AM159*$C$193 -> 1724.292384 | AS159: =AN159*$C$193 -> 1073.114528 | AT159: =AO159*$C$193 -> 991.5511792 | AU159: =AP159*$C$193 -> 1280.428294 | AV159: 5069.386386
B160: Dividends paid | D160: -316 | E160: =-662-D160 -> -346 | F160: -328 | G160: -456 | H160: -1446 | I160: -329 | J160: -360 | K160: -344 | L160: -460 | M160: -1493 | N160: -340 | O160: -364 | P160: -349 | Q160: -455 | R160: -1508 | S160: -345 | T160: -371 | U160: -354 | V160: -459 | W160: -1529 | X160: -352 | Y160: -404 | Z160: -366 | AA160: -469 | AB160: -1591 | AC160: -366 | AD160: -404 | AE160: =-AE33*AE29 -> -372.4995602 | AF160: =-AF33*AF29 -> -374.34825 | AG160: -1516.84781 | AH160: =-AH33*AH29 -> -376.2061148 | AI160: =-AI33*AI29 -> -378.0732 | AJ160: =-AJ33*AJ29 -> -379.9495514 | AK160: =-AK33*AK29 -> -381.835215 | AL160: -1516.064081 | AM160: =-AM33*AM29 -> -383.7302371 | AN160: =-AN33*AN29 -> -385.634664 | AO160: =-AO33*AO29 -> -387.5485424 | AP160: =-AP33*AP29 -> -389.4719193 | AQ160: -1546.385363 | AR160: =-AR33*AR29 -> -391.4048418 | AS160: =-AS33*AS29 -> -393.3473573 | AT160: =-AT33*AT29 -> -395.2995133 | AU160: =-AU33*AU29 -> -397.2613577 | AV160: -1577.31307
B161: Purchases of treasury shares | D161: -453 | E161: =-746-D161 -> -293 | F161: -373 | G161: -411 | H161: -1530 | I161: -374 | J161: -393 | K161: -429 | L161: -355 | M161: -1551 | N161: -229 | O161: -253 | P161: -431 | Q161: -422 | R161: -1335 | S161: -333 | T161: -327 | U161: -395 | V161: -344 | W161: -1399 | X161: -351 | Y161: -345 | Z161: -260 | AA161: -282 | AB161: -1238 | AC161: -399 | AD161: -265 | AE161: =AE111-AD111 -> 0 | AF161: =AF111-AE111 -> 0 | AG161: -664 | AH161: =AH111-AG111 -> 0 | AI161: 0 | AJ161: =AJ111-AI111 -> 0 | AK161: =AK111-AJ111 -> 0 | AL161: 0 | AM161: =AM111-AL111 -> 0 | AN161: 0 | AO161: =AO111-AN111 -> 0 | AP161: =AP111-AO111 -> 0 | AQ161: 0 | AR161: =AR111-AQ111 -> 0 | AS161: 0 | AT161: =AT111-AS111 -> 0 | AU161: =AU111-AT111 -> 0 | AV161: 0
B162: Proceeds from exercise of stock options and excess tax benefits | D162: 50 | E162: =153-D162 -> 103 | F162: 142 | G162: 76 | H162: =SUM(D162:G162) -> 371 | I162: 128 | J162: 64 | K162: 109 | L162: 46 | M162: 347 | N162: 146 | O162: 128 | P162: 144 | Q162: 28 | R162: 446 | S162: 225 | T162: 112 | U162: 94 | V162: 76 | W162: 507 | X162: 119 | Y162: 41 | Z162: 159 | AA162: 10 | AB162: 329 | AC162: 71 | AD162: 196 | AE162: 0 | AF162: 0 | AG162: 267 | AH162: 0 | AI162: 0 | AJ162: 0 | AK162: 0 | AL162: 0 | AM162: 0 | AN162: 0 | AO162: 0 | AP162: 0 | AQ162: 0 | AR162: 0 | AS162: 0 | AT162: 0 | AU162: 0 | AV162: 0
B163: Other | D163: 0 | E163: 0 | F163: 0 | G163: 0 | H163: 0 | I163: 0 | J163: 0 | K163: 0 | L163: 0 | M163: 0 | N163: 0 | O163: 0 | P163: 0 | Q163: 0 | R163: 0 | S163: 0 | T163: 0 | U163: 0 | V163: 0 | W163: 0 | X163: 0 | Y163: 0 | Z163: 0 | AA163: 0 | AB163: 0 | AC163: 0 | AD163: 0 | AE163: 0 | AF163: 0 | AG163: 0 | AH163: 0 | AI163: 0 | AJ163: 0 | AK163: 0 | AL163: 0 | AM163: 0 | AN163: 0 | AO163: 0 | AP163: 0 | AQ163: 0 | AR163: 0 | AS163: 0 | AT163: 0 | AU163: 0 | AV163: 0
B164: Net cash provided by (used for) financing | D164: =SUM(D158:D163) -> 303 | E164: -1133 | F164: -607 | G164: -733 | H164: -2170 | I164: -641 | J164: -115 | K164: -570 | L164: -950 | M164: -2276 | N164: -441 | O164: -426 | P164: -680 | Q164: -686 | R164: -2233 | S164: -520 | T164: -599 | U164: -648 | V164: -683 | W164: -2450 | X164: -437 | Y164: -542 | Z164: -722 | AA164: -978 | AB164: -2679 | AC164: -392 | AD164: -512 | AE164: -612.1995602 | AF164: =SUM(AF158:AF163) -> -597.12825 | AG164: -2113.32781 | AH164: =SUM(AH158:AH163) -> -92.32611479 | AI164: -414.7332 | AJ164: -605.2675514 | AK164: -591.248415 | AL164: -1703.575281 | AM164: =SUM(AM158:AM163) -> -116.8830371 | AN164: -420.095064 | AO164: -599.3474624 | AP164: -586.3203273 | AQ164: -1722.645891 | AR164: =SUM(AR158:AR163) -> -140.5684738 | AS164: -425.7401333 | AT164: -594.3904981 | AU164: -582.2988613 | AV164: -1742.997966
B165: Effect of exchange rates on cash | D165: -41 | E165: -5 | F165: -61 | G165: -35 | H165: -142 | I165: -59 | J165: 0 | K165: -23 | L165: -25 | M165: -107 | N165: 15 | O165: -13 | P165: 1 | Q165: -67 | R165: -64 | S165: 19 | T165: 33 | U165: 17 | V165: 18 | W165: =SUM(S165:V165) -> 87 | X165: 18 | Y165: -25 | Z165: -6 | AA165: -3 | AB165: =SUM(X165:AA165) -> -16 | AC165: 2 | AD165: 2 | AE165: 0 | AF165: 0 | AG165: =SUM(AC165:AF165) -> 4 | AH165: 0 | AI165: 0 | AJ165: 0 | AK165: 0 | AL165: =SUM(AH165:AK165) -> 0 | AM165: 0 | AN165: 0 | AO165: 0 | AP165: 0 | AQ165: =SUM(AM165:AP165) -> 0 | AR165: 0 | AS165: 0 | AT165: 0 | AU165: 0 | AV165: =SUM(AR165:AU165) -> 0
B166: Net increase (decrease) in cash and equivalents | D166: =D164+D155+D147+D165 -> 833 | E166: -634 | F166: 194 | G166: -266 | H166: 127 | I166: -230 | J166: 200 | K166: 386 | L166: -475 | M166: -119 | N166: 44 | O166: 71 | P166: 213 | Q166: 17 | R166: 345 | S166: 32 | T166: -106 | U166: 139 | V166: 155 | W166: 220 | X166: -684 | Y166: -95 | Z166: 85 | AA166: -115 | AB166: -809 | AC166: 117 | AD166: 20 | AE166: =AE164+AE155+AE147+AE165 -> 142.441588 | AF166: =AF164+AF155+AF147+AF165 -> 232.9859262 | AG166: 512.4275142 | AH166: 664.0531446 | AI166: 161.454602 | AJ166: =AJ164+AJ155+AJ147+AJ165 -> 99.71877607 | AK166: =AK164+AK155+AK147+AK165 -> 230.8135928 | AL166: =AL164+AL155+AL147+AL165 -> 1156.040115 | AM166: 632.5700137 | AN166: 146.4207229 | AO166: =AO164+AO155+AO147+AO165 -> 99.2161592 | AP166: =AP164+AP155+AP147+AP165 -> 233.0760095 | AQ166: =AQ164+AQ155+AQ147+AQ165 -> 1111.282905 | AR166: 607.0159487 | AS166: 135.8903342 | AT166: =AT164+AT155+AT147+AT165 -> 102.4403957 | AU166: =AU164+AU155+AU147+AU165 -> 239.036258 | AV166: =AV164+AV155+AV147+AV165 -> 1084.382937
B167: Cash and equivalents at beginning of period | D167: 962 | E167: =D168 -> 1795 | F167: =E168 -> 1161 | G167: 1355 | H167: =D167 -> 962 | I167: =H168 -> 1089 | J167: =I168 -> 859 | K167: 1059 | L167: 1445 | M167: =I167 -> 1089 | N167: =M168 -> 970 | O167: =N168 -> 1014 | P167: =O168 -> 1085 | Q167: =P168 -> 1298 | R167: =N167 -> 970 | S167: =R168 -> 1315 | T167: =S168 -> 1347 | U167: =T168 -> 1241 | V167: =U168 -> 1380 | W167: =S167 -> 1315 | X167: =W168 -> 1535 | Y167: =X168 -> 851 | Z167: =Y168 -> 756 | AA167: =Z168 -> 841 | AB167: =X167 -> 1535 | AC167: =AB168 -> 726 | AD167: =AC168 -> 843 | AE167: =AD168 -> 863 | AF167: 1005.441588 | AG167: =AC167 -> 726 | AH167: =AG168 -> 1238.427514 | AI167: =AH168 -> 1902.480659 | AJ167: =AI168 -> 2063.935261 | AK167: =AJ168 -> 2163.654037 | AL167: =AH167 -> 1238.427514 | AM167: =AL168 -> 2394.46763 | AN167: =AM168 -> 3027.037643 | AO167: =AN168 -> 3173.458366 | AP167: =AO168 -> 3272.674525 | AQ167: =AM167 -> 2394.46763 | AR167: =AQ168 -> 3505.750535 | AS167: =AR168 -> 4112.766484 | AT167: =AS168 -> 4248.656818 | AU167: =AT168 -> 4351.097214 | AV167: =AR167 -> 3505.750535
B168: Cash and equivalents at end of period | D168: =D167+D166 -> 1795 | E168: =E167+E166 -> 1161 | F168: =F167+F166 -> 1355 | G168: =G167+G166 -> 1089 | H168: =H167+H166 -> 1089 | I168: =I167+I166 -> 859 | J168: =J167+J166 -> 1059 | K168: =K167+K166 -> 1445 | L168: =L167+L166 -> 970 | M168: =M167+M166 -> 970 | N168: =N167+N166 -> 1014 | O168: =O167+O166 -> 1085 | P168: 1298 | Q168: =Q167+Q166 -> 1315 | R168: =R167+R166 -> 1315 | S168: =S167+S166 -> 1347 | T168: =T167+T166 -> 1241 | U168: 1380 | V168: =V167+V166 -> 1535 | W168: =W167+W166 -> 1535 | X168: =X167+X166 -> 851 | Y168: =Y167+Y166 -> 756 | Z168: 841 | AA168: =AA167+AA166 -> 726 | AB168: =AB167+AB166 -> 726 | AC168: =AC167+AC166 -> 843 | AD168: =AD167+AD166 -> 863 | AE168: 1005.441588 | AF168: =AF167+AF166 -> 1238.427514 | AG168: =AG167+AG166 -> 1238.427514 | AH168: =AH167+AH166 -> 1902.480659 | AI168: 2063.935261 | AJ168: 2163.654037 | AK168: 2394.46763 | AL168: =AL167+AL166 -> 2394.46763 | AM168: =AM167+AM166 -> 3027.037643 | AN168: 3173.458366 | AO168: 3272.674525 | AP168: 3505.750535 | AQ168: =AQ167+AQ166 -> 3505.750535 | AR168: =AR167+AR166 -> 4112.766484 | AS168: 4248.656818 | AT168: 4351.097214 | AU168: 4590.133472 | AV168: =AV167+AV166 -> 4590.133472
B169: Net cash per share | D169: =(D81-D94-D100)/D30 -> -4.273099289 | E169: -4.968139108 | F169: -4.442999567 | G169: -4.968478261 | H169: -4.945230303 | I169: -5.217723453 | J169: -5.629110039 | K169: -5.644503253 | L169: -5.889570552 | M169: -5.814817874 | N169: -5.407687181 | O169: -5.034957274 | P169: -4.805382562 | Q169: -5.866913896 | R169: -5.814098699 | S169: -5.75308642 | T169: -5.925011226 | U169: -5.807288728 | V169: -5.70813993 | W169: -5.678887199 | X169: -6.657574724 | Y169: -6.901601831 | Z169: -6.61577316 | AA169: -6.501440922 | AB169: -6.459556192 | AC169: -6.61097852 | AD169: -6.57006478 | AE169: -6.135763623 | AF169: -5.617788937 | AG169: -5.617788937 | AH169: -5.185724902 | AI169: -4.960569087 | AJ169: -4.591167136 | AK169: -4.090852563 | AL169: -4.090852563 | AM169: -3.675211225 | AN169: -3.469641134 | AO169: -3.116174741 | AP169: -2.627568743 | AQ169: -2.627568743 | AR169: -2.22277322 | AS169: -2.03152068 | AT169: -1.688832442 | AU169: -1.206875672 | AV169: -1.206875672
B170: DCF Period (approximate number of years) | H170: 0 | M170: 0 | AG170: 0.5 | AL170: =AG170+1 -> 1.5 | AQ170: =AL170+1 -> 2.5 | AV170: =AQ170+1 -> 3.5
B171: Free Cash Flow to Firm (FCFF)* | H171: =H147-(-H150)+(-H22*(1-$C$348)) -> 2523.277136 | M171: =M147-(-M150)+(-M22*(1-$C$348)) -> 2238.800231 | R171: =R147-(-R150)+(-R22*(1-$C$348)) -> 2474.893187 | W171: =W147-(-W150)+(-W22*(1-$C$348)) -> 2425.677829 | AB171: =AB147-(-AB150)+(-AB22*(1-$C$348)) -> 2514.40127 | AG171: =AG147-(-AG150)+(-AG22*(1-$C$348)) -> 2576.337511 | AL171: =AL147-(-AL150)+(-AL22*(1-$C$348)) -> 2752.789977 | AQ171: =AQ147-(-AQ150)+(-AQ22*(1-$C$348)) -> 2730.400053 | AV171: =AV147-(-AV150)+(-AV22*(1-$C$348)) -> 2726.951035
B172: Discounted FCFF | AG172: =AG171/(1+$C$350)^AG170 -> 2499.655116 | AL172: =AL171/(1+$C$350)^AL170 -> 2514.230463 | AQ172: =AQ171/(1+$C$350)^AQ170 -> 2347.539778 | AV172: =AV171/(1+$C$350)^AV170 -> 2207.083107
B174: Cash Flow Ratios & Assumptions | D174: Mar-14 | E174: Jun-14 | F174: Sep-14 | G174: Dec-14 | H174: Dec-14 | I174: Mar-15 | J174: Jun-15 | K174: Sep-15 | L174: Dec-15 | M174: Dec-15 | N174: Mar-16 | O174: Jun-16 | P174: Sep-16 | Q174: Dec-16 | R174: Dec-16 | S174: Mar-17 | T174: Jun-17 | U174: Sep-17 | V174: Dec-17 | W174: Dec-17 | X174: Mar-18 | Y174: Jun-18 | Z174: Sep-18 | AA174: Dec-18 | AB174: Dec-18 | AC174: Mar-19 | AD174: Jun-19 | AE174: Sep-19 | AF174: Dec-19 | AG174: Dec-19 | AH174: Mar-20 | AI174: Jun-20 | AJ174: Sep-20 | AK174: Dec-20 | AL174: Dec-20 | AM174: Mar-21 | AN174: Jun-21 | AO174: Sep-21 | AP174: Dec-21 | AQ174: Dec-21 | AR174: Mar-21 | AS174: Jun-21 | AT174: Sep-21 | AU174: Dec-21 | AV174: Dec-21
D175: 1Q14 | E175: 2Q14 | F175: 3Q14 | G175: 4Q14 | H175: FY 2014 | I175: 1Q15 | J175: 2Q15 | K175: 3Q15 | L175: 4Q15 | M175: FY 2015 | N175: 1Q16 | O175: 2Q16 | P175: 3Q16 | Q175: 4Q16 | R175: FY 2016 | S175: 1Q17 | T175: 2Q17 | U175: 3Q17 | V175: 4Q17 | W175: FY 2017 | X175: 1Q18 | Y175: 2Q18 | Z175: 3Q18 | AA175: 4Q18 | AB175: FY 2018 | AC175: 1Q19 | AD175: 2Q19 | AE175: 3Q19E | AF175: 4Q19E | AG175: FY 2019E | AH175: 1Q20E | AI175: 2Q20E | AJ175: 3Q20E | AK175: 4Q20E | AL175: FY 2020E | AM175: 1Q21E | AN175: 2Q21E | AO175: 3Q21E | AP175: 4Q21E | AQ175: FY 2121E | AR175: 1Q21E | AS175: 2Q21E | AT175: 3Q21E | AU175: 4Q21E | AV175: FY 2121E
B176: Ratios
B177: Depreciation to PPE | E177: =E136/(AVERAGE(E86,D86)) -> 0.0263741681 | F177: =F136/(AVERAGE(F86,E86)) -> 0.0280961183 | G177: =G136/(AVERAGE(G86,F86)) -> 0.0278393693 | I177: =I136/(AVERAGE(I86,G86)) -> 0.02833001988 | J177: =J136/(AVERAGE(J86,I86)) -> 0.02772573998 | K177: =K136/(AVERAGE(K86,J86)) -> 0.02800700175 | L177: =L136/(AVERAGE(L86,K86)) -> 0.02888459059 | N177: =N136/(AVERAGE(N86,L86)) -> 0.02783613445 | O177: =O136/(AVERAGE(O86,N86)) -> 0.02851536952 | P177: =P136/(AVERAGE(P86,O86)) -> 0.02975724354 | Q177: =Q136/(AVERAGE(Q86,P86)) -> 0.02969910121 | S177: =S136/(AVERAGE(S86,Q86)) -> 0.02822737278 | T177: =T136/(AVERAGE(T86,S86)) -> 0.02995008319 | U177: =U136/(AVERAGE(U86,T86)) -> 0.03228654307 | V177: =V136/(AVERAGE(V86,U86)) -> 0.02998389295 | X177: =X136/(AVERAGE(X86,V86)) -> 0.03162152225 | Y177: =Y136/(AVERAGE(Y86,X86)) -> 0.03227016886 | Z177: =Z136/(AVERAGE(Z86,Y86)) -> 0.03265201183 | AA177: =AA136/(AVERAGE(AA86,Z86)) -> 0.03250773994 | AC177: =AC136/(AVERAGE(AC86,AA86)) -> 0.03323811997 | AD177: =AD136/(AVERAGE(AD86,AC86)) -> 0.03362227476 | AE177: =$C$290 -> 0.05 | AF177: =$C$290 -> 0.05 | AH177: =$C$290 -> 0.05 | AI177: =$C$290 -> 0.05 | AJ177: =$C$290 -> 0.05 | AK177: =$C$290 -> 0.05 | AM177: =$C$290 -> 0.05 | AN177: =$C$290 -> 0.05 | AO177: =$C$290 -> 0.05 | AP177: =$C$290 -> 0.05 | AR177: =$C$290 -> 0.05 | AS177: =$C$290 -> 0.05 | AT177: =$C$290 -> 0.05 | AU177: =$C$290 -> 0.05
B178: Net Cash from Operations growth rate | E178: =E147/D147-1 -> -0.306097561 | F178: =F147/E147-1 -> 0.762741652 | G178: =G147/F147-1 -> -0.09670987039 | I178: =I147/G147-1 -> -0.1975717439 | J178: =J147/I147-1 -> -0.3177441541 | K178: =K147/J147-1 -> 0.7842741935 | L178: =L147/K147-1 -> -0.04971751412 | M178: =M147/H147-1 -> -0.1058217101 | N178: =N147/L147-1 -> -0.2699167658 | O178: =O147/N147-1 -> 0.1498371336 | P178: =P147/O147-1 -> 0.4121813031 | Q178: =Q147/P147-1 -> -0.1735205617 | R178: =R147/M147-1 -> 0.06510681587 | S178: =S147/Q147-1 -> -0.161407767 | T178: =T147/S147-1 -> -0.1114327062 | U178: =U147/T147-1 -> 0.6123778502 | V178: =V147/U147-1 -> -0.2333333333 | W178: =W147/R147-1 -> -0.02769818529 | X178: -0.3910472973 | Y178: 0.3356449376 | Z178: 0.1079958463 | AA178: -0.1668228679 | AB178: =AB147/W147-1 -> 0.0006548788474 | AC178: =AC147/AA147-1 -> -0.2981438515 | AD178: =AD147/AC147-1 -> 0.06446280992 | AE178: =AE147/AD147-1 -> 0.2626977601 | AF178: =AF147/AE147-1 -> 0.09367529933 | AG178: =AG147/AB147-1 -> -0.034185423 | AH178: =AH147/AF147-1 -> -0.08274794561 | AI178: =AI147/AH147-1 -> -0.2212370686 | AJ178: =AJ147/AI147-1 -> 0.2036440295 | AK178: =AK147/AJ147-1 -> 0.1540715359 | AL178: =AL147/AG147-1 -> 0.04968151262 | AM178: =AM147/AK147-1 -> -0.08210975143 | AN178: =AN147/AM147-1 -> -0.2262151273 | AO178: =AO147/AN147-1 -> 0.211638242 | AP178: =AP147/AO147-1 -> 0.1601274712 | AQ178: =AQ147/AL147-1 -> -0.00675909712 | AR178: =AR147/AP147-1 -> -0.08133133542 | AS178: =AS147/AR147-1 -> -0.2301383411 | AT178: =AT147/AS147-1 -> 0.2179900882 | AU178: =AU147/AT147-1 -> 0.1651163322 | AV178: =AV147/AQ147-1 -> -0.0005115005345
B179: Capex to sales | D179: =-D150/D14 -> 0.03884393064 | E179: 0.03354779412 | F179: 0.04087691254 | G179: 0.06254442075 | H179: 0.04381547722 | I179: 0.02997542998 | J179: 0.03885882932 | K179: 0.0447611903 | L179: 0.05950243652 | M179: 0.04309592117 | N179: 0.0303030303 | O179: 0.03485045514 | P179: 0.03723816912 | Q179: 0.05401773717 | R179: 0.03902599539 | S179: 0.03216374269 | T179: 0.02822791427 | U179: 0.03850025164 | V179: 0.04393627955 | W179: 0.03578361589 | X179: 0.02948525737 | Y179: 0.02521873392 | Z179: 0.02730819246 | AA179: 0.03017580687 | AB179: 0.02804940813 | AC179: 0.01828012358 | AD179: 0.01939989653 | AE179: =-AE150/AE14 -> 0.015 | AF179: =-AF150/AF14 -> 0.015 | AG179: 0.01690685552 | AH179: 0.015 | AI179: 0.015 | AJ179: 0.015 | AK179: 0.015 | AL179: 0.015 | AM179: 0.015 | AN179: 0.015 | AO179: 0.015 | AP179: 0.015 | AQ179: 0.015 | AR179: 0.015 | AS179: 0.015 | AT179: 0.015 | AU179: 0.015 | AV179: 0.015
B183: Nike Model Scenario & Sensitivity Analysis
B185: Base Case | G185: Base Case: Sensitivity of forecast share price to changes in assumptions
B187: Depreciation to PPE | C187: 0.05 | L187: Net Sales Growth- North America
B188: Capex/Sales | C188: 0.015 | G188: Operating Margin North America (%) | H188: 73.66951368 | I188: 0.024 | J188: 0.026 | K188: 0.028 | L188: 0.03 | M188: 0.032 | N188: 0.034 | O188: 0.036
B189: Gross margin (GAAP) | C189: 0.57 | H189: 0.25 | I189: 70.89780163 | J189: 71.00530277 | K189: 71.11324806 | L189: 71.22163848 | M189: 71.330475 | N189: 71.43975859 | O189: 71.54949023
B190: SG&A/Total Operating Expense | C190: 0.96 | H190: 0.26 | I190: 71.69769756 | J190: 71.81052686 | K190: 71.92382629 | L190: 72.03759688 | M190: 72.15183971 | N190: 72.26655581 | O190: 72.38174624
B191: Other/Total Operating Expense | C191: 0.04 | H191: 0.27 | I191: 72.49759349 | J191: 72.61575096 | K191: 72.73440451 | L191: 72.85355528 | M191: 72.97320441 | N191: 73.09335302 | O191: 73.21400225
B192: Effective Tax Rate | C192: 0.3 | H192: 0.28 | I192: 73.29748942 | J192: 73.42097505 | K192: 73.54498273 | L192: 73.66951368 | M192: 73.79456911 | N192: 73.92015023 | O192: 74.04625827
B193: Debt Issuance & Principal Payments (YoY) | C193: 0.94 | H193: 0.29 | I193: 74.09738536 | J193: 74.22619915 | K193: 74.35556096 | L193: 74.48547208 | M193: 74.61593381 | N193: 74.74694745 | O193: 74.87851428
H194: 0.3 | I194: 74.89728129 | J194: 75.03142324 | K194: 75.16613918 | L194: 75.30143048 | M194: 75.43729851 | N194: 75.57374466 | O194: 75.71077029
B195: North America | H195: 0.31 | I195: 75.69717722 | J195: 75.83664734 | K195: 75.97671741 | L195: 76.11738888 | M195: 76.25866322 | N195: 76.40054187 | O195: 76.5430263
B196: Net Sales Growth p.a. | C196: 0.03
B197: Operating Margin p.a. | C197: 0.28
B198: LATAM
B199: Net Sales Growth p.a. | C199: 0.04 | L199: Net Sales Growth- LATAM
B200: Operating Margin p.a. | C200: 0.28 | G200: Operating Margin LATAM (%) | H200: 73.66951368 | I200: 0.034 | J200: 0.036 | K200: 0.038 | L200: 0.04 | M200: 0.042 | N200: 0.044 | O200: 0.046
B201: Europe | H201: 0.25 | I201: 70.52859177 | J201: 70.64908904 | K201: 70.77007938 | L201: 70.89156385 | M201: 71.01354353 | N201: 71.13601949 | O201: 71.25899278
B202: Net Sales Growth p.a. | C202: -0.02 | H202: 0.26 | I202: 71.43650502 | J202: 71.56299665 | K202: 71.6900103 | L202: 71.81754713 | M202: 71.9456083 | N202: 72.07419497 | O202: 72.2033083
B203: Operating Margin p.a. | C203: 0.28 | H203: 0.27 | I203: 72.34441828 | J203: 72.47690425 | K203: 72.60994122 | L203: 72.74353041 | M203: 72.87767307 | N203: 73.01237046 | O203: 73.14762381
B204: APAC | H204: 0.28 | I204: 73.25233153 | J204: 73.39081186 | K204: 73.52987213 | L204: 73.66951368 | M204: 73.80973784 | N204: 73.95054594 | O204: 74.09193933
B205: Net Sales Growth p.a. | C205: -0.01 | H205: 0.29 | I205: 74.16024478 | J205: 74.30471947 | K205: 74.44980305 | L205: 74.59549696 | M205: 74.74180261 | N205: 74.88872143 | O205: 75.03625484
B206: Operating Margin p.a. | C206: 0.28 | H206: 0.3 | I206: 75.06815803 | J206: 75.21862707 | K206: 75.36973397 | L206: 75.52148023 | M206: 75.67386738 | N206: 75.82689691 | O206: 75.98057036
B207: Africa/Eurasia | H207: 0.31 | I207: 75.97607128 | J207: 76.13253468 | K207: 76.28966489 | L207: 76.44746351 | M207: 76.60593215 | N207: 76.7650724 | O207: 76.92488587
B208: Net Sales Growth p.a. | C208: 0.02
B209: Operating Margin p.a. | C209: 0.19
B210: Pet Nutrition
B211: Net Sales Growth p.a. | C211: 0.04
B212: Operating Margin p.a. | C212: 0.28
B213: Constant Growth Stage | G213: Revenue growth (in perpetuity) | K213: Constant CFO growth rate | O213: Ave CapEx (% of sales)
B214: Revenue growth (in perpetuity) | C214: 0.028
B215: Constant CFO growth rate | C215: 0.025 | G215: Change | H215: Share Price Forecast | K215: Change | L215: Share Price Forecast | O215: Change | P215: Share Price Forecast
B216: Ave CapEx (% of sales) | C216: 0.04 | G216: 0 | H216: 73.66951368 | K216: 0 | L216: 73.66951368 | O216: 0 | P216: 73.66951368
B217: Dividend growth assumption | C217: 0.02 | G217: -0.01 | H217: 65.81094699 | K217: -0.01 | L217: 73.24849208 | O217: -0.01 | P217: 75.99864281
... 135 more rows

Sheet Share Price History
A1: Date | B1: Last Price | E1: Start Date | F1: End Date | G1: Quarter | H1: Average Price (Adj) | K1: Date | L1: Price Earnings Ratio (P/E)
A2: 2012-08-15 | B2: 52.75 | E2: 2014-12-31 | F2: =EOMONTH(E2,3) -> 2015-03-31 | G2: F1Q15 | H2: =AVERAGE(OFFSET($A$1,MATCH($F2,$A:$A,1)-1,1,MATCH($E2,$A:$A,1)-MATCH($F2,$A:$A,1))) -> 69.11754098 | K2: 2012-08-15 | L2: 20.2763
A3: 2012-08-16 | B3: 52.915 | E3: =F2 -> 2015-03-31 | F3: =EOMONTH(E3,3) -> 2015-06-30 | G3: F2Q15 | H3: 67.83698413 | K3: 2012-08-16 | L3: 20.3397
A4: 2012-08-17 | B4: 53.09 | E4: =F3 -> 2015-06-30 | F4: 2015-09-30 | G4: F3Q15 | H4: 65.3271875 | K4: 2012-08-17 | L4: 20.407
A5: 2012-08-20 | B5: 52.975 | E5: 2015-09-30 | F5: 2015-12-31 | G5: F4Q15 | H5: 66.52234375 | K5: 2012-08-20 | L5: 20.3628
A6: 2012-08-21 | B6: 52.85 | E6: 2015-12-31 | F6: 2016-03-31 | G6: F1Q16 | H6: 66.53098361 | K6: 2012-08-21 | L6: 20.3148
A7: 2012-08-22 | B7: 52.685 | E7: 2016-03-31 | F7: 2016-06-30 | G7: F2Q16 | H7: 71.20515625 | K7: 2012-08-22 | L7: 20.2513
A8: 2012-08-23 | B8: 52.355 | E8: 2016-06-30 | F8: 2016-09-30 | G8: F3Q16 | H8: 73.92375 | K8: 2012-08-23 | L8: 20.1245
A9: 2012-08-24 | B9: 52.885 | E9: 2016-09-30 | F9: 2016-12-31 | G9: F4Q16 | H9: 68.5652381 | K9: 2012-08-24 | L9: 20.3282
A10: 2012-08-27 | B10: 52.9 | E10: 2016-12-31 | F10: 2017-03-31 | G10: F1Q17 | H10: 69.99887097 | K10: 2012-08-27 | L10: 20.334
A11: 2012-08-28 | B11: 53.175 | E11: 2017-03-31 | F11: 2017-06-30 | G11: F2Q17 | H11: 74.2452381 | K11: 2012-08-28 | L11: 20.4397
A12: 2012-08-29 | B12: 53.215 | E12: 2017-06-30 | F12: 2017-09-30 | G12: F3Q17 | H12: 72.07190476 | K12: 2012-08-29 | L12: 20.455
A13: 2012-08-30 | B13: 52.905 | E13: 2017-09-30 | F13: 2017-12-31 | G13: F4Q17 | H13: 73.01761905 | K13: 2012-08-30 | L13: 20.3359
A14: 2012-08-31 | B14: 53.155 | E14: 2017-12-31 | F14: 2018-03-31 | G14: F1Q18 | H14: 71.96295082 | K14: 2012-08-31 | L14: 20.432
A15: 2012-09-04 | B15: 53.61 | E15: 2018-03-31 | F15: 2018-06-30 | G15: F2Q18 | H15: 65.41265625 | K15: 2012-09-04 | L15: 20.6069
A16: 2012-09-05 | B16: 53.25 | E16: 2018-06-30 | F16: 2018-09-30 | G16: F3Q18 | H16: 66.60666667 | K16: 2012-09-05 | L16: 20.4685
A17: 2012-09-06 | B17: 53.745 | E17: 2018-09-30 | F17: 2018-12-31 | G17: F4Q18 | H17: 62.56412698 | K17: 2012-09-06 | L17: 20.6588
A18: 2012-09-07 | B18: 53.15 | E18: 2018-12-31 | F18: 2019-03-31 | G18: F1Q19 | H18: 64.59295082 | K18: 2012-09-07 | L18: 20.4301
A19: 2012-09-10 | B19: 51.85 | E19: 2019-03-31 | F19: 2019-06-30 | G19: F2Q19 | H19: 70.98904762 | K19: 2012-09-10 | L19: 19.9304
A20: 2012-09-11 | B20: 51.41 | E20: 2019-06-30 | F20: 2019-09-30 | G20: F3Q19 | H20: 72.7223913 | K20: 2012-09-11 | L20: 19.7612
A21: 2012-09-12 | B21: 51.31 | K21: 2012-09-12 | L21: 19.7228
A22: 2012-09-13 | B22: 52.27 | K22: 2012-09-13 | L22: 20.0918
A23: 2012-09-14 | B23: 51.875 | K23: 2012-09-14 | L23: 19.94
A24: 2012-09-17 | B24: 52.575 | K24: 2012-09-17 | L24: 20.209
A25: 2012-09-18 | B25: 53.005 | K25: 2012-09-18 | L25: 20.3743
A26: 2012-09-19 | B26: 52.945 | K26: 2012-09-19 | L26: 20.3513
A27: 2012-09-20 | B27: 53.395 | K27: 2012-09-20 | L27: 20.5242
A28: 2012-09-21 | B28: 53.265 | K28: 2012-09-21 | L28: 20.4743
A29: 2012-09-24 | B29: 53.47 | K29: 2012-09-24 | L29: 20.5531
A30: 2012-09-25 | B30: 53.325 | K30: 2012-09-25 | L30: 20.4973
A31: 2012-09-26 | B31: 53.375 | K31: 2012-09-26 | L31: 20.5166
A32: 2012-09-27 | B32: 53.675 | K32: 2012-09-27 | L32: 20.6319
A33: 2012-09-28 | B33: 53.61 | K33: 2012-09-28 | L33: 20.3486
A34: 2012-10-01 | B34: 53.995 | K34: 2012-10-01 | L34: 20.4948
A35: 2012-10-02 | B35: 53.96 | K35: 2012-10-02 | L35: 20.4815
A36: 2012-10-03 | B36: 54.015 | K36: 2012-10-03 | L36: 20.5024
A37: 2012-10-04 | B37: 54.23 | K37: 2012-10-04 | L37: 20.584
A38: 2012-10-05 | B38: 54.225 | K38: 2012-10-05 | L38: 20.5821
A39: 2012-10-08 | B39: 54.245 | K39: 2012-10-08 | L39: 20.5897
A40: 2012-10-09 | B40: 53.715 | K40: 2012-10-09 | L40: 20.3885
A41: 2012-10-10 | B41: 53.845 | K41: 2012-10-10 | L41: 20.4378
A42: 2012-10-11 | B42: 54.015 | K42: 2012-10-11 | L42: 20.5024
A43: 2012-10-12 | B43: 53.945 | K43: 2012-10-12 | L43: 20.4758
A44: 2012-10-15 | B44: 54.23 | K44: 2012-10-15 | L44: 20.584
A45: 2012-10-16 | B45: 54.295 | K45: 2012-10-16 | L45: 20.6086
A46: 2012-10-17 | B46: 55.285 | K46: 2012-10-17 | L46: 20.9844
A47: 2012-10-18 | B47: 55.31 | K47: 2012-10-18 | L47: 20.9939
A48: 2012-10-19 | B48: 53.87 | K48: 2012-10-19 | L48: 20.4473
A49: 2012-10-22 | B49: 53.845 | K49: 2012-10-22 | L49: 20.4378
A50: 2012-10-23 | B50: 53.265 | K50: 2012-10-23 | L50: 20.2177
A51: 2012-10-24 | B51: 53.28 | K51: 2012-10-24 | L51: 20.2234
A52: 2012-10-25 | B52: 52.3 | K52: 2012-10-25 | L52: 19.8514
A53: 2012-10-26 | B53: 51.935 | K53: 2012-10-26 | L53: 19.7129
A54: 2012-10-31 | B54: 52.48 | K54: 2012-10-31 | L54: 19.9197
A55: 2012-11-01 | B55: 52.935 | K55: 2012-11-01 | L55: 20.0924
A56: 2012-11-02 | B56: 52.48 | K56: 2012-11-02 | L56: 19.9197
A57: 2012-11-05 | B57: 52.615 | K57: 2012-11-05 | L57: 19.971
A58: 2012-11-06 | B58: 52.82 | K58: 2012-11-06 | L58: 20.0488
A59: 2012-11-07 | B59: 52.485 | K59: 2012-11-07 | L59: 19.9216
A60: 2012-11-08 | B60: 52.035 | K60: 2012-11-08 | L60: 19.7508
A61: 2012-11-09 | B61: 51.935 | K61: 2012-11-09 | L61: 19.7129
A62: 2012-11-12 | B62: 52.155 | K62: 2012-11-12 | L62: 19.7964
A63: 2012-11-13 | B63: 52.14 | K63: 2012-11-13 | L63: 19.7907
A64: 2012-11-14 | B64: 51.765 | K64: 2012-11-14 | L64: 19.6483
A65: 2012-11-15 | B65: 51.885 | K65: 2012-11-15 | L65: 19.6939
A66: 2012-11-16 | B66: 52.575 | K66: 2012-11-16 | L66: 19.9558
A67: 2012-11-19 | B67: 53.455 | K67: 2012-11-19 | L67: 20.2898
A68: 2012-11-20 | B68: 53.455 | K68: 2012-11-20 | L68: 20.2898
A69: 2012-11-21 | B69: 53.4 | K69: 2012-11-21 | L69: 20.2689
A70: 2012-11-23 | B70: 54 | K70: 2012-11-23 | L70: 20.4967
A71: 2012-11-26 | B71: 53.93 | K71: 2012-11-26 | L71: 20.4701
A72: 2012-11-27 | B72: 53.82 | K72: 2012-11-27 | L72: 20.4283
A73: 2012-11-28 | B73: 53.88 | K73: 2012-11-28 | L73: 20.4511
A74: 2012-11-29 | B74: 54.005 | K74: 2012-11-29 | L74: 20.4986
A75: 2012-11-30 | B75: 54.25 | K75: 2012-11-30 | L75: 20.5916
A76: 2012-12-03 | B76: 54.045 | K76: 2012-12-03 | L76: 20.5137
A77: 2012-12-04 | B77: 53.79 | K77: 2012-12-04 | L77: 20.417
A78: 2012-12-05 | B78: 53.605 | K78: 2012-12-05 | L78: 20.3467
A79: 2012-12-06 | B79: 53.325 | K79: 2012-12-06 | L79: 20.2405
A80: 2012-12-07 | B80: 54.185 | K80: 2012-12-07 | L80: 20.5669
A81: 2012-12-10 | B81: 53.395 | K81: 2012-12-10 | L81: 20.267
A82: 2012-12-11 | B82: 53.94 | K82: 2012-12-11 | L82: 20.4739
A83: 2012-12-12 | B83: 53.495 | K83: 2012-12-12 | L83: 20.305
A84: 2012-12-13 | B84: 53.08 | K84: 2012-12-13 | L84: 20.1475
A85: 2012-12-14 | B85: 52.92 | K85: 2012-12-14 | L85: 20.0867
A86: 2012-12-17 | B86: 53.105 | K86: 2012-12-17 | L86: 20.1569
A87: 2012-12-18 | B87: 53.63 | K87: 2012-12-18 | L87: 20.3562
A88: 2012-12-19 | B88: 53.015 | K88: 2012-12-19 | L88: 20.1228
A89: 2012-12-20 | B89: 52.895 | K89: 2012-12-20 | L89: 20.0772
A90: 2012-12-21 | B90: 52.55 | K90: 2012-12-21 | L90: 19.9463
A91: 2012-12-24 | B91: 52.525 | K91: 2012-12-24 | L91: 19.9368
A92: 2012-12-26 | B92: 52.355 | K92: 2012-12-26 | L92: 19.8723
A93: 2012-12-27 | B93: 52.635 | K93: 2012-12-27 | L93: 19.9785
A94: 2012-12-28 | B94: 52.02 | K94: 2012-12-28 | L94: 19.7451
A95: 2012-12-31 | B95: 52.27 | K95: 2012-12-31 | L95: 19.456
A96: 2013-01-02 | B96: 53.155 | K96: 2013-01-02 | L96: 19.7854
A97: 2013-01-03 | B97: 53.33 | K97: 2013-01-03 | L97: 19.8506
A98: 2013-01-04 | B98: 53.95 | K98: 2013-01-04 | L98: 20.0813
A99: 2013-01-07 | B99: 53.04 | K99: 2013-01-07 | L99: 19.7426
A100: 2013-01-08 | B100: 53.16 | K100: 2013-01-08 | L100: 19.7873
A101: 2013-01-09 | B101: 53.065 | K101: 2013-01-09 | L101: 19.7519
A102: 2013-01-10 | B102: 53.695 | K102: 2013-01-10 | L102: 19.9864
A103: 2013-01-11 | B103: 53.545 | K103: 2013-01-11 | L103: 19.9306
A104: 2013-01-14 | B104: 53.965 | K104: 2013-01-14 | L104: 20.0869
A105: 2013-01-15 | B105: 53.87 | K105: 2013-01-15 | L105: 20.0516
A106: 2013-01-16 | B106: 53.915 | K106: 2013-01-16 | L106: 20.0683
A107: 2013-01-17 | B107: 54.47 | K107: 2013-01-17 | L107: 20.2749
A108: 2013-01-18 | B108: 54.505 | K108: 2013-01-18 | L108: 20.2879
A109: 2013-01-22 | B109: 54.23 | K109: 2013-01-22 | L109: 20.1856
A110: 2013-01-23 | B110: 54.405 | K110: 2013-01-23 | L110: 20.2507
A111: 2013-01-24 | B111: 54.885 | K111: 2013-01-24 | L111: 20.4294
A112: 2013-01-25 | B112: 55.075 | K112: 2013-01-25 | L112: 20.5001
A113: 2013-01-28 | B113: 55.075 | K113: 2013-01-28 | L113: 20.5001
A114: 2013-01-29 | B114: 55.455 | K114: 2013-01-29 | L114: 20.6415
A115: 2013-01-30 | B115: 55.425 | K115: 2013-01-30 | L115: 20.6304
A116: 2013-01-31 | B116: 53.685 | K116: 2013-01-31 | L116: 19.9827
A117: 2013-02-01 | B117: 54.92 | K117: 2013-02-01 | L117: 20.4424
A118: 2013-02-04 | B118: 54.365 | K118: 2013-02-04 | L118: 20.2358
A119: 2013-02-05 | B119: 54.73 | K119: 2013-02-05 | L119: 20.3717
A120: 2013-02-06 | B120: 54.905 | K120: 2013-02-06 | L120: 20.4368
A121: 2013-02-07 | B121: 55.095 | K121: 2013-02-07 | L121: 20.5075
A122: 2013-02-08 | B122: 54.245 | K122: 2013-02-08 | L122: 20.1911
A123: 2013-02-11 | B123: 54.145 | K123: 2013-02-11 | L123: 20.1539
A124: 2013-02-12 | B124: 54.025 | K124: 2013-02-12 | L124: 20.1093
A125: 2013-02-13 | B125: 53.95 | K125: 2013-02-13 | L125: 20.0813
A126: 2013-02-14 | B126: 54.165 | K126: 2013-02-14 | L126: 20.1614
A127: 2013-02-15 | B127: 55.01 | K127: 2013-02-15 | L127: 20.4759
A128: 2013-02-19 | B128: 55.955 | K128: 2013-02-19 | L128: 20.8276
A129: 2013-02-20 | B129: 56.055 | K129: 2013-02-20 | L129: 20.8649
A130: 2013-02-21 | B130: 56.545 | K130: 2013-02-21 | L130: 21.0473
A131: 2013-02-22 | B131: 56.985 | K131: 2013-02-22 | L131: 21.211
A132: 2013-02-25 | B132: 57.005 | K132: 2013-02-25 | L132: 21.2185
A133: 2013-02-26 | B133: 56.955 | K133: 2013-02-26 | L133: 21.1999
A134: 2013-02-27 | B134: 57.23 | K134: 2013-02-27 | L134: 21.3022
A135: 2013-02-28 | B135: 57.215 | K135: 2013-02-28 | L135: 21.2966
A136: 2013-03-01 | B136: 57.055 | K136: 2013-03-01 | L136: 21.2371
A137: 2013-03-04 | B137: 57.42 | K137: 2013-03-04 | L137: 21.3729
A138: 2013-03-05 | B138: 57.855 | K138: 2013-03-05 | L138: 21.5349
A139: 2013-03-06 | B139: 57.675 | K139: 2013-03-06 | L139: 21.4679
A140: 2013-03-07 | B140: 57.705 | K140: 2013-03-07 | L140: 21.479
A141: 2013-03-08 | B141: 57.87 | K141: 2013-03-08 | L141: 21.5404
A142: 2013-03-11 | B142: 57.82 | K142: 2013-03-11 | L142: 21.5218
A143: 2013-03-12 | B143: 57.53 | K143: 2013-03-12 | L143: 21.4139
A144: 2013-03-13 | B144: 57.45 | K144: 2013-03-13 | L144: 21.3841
A145: 2013-03-14 | B145: 56.92 | K145: 2013-03-14 | L145: 21.1868
A146: 2013-03-15 | B146: 56.04 | K146: 2013-03-15 | L146: 20.8593
A147: 2013-03-18 | B147: 56.13 | K147: 2013-03-18 | L147: 20.8928
A148: 2013-03-19 | B148: 56.27 | K148: 2013-03-19 | L148: 20.9449
A149: 2013-03-20 | B149: 57.3 | K149: 2013-03-20 | L149: 21.3283
A150: 2013-03-21 | B150: 56.855 | K150: 2013-03-21 | L150: 21.1626
A151: 2013-03-22 | B151: 57.205 | K151: 2013-03-22 | L151: 21.2929
A152: 2013-03-25 | B152: 57.2 | K152: 2013-03-25 | L152: 21.2911
A153: 2013-03-26 | B153: 58.66 | K153: 2013-03-26 | L153: 21.8345
A154: 2013-03-27 | B154: 58.36 | K154: 2013-03-27 | L154: 21.7228
A155: 2013-03-28 | B155: 59.015 | K155: 2013-03-28 | L155: 21.7049
A156: 2013-04-01 | B156: 58.855 | K156: 2013-04-01 | L156: 21.6461
A157: 2013-04-02 | B157: 59.45 | K157: 2013-04-02 | L157: 21.8649
A158: 2013-04-03 | B158: 58.655 | K158: 2013-04-03 | L158: 21.5725
A159: 2013-04-04 | B159: 58.54 | K159: 2013-04-04 | L159: 21.5302
A160: 2013-04-05 | B160: 58.36 | K160: 2013-04-05 | L160: 21.464
A161: 2013-04-08 | B161: 58.86 | K161: 2013-04-08 | L161: 21.6479
A162: 2013-04-09 | B162: 58.625 | K162: 2013-04-09 | L162: 21.5615
A163: 2013-04-10 | B163: 59.135 | K163: 2013-04-10 | L163: 21.749
A164: 2013-04-11 | B164: 59.42 | K164: 2013-04-11 | L164: 21.8539
A165: 2013-04-12 | B165: 59.185 | K165: 2013-04-12 | L165: 21.7674
A166: 2013-04-15 | B166: 58.435 | K166: 2013-04-15 | L166: 21.4916
A167: 2013-04-16 | B167: 59.665 | K167: 2013-04-16 | L167: 21.944
A168: 2013-04-17 | B168: 58.925 | K168: 2013-04-17 | L168: 21.6718
A169: 2013-04-18 | B169: 59.285 | K169: 2013-04-18 | L169: 21.8042
A170: 2013-04-19 | B170: 59.86 | K170: 2013-04-19 | L170: 22.0157
A171: 2013-04-22 | B171: 60.205 | K171: 2013-04-22 | L171: 22.1426
A172: 2013-04-23 | B172: 60.715 | K172: 2013-04-23 | L172: 22.3302
A173: 2013-04-24 | B173: 58.95 | K173: 2013-04-24 | L173: 21.681
A174: 2013-04-25 | B174: 59.71 | K174: 2013-04-25 | L174: 21.9605
A175: 2013-04-26 | B175: 59.495 | K175: 2013-04-26 | L175: 21.8815
A176: 2013-04-29 | B176: 59.685 | K176: 2013-04-29 | L176: 21.9513
A177: 2013-04-30 | B177: 59.705 | K177: 2013-04-30 | L177: 21.9587
A178: 2013-05-01 | B178: 59.57 | K178: 2013-05-01 | L178: 21.909
A179: 2013-05-02 | B179: 60.365 | K179: 2013-05-02 | L179: 22.2014
A180: 2013-05-03 | B180: 60.575 | K180: 2013-05-03 | L180: 22.2787
A181: 2013-05-06 | B181: 60.1 | K181: 2013-05-06 | L181: 22.104
A182: 2013-05-07 | B182: 60.165 | K182: 2013-05-07 | L182: 22.1279
A183: 2013-05-08 | B183: 60.26 | K183: 2013-05-08 | L183: 22.1628
A184: 2013-05-09 | B184: 60.095 | K184: 2013-05-09 | L184: 22.1021
A185: 2013-05-10 | B185: 60.36 | K185: 2013-05-10 | L185: 22.1996
A186: 2013-05-13 | B186: 60.455 | K186: 2013-05-13 | L186: 22.2345
A187: 2013-05-14 | B187: 61.675 | K187: 2013-05-14 | L187: 22.6832
A188: 2013-05-15 | B188: 62.275 | K188: 2013-05-15 | L188: 22.9039
A189: 2013-05-16 | B189: 62.38 | K189: 2013-05-16 | L189: 22.9425
A190: 2013-05-17 | B190: 62.04 | K190: 2013-05-17 | L190: 22.8175
A191: 2013-05-20 | B191: 61.55 | K191: 2013-05-20 | L191: 22.6373
A192: 2013-05-21 | B192: 61.58 | K192: 2013-05-21 | L192: 22.6483
A193: 2013-05-22 | B193: 61.41 | K193: 2013-05-22 | L193: 22.5858
A194: 2013-05-23 | B194: 60.97 | K194: 2013-05-23 | L194: 22.4239
A195: 2013-05-24 | B195: 61.17 | K195: 2013-05-24 | L195: 22.4975
A196: 2013-05-28 | B196: 61.63 | K196: 2013-05-28 | L196: 22.6667
A197: 2013-05-29 | B197: 59.58 | K197: 2013-05-29 | L197: 21.9127
A198: 2013-05-30 | B198: 59.63 | K198: 2013-05-30 | L198: 21.9311
A199: 2013-05-31 | B199: 57.84 | K199: 2013-05-31 | L199: 21.2728
A200: 2013-06-03 | B200: 58.6 | K200: 2013-06-03 | L200: 21.5523
... 1575 more rows

Sheet Beta Calculation
A1: Start Date | B1: 2014-01-31 | D1: Start Date | E1: 2014-01-31
A2: End Date | D2: End Date
B4: CL US Equity | E4: SPXT Index
B5: =_xll.BFieldInfo(B$6) ->  | E5: =_xll.BFieldInfo(E$6) -> 
A6: Dates | B6: TOT_RETURN_INDEX_NET_DVDS | D6: Dates | E6: TOT_RETURN_INDEX_NET_DVDS | I6: Date | J6: Colgate-Palmolive TR Index | K6: S&P 500 TR Index | L6: Colgate-Palmolive % Return | M6: S&P 500 % Return | O6: Beta | P6: =SLOPE(L10:L69,M10:M69) -> 0.7473447281
A7: =_xll.BDH(B$4,B$6,$B1,$B2,"Dir=V","FX=USD","Dts=S","cols=2;rows=1408") ->  | B7: 61.23 | D7: =_xll.BDH(E$4,E$6,$E1,$E2,"Dir=V","FX=USD","Dts=S","cols=2;rows=1408") ->  | E7: 3200.95 | I7: 2014-06-30 | J7: =VLOOKUP(I7,A:B,2,1) -> 68.5467 | K7: =VLOOKUP(I7,D:E,2,1) -> 3552.18 | O7: R2 | P7: =RSQ(L10:L69,M10:M69) -> 0.3390477738
A8: 2014-02-03 | B8: 60.17 | D8: 2014-02-03 | E8: 3127.87 | I8: =EOMONTH(I7,1) -> 2014-07-31 | J8: =VLOOKUP(I8,A:B,2,1) -> 64.0714 | K8: =VLOOKUP(I8,D:E,2,1) -> 3503.19 | L8: =((J8/J7)-1)*100 -> -6.528833627 | M8: =((K8/K7)-1)*100 -> -1.379153083
A9: 2014-02-04 | B9: 60.35 | D9: 2014-02-04 | E9: 3151.94 | I9: =EOMONTH(I8,1) -> 2014-08-31 | J9: 65.4155 | K9: 3643.34 | L9: =((J9/J8)-1)*100 -> 2.097815874 | M9: =((K9/K8)-1)*100 -> 4.000639417
A10: 2014-02-05 | B10: 60.42 | D10: 2014-02-05 | E10: 3146.49 | I10: 2014-09-30 | J10: 65.9106 | K10: 3592.25 | L10: 0.7568542624 | M10: -1.402284717
A11: 2014-02-06 | B11: 60.6 | D11: 2014-02-06 | E11: 3187.25 | I11: 2014-10-31 | J11: 67.9712 | K11: 3679.99 | L11: 3.126356003 | M11: 2.44248034
A12: 2014-02-07 | B12: 60.86 | D12: 2014-02-07 | E12: 3229.64 | I12: 2014-11-30 | J12: 70.7254 | K12: 3778.96 | L12: 4.052010263 | M12: 2.689409482
A13: 2014-02-10 | B13: 61.52 | D13: 2014-02-10 | E13: 3234.79 | I13: 2014-12-31 | J13: 70.3189 | K13: 3769.44 | L13: -0.5747581491 | M13: -0.2519211635
A14: 2014-02-11 | B14: 62.4 | D14: 2014-02-11 | E14: 3270.74 | I14: 2015-01-31 | J14: 68.9831 | K14: 3656.28 | L14: -1.899631536 | M14: -3.002037438
A15: 2014-02-12 | B15: 61.92 | D15: 2014-02-12 | E15: 3271.47 | I15: 2015-02-28 | J15: 72.3546 | K15: 3866.42 | L15: 4.88742895 | M15: 5.747371645
A16: 2014-02-13 | B16: 62.31 | D16: 2014-02-13 | E16: 3290.82 | I16: 2015-03-31 | J16: 70.8425 | K16: 3805.27 | L16: -2.089846395 | M16: -1.58156641
A17: 2014-02-14 | B17: 62.68 | D17: 2014-02-14 | E17: 3306.92 | I17: 2015-04-30 | J17: 69.1164 | K17: 3841.78 | L17: -2.436531743 | M17: 0.9594588557
A18: 2014-02-18 | B18: 62.39 | D18: 2014-02-18 | E18: 3311.27 | I18: 2015-05-31 | J18: 68.613 | K18: 3891.18 | L18: -0.7283365453 | M18: 1.285862283
A19: 2014-02-19 | B19: 61.53 | D19: 2014-02-19 | E19: 3289.83 | I19: 2015-06-30 | J19: 67.1953 | K19: 3815.85 | L19: -2.066226517 | M19: -1.935916611
A20: 2014-02-20 | B20: 61.86 | D20: 2014-02-20 | E20: 3310.27 | I20: 2015-07-31 | J20: 70.2733 | K20: 3895.8 | L20: 4.580677518 | M20: 2.095208145
A21: 2014-02-21 | B21: 61.56 | D21: 2014-02-21 | E21: 3304.36 | I21: 2015-08-31 | J21: 64.8907 | K21: 3660.75 | L21: -7.659523603 | M21: -6.033420607
A22: 2014-02-24 | B22: 61.95 | D22: 2014-02-24 | E22: 3324.84 | I22: 2015-09-30 | J22: 65.5622 | K22: 3570.171 | L22: 1.034817008 | M22: -2.474329031
A23: 2014-02-25 | B23: 62.07 | D23: 2014-02-25 | E23: 3320.43 | I23: 2015-10-31 | J23: 68.9377 | K23: 3871.33 | L23: 5.148545961 | M23: 8.435422281
A24: 2014-02-26 | B24: 61.95 | D24: 2014-02-26 | E24: 3321.15 | I24: 2015-11-30 | J24: 68.2416 | K24: 3882.84 | L24: -1.009752284 | M24: 0.297313843
A25: 2014-02-27 | B25: 62.12 | D25: 2014-02-27 | E25: 3338.05 | I25: 2015-12-31 | J25: 69.2182 | K25: 3821.6 | L25: 1.431091885 | M25: -1.577196073
A26: 2014-02-28 | B26: 62.83 | D26: 2014-02-28 | E26: 3347.38 | I26: 2016-01-31 | J26: 70.5826 | K26: 3631.96 | L26: 1.971157875 | M26: -4.962319447
A27: 2014-03-03 | B27: 62.22 | D27: 2014-03-03 | E27: 3322.85 | I27: 2016-02-29 | J27: 68.6072 | K27: 3627.06 | L27: -2.798706763 | M27: -0.1349133801
A28: 2014-03-04 | B28: 63.01 | D28: 2014-03-04 | E28: 3373.64 | I28: 2016-03-31 | J28: 73.8437 | K28: 3873.11 | L28: 7.632580837 | M28: 6.783731176
A29: 2014-03-05 | B29: 62.62 | D29: 2014-03-05 | E29: 3374.1 | I29: 2016-04-30 | J29: 74.537 | K29: 3888.13 | L29: 0.938874948 | M29: 0.3878020505
A30: 2014-03-06 | B30: 63.02 | D30: 2014-03-06 | E30: 3380.49 | I30: 2016-05-31 | J30: 74.001 | K30: 3957.95 | L30: -0.7191059474 | M30: 1.795721851
A31: 2014-03-07 | B31: 63.13 | D31: 2014-03-07 | E31: 3382.57 | I31: 2016-06-30 | J31: 76.9333 | K31: 3968.21 | L31: 3.96251402 | M31: 0.2592251039
A32: 2014-03-10 | B32: 63.05 | D32: 2014-03-10 | E32: 3381.22 | I32: 2016-07-31 | J32: 78.6376 | K32: 4114.51 | L32: 2.215295587 | M32: 3.68680085
A33: 2014-03-11 | B33: 63.29 | D33: 2014-03-11 | E33: 3364.17 | I33: 2016-08-31 | J33: 78.5426 | K33: 4120.29 | L33: -0.1208073492 | M33: 0.1404784531
A34: 2014-03-12 | B34: 63.22 | D34: 2014-03-12 | E34: 3366.07 | I34: 2016-09-30 | J34: 78.3312 | K34: 4121.06 | L34: -0.2691533002 | M34: 0.01868800497
A35: 2014-03-13 | B35: 63.23 | D35: 2014-03-13 | E35: 3327.11 | I35: 2016-10-31 | J35: 75.8087 | K35: 4045.89 | L35: -3.220300468 | M35: -1.82404527
A36: 2014-03-14 | B36: 63.83 | D36: 2014-03-14 | E36: 3317.81 | I36: 2016-11-30 | J36: 69.2965 | K36: 4195.73 | L36: -8.590306917 | M36: 3.703511465
A37: 2014-03-17 | B37: 64.4 | D37: 2014-03-17 | E37: 3349.71 | I37: 2016-12-31 | J37: 69.5196 | K37: 4278.66 | L37: 0.321949882 | M37: 1.976533285
A38: 2014-03-18 | B38: 64.34 | D38: 2014-03-18 | E38: 3373.98 | I38: 2017-01-31 | J38: 69.0051 | K38: 4359.81 | L38: -0.7400790568 | M38: 1.89662184
A39: 2014-03-19 | B39: 63.39 | D39: 2014-03-19 | E39: 3353.29 | I39: 2017-02-28 | J39: 77.9807 | K39: 4532.93 | L39: 13.00715454 | M39: 3.970815242
A40: 2014-03-20 | B40: 63.59 | D40: 2014-03-20 | E40: 3373.6 | I40: 2017-03-31 | J40: 78.2051 | K40: 4538.21 | L40: 0.2877635107 | M40: 0.1164809516
A41: 2014-03-21 | B41: 63.46 | D41: 2014-03-21 | E41: 3363.72 | I41: 2017-04-30 | J41: 77.3958 | K41: 4584.82 | L41: -1.034842996 | M41: 1.027056923
A42: 2014-03-24 | B42: 63.31 | D42: 2014-03-24 | E42: 3347.36 | I42: 2017-05-31 | J42: 82.037 | K42: 4649.34 | L42: 5.996707832 | M42: 1.407252629
A43: 2014-03-25 | B43: 63.77 | D43: 2014-03-25 | E43: 3362.44 | I43: 2017-06-30 | J43: 79.6412 | K43: 4678.36 | L43: -2.92038958 | M43: 0.624174614
A44: 2014-03-26 | B44: 64.27 | D44: 2014-03-26 | E44: 3339 | I44: 2017-07-31 | J44: 77.9958 | K44: 4774.56 | L44: -2.066016082 | M44: 2.056276131
A45: 2014-03-27 | B45: 64.06 | D45: 2014-03-27 | E45: 3333.23 | I45: 2017-08-31 | J45: 77.3908 | K45: 4789.18 | L45: -0.7756827932 | M45: 0.3062062263
A46: 2014-03-28 | B46: 64.1 | D46: 2014-03-28 | E46: 3348.83 | I46: 2017-09-30 | J46: 78.6979 | K46: 4887.97 | L46: 1.688960445 | M46: 2.062774838
A47: 2014-03-31 | B47: 64.87 | D47: 2014-03-31 | E47: 3375.51 | I47: 2017-10-31 | J47: 76.5262 | K47: 5002.03 | L47: -2.759539962 | M47: 2.333484043
A48: 2014-04-01 | B48: 64.22 | D48: 2014-04-01 | E48: 3399.51 | I48: 2017-11-30 | J48: 78.6987 | K48: 5155.44 | L48: 2.838897005 | M48: 3.066954816
A49: 2014-04-02 | B49: 64.3 | D49: 2014-04-02 | E49: 3409.8 | I49: 2017-12-31 | J49: 81.9575 | K49: 5212.76 | L49: 4.140856202 | M49: 1.111835265
A50: 2014-04-03 | B50: 64.28 | D50: 2014-04-03 | E50: 3406 | I50: 2018-01-31 | J50: 81.06 | K50: 5511.21 | L50: -1.095079767 | M50: 5.72537389
A51: 2014-04-04 | B51: 64.22 | D51: 2014-04-04 | E51: 3363.41 | I51: 2018-02-28 | J51: 75.3058 | K51: 5308.09 | L51: -7.098692327 | M51: -3.685579029
A52: 2014-04-07 | B52: 64.92 | D52: 2014-04-07 | E52: 3327.27 | I52: 2018-03-31 | J52: 78.2648 | K52: 5173.19 | L52: 3.929312218 | M52: -2.541403782
A53: 2014-04-08 | B53: 65.63 | D53: 2014-04-08 | E53: 3340.84 | I53: 2018-04-30 | J53: 71.651 | K53: 5193.04 | L53: -8.450542262 | M53: 0.3837090847
A54: 2014-04-09 | B54: 65.73 | D54: 2014-04-09 | E54: 3377.61 | I54: 2018-05-31 | J54: 69.3004 | K54: 5318.1 | L54: -3.280624136 | M54: 2.408223314
A55: 2014-04-10 | B55: 65.94 | D55: 2014-04-10 | E55: 3307.08 | I55: 2018-06-30 | J55: 71.1897 | K55: 5350.83 | L55: 2.72624689 | M55: 0.6154453658
A56: 2014-04-11 | B56: 65.31 | D56: 2014-04-11 | E56: 3276.04 | I56: 2018-07-31 | J56: 74.0778 | K56: 5549.96 | L56: 4.056907109 | M56: 3.721478724
A57: 2014-04-14 | B57: 65.86 | D57: 2014-04-14 | E57: 3302.98 | I57: 2018-08-31 | J57: 73.4145 | K57: 5730.8 | L57: -0.8954099609 | M57: 3.258401862
A58: 2014-04-15 | B58: 66.37 | D58: 2014-04-15 | E58: 3325.3 | I58: 2018-09-30 | J58: 74.0115 | K58: 5763.42 | L58: 0.8131908547 | M58: 0.5692049976
A59: 2014-04-16 | B59: 67.18 | D59: 2014-04-16 | E59: 3360.27 | I59: 2018-10-31 | J59: 66.2723 | K59: 5369.49 | L59: -10.45675334 | M59: -6.835004216
A60: 2014-04-17 | B60: 67.3 | D60: 2014-04-17 | E60: 3365 | I60: 2018-11-30 | J60: 70.6905 | K60: 5478.91 | L60: 6.666737083 | M60: 2.037809922
A61: 2014-04-21 | B61: 67.1995 | D61: 2014-04-21 | E61: 3377.75 | I61: 2018-12-31 | J61: 66.239 | K61: 4984.22 | L61: -6.297168644 | M61: -9.028985692
A62: 2014-04-22 | B62: 66.7169 | D62: 2014-04-22 | E62: 3391.58 | I62: 2019-01-31 | J62: 72.4711 | K62: 5383.63 | L62: 9.408505563 | M62: 8.013490576
A63: 2014-04-23 | B63: 66.2242 | D63: 2014-04-23 | E63: 3384.5 | I63: 2019-02-28 | J63: 73.8045 | K63: 5556.49 | L63: 1.839905838 | M63: 3.210844727
A64: 2014-04-24 | B64: 66.7873 | D64: 2014-04-24 | E64: 3390.39 | I64: 2019-03-31 | J64: 76.7961 | K64: 5664.46 | L64: 4.053411377 | M64: 1.943133165
A65: 2014-04-25 | B65: 66.5962 | D65: 2014-04-25 | E65: 3362.95 | I65: 2019-04-30 | J65: 82.0686 | K65: 5893.81 | L65: 6.865583018 | M65: 4.048929642
A66: 2014-04-28 | B66: 68.2249 | D66: 2014-04-28 | E66: 3374.04 | I66: 2019-05-31 | J66: 78.4946 | K66: 5519.27 | L66: -4.354893345 | M66: -6.354802751
A67: 2014-04-29 | B67: 67.4005 | D67: 2014-04-29 | E67: 3390.16 | I67: 2019-06-30 | J67: 80.8059 | K67: 5908.25 | L67: 2.944533764 | M67: 7.047671159
A68: 2014-04-30 | B68: 67.6619 | D68: 2014-04-30 | E68: 3400.46 | I68: 2019-07-31 | J68: =VLOOKUP(I68,A:B,2,1) -> 81.3564 | K68: =VLOOKUP(I68,D:E,2,1) -> 5993.17 | L68: =((J68/J67)-1)*100 -> 0.6812621356 | M68: =((K68/K67)-1)*100 -> 1.437312233
A69: 2014-05-01 | B69: 67.3704 | D69: 2014-05-01 | E69: 3400.2 | I69: 2019-08-31 | J69: 84.0895 | K69: 5898.23 | L69: 3.3594161 | M69: -1.584136609
A70: 2014-05-02 | B70: 67.4609 | D70: 2014-05-02 | E70: 3395.61
A71: 2014-05-05 | B71: 67.2598 | D71: 2014-05-05 | E71: 3402.23
A72: 2014-05-06 | B72: 67.0688 | D72: 2014-05-06 | E72: 3371.72
A73: 2014-05-07 | B73: 67.5916 | D73: 2014-05-07 | E73: 3392.1
A74: 2014-05-08 | B74: 67.4609 | D74: 2014-05-08 | E74: 3388.29
A75: 2014-05-09 | B75: 68.0138 | D75: 2014-05-09 | E75: 3394.05
A76: 2014-05-12 | B76: 67.5513 | D76: 2014-05-12 | E76: 3427.01
A77: 2014-05-13 | B77: 67.6217 | D77: 2014-05-13 | E77: 3429.3
A78: 2014-05-14 | B78: 67.3201 | D78: 2014-05-14 | E78: 3413.84
A79: 2014-05-15 | B79: 66.7671 | D79: 2014-05-15 | E79: 3382.52
A80: 2014-05-16 | B80: 67.2799 | D80: 2014-05-16 | E80: 3395.21
A81: 2014-05-19 | B81: 67.0889 | D81: 2014-05-19 | E81: 3408.52
A82: 2014-05-20 | B82: 66.918 | D82: 2014-05-20 | E82: 3386.48
A83: 2014-05-21 | B83: 67.1693 | D83: 2014-05-21 | E83: 3414.45
A84: 2014-05-22 | B84: 66.9682 | D84: 2014-05-22 | E84: 3422.99
A85: 2014-05-23 | B85: 67.0889 | D85: 2014-05-23 | E85: 3437.58
A86: 2014-05-27 | B86: 67.0688 | D86: 2014-05-27 | E86: 3458.19
A87: 2014-05-28 | B87: 66.4756 | D87: 2014-05-28 | E87: 3454.88
A88: 2014-05-29 | B88: 67.2799 | D88: 2014-05-29 | E88: 3473.86
A89: 2014-05-30 | B89: 68.7679 | D89: 2014-05-30 | E89: 3480.29
A90: 2014-06-02 | B90: 68.5768 | D90: 2014-06-02 | E90: 3483.14
A91: 2014-06-03 | B91: 67.6016 | D91: 2014-06-03 | E91: 3482
A92: 2014-06-04 | B92: 68.0741 | D92: 2014-06-04 | E92: 3489.21
A93: 2014-06-05 | B93: 68.3255 | D93: 2014-06-05 | E93: 3512.21
A94: 2014-06-06 | B94: 68.3858 | D94: 2014-06-06 | E94: 3528.98
A95: 2014-06-09 | B95: 68.8081 | D95: 2014-06-09 | E95: 3532.47
A96: 2014-06-10 | B96: 69.0594 | D96: 2014-06-10 | E96: 3531.62
A97: 2014-06-11 | B97: 68.989 | D97: 2014-06-11 | E97: 3519.52
A98: 2014-06-12 | B98: 68.2048 | D98: 2014-06-12 | E98: 3495.57
A99: 2014-06-13 | B99: 68.2249 | D99: 2014-06-13 | E99: 3506.58
A100: 2014-06-16 | B100: 68.4562 | D100: 2014-06-16 | E100: 3509.54
A101: 2014-06-17 | B101: 68.2551 | D101: 2014-06-17 | E101: 3517.23
A102: 2014-06-18 | B102: 69.0996 | D102: 2014-06-18 | E102: 3544.42
A103: 2014-06-19 | B103: 69.8034 | D103: 2014-06-19 | E103: 3549.44
A104: 2014-06-20 | B104: 68.7477 | D104: 2014-06-20 | E104: 3555.6
A105: 2014-06-23 | B105: 68.1948 | D105: 2014-06-23 | E105: 3555.14
A106: 2014-06-24 | B106: 68.3154 | D106: 2014-06-24 | E106: 3532.57
A107: 2014-06-25 | B107: 68.3154 | D107: 2014-06-25 | E107: 3549.96
A108: 2014-06-26 | B108: 68.2652 | D108: 2014-06-26 | E108: 3546.38
A109: 2014-06-27 | B109: 68.798 | D109: 2014-06-27 | E109: 3553.35
A110: 2014-06-30 | B110: 68.5467 | D110: 2014-06-30 | E110: 3552.18
A111: 2014-07-01 | B111: 68.8483 | D111: 2014-07-01 | E111: 3576.55
A112: 2014-07-02 | B112: 68.8382 | D112: 2014-07-02 | E112: 3579.11
A113: 2014-07-03 | B113: 69.1901 | D113: 2014-07-03 | E113: 3598.73
A114: 2014-07-07 | B114: 69.2303 | D114: 2014-07-07 | E114: 3584.75
A115: 2014-07-08 | B115: 69.8738 | D115: 2014-07-08 | E115: 3560.53
A116: 2014-07-09 | B116: 70.0246 | D116: 2014-07-09 | E116: 3577.28
A117: 2014-07-10 | B117: 69.7933 | D117: 2014-07-10 | E117: 3562.49
A118: 2014-07-11 | B118: 69.8939 | D118: 2014-07-11 | E118: 3568.08
A119: 2014-07-14 | B119: 70.1653 | D119: 2014-07-14 | E119: 3585.37
A120: 2014-07-15 | B120: 70.0346 | D120: 2014-07-15 | E120: 3578.46
A121: 2014-07-16 | B121: 70.1854 | D121: 2014-07-16 | E121: 3593.91
A122: 2014-07-17 | B122: 69.3264 | D122: 2014-07-17 | E122: 3551.73
A123: 2014-07-18 | B123: 69.6296 | D123: 2014-07-18 | E123: 3588.21
A124: 2014-07-21 | B124: 69.4881 | D124: 2014-07-21 | E124: 3579.99
A125: 2014-07-22 | B125: 69.3163 | D125: 2014-07-22 | E125: 3597.95
A126: 2014-07-23 | B126: 68.8919 | D126: 2014-07-23 | E126: 3604.3
A127: 2014-07-24 | B127: 68.8312 | D127: 2014-07-24 | E127: 3606.1
A128: 2014-07-25 | B128: 68.3057 | D128: 2014-07-25 | E128: 3588.68
A129: 2014-07-28 | B129: 68.043 | D129: 2014-07-28 | E129: 3589.73
A130: 2014-07-29 | B130: 67.0627 | D130: 2014-07-29 | E130: 3573.65
A131: 2014-07-30 | B131: 66.8101 | D131: 2014-07-30 | E131: 3574.45
A132: 2014-07-31 | B132: 64.0714 | D132: 2014-07-31 | E132: 3503.19
A133: 2014-08-01 | B133: 64.6272 | D133: 2014-08-01 | E133: 3493.18
A134: 2014-08-04 | B134: 64.4352 | D134: 2014-08-04 | E134: 3518.31
A135: 2014-08-05 | B135: 64.4453 | D135: 2014-08-05 | E135: 3484.56
A136: 2014-08-06 | B136: 65.4862 | D136: 2014-08-06 | E136: 3485.67
A137: 2014-08-07 | B137: 65.1325 | D137: 2014-08-07 | E137: 3467.14
A138: 2014-08-08 | B138: 65.8702 | D138: 2014-08-08 | E138: 3507.21
A139: 2014-08-11 | B139: 65.7489 | D139: 2014-08-11 | E139: 3517.53
A140: 2014-08-12 | B140: 65.1022 | D140: 2014-08-12 | E140: 3511.96
A141: 2014-08-13 | B141: 65.0617 | D141: 2014-08-13 | E141: 3536.42
A142: 2014-08-14 | B142: 64.8899 | D142: 2014-08-14 | E142: 3551.97
A143: 2014-08-15 | B143: 64.8091 | D143: 2014-08-15 | E143: 3552.17
A144: 2014-08-18 | B144: 65.3043 | D144: 2014-08-18 | E144: 3582.7
A145: 2014-08-19 | B145: 64.9405 | D145: 2014-08-19 | E145: 3601.33
A146: 2014-08-20 | B146: 65.3548 | D146: 2014-08-20 | E146: 3610.49
A147: 2014-08-21 | B147: 65.4963 | D147: 2014-08-21 | E147: 3621.23
A148: 2014-08-22 | B148: 65.2538 | D148: 2014-08-22 | E148: 3614.5
A149: 2014-08-25 | B149: 65.5569 | D149: 2014-08-25 | E149: 3631.86
A150: 2014-08-26 | B150: 65.4761 | D150: 2014-08-26 | E150: 3635.71
A151: 2014-08-27 | B151: 65.5165 | D151: 2014-08-27 | E151: 3636.64
A152: 2014-08-28 | B152: 65.1931 | D152: 2014-08-28 | E152: 3630.98
A153: 2014-08-29 | B153: 65.4155 | D153: 2014-08-29 | E153: 3643.34
A154: 2014-09-02 | B154: 65.1022 | D154: 2014-09-02 | E154: 3641.52
A155: 2014-09-03 | B155: 65.1022 | D155: 2014-09-03 | E155: 3639.35
A156: 2014-09-04 | B156: 64.991 | D156: 2014-09-04 | E156: 3633.87
A157: 2014-09-05 | B157: 65.5468 | D157: 2014-09-05 | E157: 3652.26
A158: 2014-09-08 | B158: 64.3139 | D158: 2014-09-08 | E158: 3641.66
A159: 2014-09-09 | B159: 64.1017 | D159: 2014-09-09 | E159: 3617.89
A160: 2014-09-10 | B160: 64.6777 | D160: 2014-09-10 | E160: 3631.45
A161: 2014-09-11 | B161: 65.1022 | D161: 2014-09-11 | E161: 3635.66
A162: 2014-09-12 | B162: 65.1628 | D162: 2014-09-12 | E162: 3614.06
A163: 2014-09-15 | B163: 65.1931 | D163: 2014-09-15 | E163: 3611.52
A164: 2014-09-16 | B164: 65.8298 | D164: 2014-09-16 | E164: 3638.6
A165: 2014-09-17 | B165: 65.9309 | D165: 2014-09-17 | E165: 3643.4
A166: 2014-09-18 | B166: 66.0016 | D166: 2014-09-18 | E166: 3661.73
A167: 2014-09-19 | B167: 65.9713 | D167: 2014-09-19 | E167: 3660.03
A168: 2014-09-22 | B168: 66.3856 | D168: 2014-09-22 | E168: 3630.7
A169: 2014-09-23 | B169: 66.0925 | D169: 2014-09-23 | E169: 3610.1
A170: 2014-09-24 | B170: 66.9313 | D170: 2014-09-24 | E170: 3638.44
A171: 2014-09-25 | B171: 66.1734 | D171: 2014-09-25 | E171: 3579.61
A172: 2014-09-26 | B172: 66.3957 | D172: 2014-09-26 | E172: 3610.98
A173: 2014-09-29 | B173: 66.325 | D173: 2014-09-29 | E173: 3602.09
A174: 2014-09-30 | B174: 65.9106 | D174: 2014-09-30 | E174: 3592.25
A175: 2014-10-01 | B175: 65.5771 | D175: 2014-10-01 | E175: 3544.98
A176: 2014-10-02 | B176: 65.466 | D176: 2014-10-02 | E176: 3545.3
A177: 2014-10-03 | B177: 66.1532 | D177: 2014-10-03 | E177: 3584.94
A178: 2014-10-06 | B178: 65.9612 | D178: 2014-10-06 | E178: 3579.42
A179: 2014-10-07 | B179: 65.5873 | D179: 2014-10-07 | E179: 3525.29
A180: 2014-10-08 | B180: 66.517 | D180: 2014-10-08 | E180: 3588.07
A181: 2014-10-09 | B181: 65.8904 | D181: 2014-10-09 | E181: 3514.12
A182: 2014-10-10 | B182: 65.9814 | D182: 2014-10-10 | E182: 3474.23
A183: 2014-10-13 | B183: 64.8697 | D183: 2014-10-13 | E183: 3417.01
A184: 2014-10-14 | B184: 65.0921 | D184: 2014-10-14 | E184: 3422.43
A185: 2014-10-15 | B185: 64.5666 | D185: 2014-10-15 | E185: 3395.03
A186: 2014-10-16 | B186: 64.1397 | D186: 2014-10-16 | E186: 3395.64
A187: 2014-10-17 | B187: 64.7698 | D187: 2014-10-17 | E187: 3439.39
A188: 2014-10-20 | B188: 65.593 | D188: 2014-10-20 | E188: 3470.89
A189: 2014-10-21 | B189: 66.4874 | D189: 2014-10-21 | E189: 3538.9
A190: 2014-10-22 | B190: 66.3858 | D190: 2014-10-22 | E190: 3513.47
A191: 2014-10-23 | B191: 66.1114 | D191: 2014-10-23 | E191: 3556.7
A192: 2014-10-24 | B192: 66.4163 | D192: 2014-10-24 | E192: 3581.82
A193: 2014-10-27 | B193: 67.1887 | D193: 2014-10-27 | E193: 3576.47
A194: 2014-10-28 | B194: 66.8634 | D194: 2014-10-28 | E194: 3619.16
A195: 2014-10-29 | B195: 66.9244 | D195: 2014-10-29 | E195: 3614.53
A196: 2014-10-30 | B196: 67.4935 | D196: 2014-10-30 | E196: 3637.3
A197: 2014-10-31 | B197: 67.9712 | D197: 2014-10-31 | E197: 3679.99
A198: 2014-11-03 | B198: 68.5099 | D198: 2014-11-03 | E198: 3679.58
A199: 2014-11-04 | B199: 69.1603 | D199: 2014-11-04 | E199: 3669.18
A200: 2014-11-05 | B200: 69.2619 | D200: 2014-11-05 | E200: 3691.38
A201: 2014-11-06 | B201: 69.2213 | D201: 2014-11-06 | E201: 3706.45
... 1213 more rows
